Workbook

Sheet Korrelation_Tag
B1: ZKB SILVER ETF (ZSIL/ CH0029792717) | C1: ZKB GOLD ETF (ZGLD/ CH0024391002) | D1: Xmtch (CH) SLI (XMSLI/ CH0031768937) | E1: UBS-ETF MSCI JAPAN (FDJPHU/ LU0136240974) | F1: NESTLE N (NESN/ CH0038863350) | G1: DB X-TR DAX (XDAX/ LU0274211480) | H1: DB X-TR SHORT DAX (XSDX/ LU0292106241) | I1: JPY/CHF
A2: Mittelwert | B2: =AVERAGE(B5:B253) -> 0.0001306770043 | C2: =AVERAGE(C5:C253) -> 0.000359341375 | D2: =AVERAGE(D5:D253) -> -0.0004737635739 | E2: -0.0006516823223 | F2: -0.0005010108633 | G2: -0.0008899126426 | H2: -0.0002318187316 | I2: 0.0005148623139
A3: Standartabweichung Tag | B3: =STDEVP(B5:B253) -> 0.03151681567 | C3: =STDEVP(C5:C253) -> 0.01831625726 | D3: =STDEVP(D5:D253) -> 0.02436116667 | E3: 0.02925590919 | F3: 0.0193173844 | G3: 0.02988344776 | H3: 0.02345057364 | I3: 0.01087765221 | L3: 1-Jahr Korrelation basierend Tageskurs
A4: Standartabweichung Jahr | B4: =B3*SQRT(248) -> 0.4963273095 | C4: =C3*SQRT(248) -> 0.2884447077 | D4: 0.3836400364 | E4: 0.4607225187 | F4: 0.3042104737 | G4: 0.4706050059 | H4: 0.3693000029 | I4: 0.1713014384 | L4: ZKB Silver | M4: ZKB Gold | N4: Xmtch SLI | O4: UBS MSCI Japan | P4: Nestlé | Q4: DB X-TR-Dax | R4: DB Sh. Dax | S4: =I1 -> JPY/CHF
A5: 2008-09-01 | B5: =LN(Kurse_Tag!B3/Kurse_Tag!B2) -> -0.01108812469 | C5: =LN(Kurse_Tag!C3/Kurse_Tag!C2) -> -0.0199387836 | D5: =LN(Kurse_Tag!D3/Kurse_Tag!D2) -> 0.001103854403 | E5: =LN(Kurse_Tag!E3/Kurse_Tag!E2) -> -0.01995267606 | F5: =LN(Kurse_Tag!F3/Kurse_Tag!F2) -> -0.001235330608 | G5: =LN(Kurse_Tag!G3/Kurse_Tag!G2) -> -0.01243329592 | H5: =LN(Kurse_Tag!H3/Kurse_Tag!H2) -> 0 | I5: =LN(Kurse_Tag!I3/Kurse_Tag!I2) -> 0.0113175039 | K5: ZKB Silver | L5: =CorrMatrix(B5:I253) -> 1 | M5: 0.7228352379 | N5: 0.2584148465 | O5: 0.3243368847 | P5: 0.1532242577 | Q5: 0.3032055663 | R5: -0.2128541043 | S5: -0.06355545392
A6: 2008-09-02 | B6: =LN(Kurse_Tag!B4/Kurse_Tag!B3) -> -0.05221064148 | C6: =LN(Kurse_Tag!C4/Kurse_Tag!C3) -> -0.01822054611 | D6: =LN(Kurse_Tag!D4/Kurse_Tag!D3) -> 0.01088110219 | E6: =LN(Kurse_Tag!E4/Kurse_Tag!E3) -> 0.01669656799 | F6: =LN(Kurse_Tag!F4/Kurse_Tag!F3) -> 0.008615437906 | G6: =LN(Kurse_Tag!G4/Kurse_Tag!G3) -> 0.01740177547 | H6: =LN(Kurse_Tag!H4/Kurse_Tag!H3) -> -0.01357368791 | I6: =LN(Kurse_Tag!I4/Kurse_Tag!I3) -> 0.004235833551 | K6: ZKB Gold | L6: 0.7228352379 | M6: 1 | N6: -0.01174097944 | O6: 0.1531917517 | P6: -0.02521362409 | Q6: 0.05689124148 | R6: 0.05989030552 | S6: 0.03462669672
A7: 2008-09-03 | B7: =LN(Kurse_Tag!B5/Kurse_Tag!B4) -> 0.005856532113 | C7: =LN(Kurse_Tag!C5/Kurse_Tag!C4) -> 0.003882129457 | D7: =LN(Kurse_Tag!D5/Kurse_Tag!D4) -> -0.001274001446 | E7: =LN(Kurse_Tag!E5/Kurse_Tag!E4) -> -0.02798452776 | F7: =LN(Kurse_Tag!F5/Kurse_Tag!F4) -> -0.006968669316 | G7: =LN(Kurse_Tag!G5/Kurse_Tag!G4) -> -0.01169603976 | H7: =LN(Kurse_Tag!H5/Kurse_Tag!H4) -> 0.001225704934 | I7: =LN(Kurse_Tag!I5/Kurse_Tag!I4) -> 0.00235640757 | K7: Xmtch SLI | L7: 0.2584148465 | M7: -0.01174097944 | N7: 1 | O7: 0.6158593011 | P7: 0.6286521971 | Q7: 0.822626224 | R7: -0.7960118966 | S7: -0.116588785
A8: 2008-09-04 | B8: =LN(Kurse_Tag!B6/Kurse_Tag!B5) -> -0.007326040092 | C8: =LN(Kurse_Tag!C6/Kurse_Tag!C5) -> -0.003175165836 | D8: =LN(Kurse_Tag!D6/Kurse_Tag!D5) -> -0.0261072897 | E8: =LN(Kurse_Tag!E6/Kurse_Tag!E5) -> -0.01193889084 | F8: =LN(Kurse_Tag!F6/Kurse_Tag!F5) -> -0.01575488641 | G8: =LN(Kurse_Tag!G6/Kurse_Tag!G5) -> -0.02826455817 | H8: =LN(Kurse_Tag!H6/Kurse_Tag!H5) -> 0.02480144405 | I8: =LN(Kurse_Tag!I6/Kurse_Tag!I5) -> 0.001959440227 | K8: UBS MSCI Japan | L8: 0.3243368847 | M8: 0.1531917517 | N8: 0.6158593011 | O8: 1 | P8: 0.5083735743 | Q8: 0.60479002 | R8: -0.5040268819 | S8: -0.03642438132
A9: 2008-09-05 | B9: =LN(Kurse_Tag!B7/Kurse_Tag!B6) -> 0.002203452966 | C9: =LN(Kurse_Tag!C7/Kurse_Tag!C6) -> 0.01438368948 | D9: =LN(Kurse_Tag!D7/Kurse_Tag!D6) -> -0.02306994628 | E9: =LN(Kurse_Tag!E7/Kurse_Tag!E6) -> -0.01102662787 | F9: =LN(Kurse_Tag!F7/Kurse_Tag!F6) -> 0.005002094631 | G9: =LN(Kurse_Tag!G7/Kurse_Tag!G6) -> -0.04265881585 | H9: =LN(Kurse_Tag!H7/Kurse_Tag!H6) -> 0.02044508149 | I9: =LN(Kurse_Tag!I7/Kurse_Tag!I6) -> 0.002053288426 | K9: Nestlé | L9: 0.1532242577 | M9: -0.02521362409 | N9: 0.6286521971 | O9: 0.5083735743 | P9: 1 | Q9: 0.5212912717 | R9: -0.4454236494 | S9: -0.04774186413
A10: 2008-09-08 | B10: =LN(Kurse_Tag!B8/Kurse_Tag!B7) -> -0.01701853875 | C10: =LN(Kurse_Tag!C8/Kurse_Tag!C7) -> 0.01005033585 | D10: =LN(Kurse_Tag!D8/Kurse_Tag!D7) -> 0.03246580125 | E10: =LN(Kurse_Tag!E8/Kurse_Tag!E7) -> 0.03680125056 | F10: =LN(Kurse_Tag!F8/Kurse_Tag!F7) -> 0.01649521937 | G10: =LN(Kurse_Tag!G8/Kurse_Tag!G7) -> 0.03967848382 | H10: =LN(Kurse_Tag!H8/Kurse_Tag!H7) -> -0.02138440952 | I10: =LN(Kurse_Tag!I8/Kurse_Tag!I7) -> 0.01483375884 | K10: DB X-TR-Dax | L10: 0.3032055663 | M10: 0.05689124148 | N10: 0.822626224 | O10: 0.60479002 | P10: 0.5212912717 | Q10: 1 | R10: -0.7747977903 | S10: -0.08748671272
A11: 2008-09-09 | B11: =LN(Kurse_Tag!B9/Kurse_Tag!B8) -> -0.04815603691 | C11: =LN(Kurse_Tag!C9/Kurse_Tag!C8) -> -0.0290382481 | D11: =LN(Kurse_Tag!D9/Kurse_Tag!D8) -> -0.004640379557 | E11: =LN(Kurse_Tag!E9/Kurse_Tag!E8) -> 0 | F11: =LN(Kurse_Tag!F9/Kurse_Tag!F8) -> 0.02064432758 | G11: =LN(Kurse_Tag!G9/Kurse_Tag!G8) -> -0.01140696779 | H11: =LN(Kurse_Tag!H9/Kurse_Tag!H8) -> 0.005792673153 | I11: =LN(Kurse_Tag!I9/Kurse_Tag!I8) -> -0.003470552023 | K11: DB Sh. Dax | L11: -0.2128541043 | M11: 0.05989030552 | N11: -0.7960118966 | O11: -0.5040268819 | P11: -0.4454236494 | Q11: -0.7747977903 | R11: 1 | S11: 0.1154545899
A12: 2008-09-10 | B12: =LN(Kurse_Tag!B10/Kurse_Tag!B9) -> -0.06302570101 | C12: =LN(Kurse_Tag!C10/Kurse_Tag!C9) -> -0.01430128057 | D12: =LN(Kurse_Tag!D10/Kurse_Tag!D9) -> -0.003167802891 | E12: =LN(Kurse_Tag!E10/Kurse_Tag!E9) -> -0.01280427225 | F12: =LN(Kurse_Tag!F10/Kurse_Tag!F9) -> -0.01615544022 | G12: =LN(Kurse_Tag!G10/Kurse_Tag!G9) -> -0.007272024775 | H12: =LN(Kurse_Tag!H10/Kurse_Tag!H9) -> 0.008289676975 | I12: =LN(Kurse_Tag!I10/Kurse_Tag!I9) -> 0.01314356716 | K12: JPY/CHF | L12: -0.06355545392 | M12: 0.03462669672 | N12: -0.116588785 | O12: -0.03642438132 | P12: -0.04774186413 | Q12: -0.08748671272 | R12: 0.1154545899 | S12: 1
A13: 2008-09-11 | B13: =LN(Kurse_Tag!B11/Kurse_Tag!B10) -> -0.056618894 | C13: =LN(Kurse_Tag!C11/Kurse_Tag!C10) -> -0.02886045054 | D13: =LN(Kurse_Tag!D11/Kurse_Tag!D10) -> -0.02743526534 | E13: =LN(Kurse_Tag!E11/Kurse_Tag!E10) -> 0.01000136558 | F13: =LN(Kurse_Tag!F11/Kurse_Tag!F10) -> 0.007302263685 | G13: =LN(Kurse_Tag!G11/Kurse_Tag!G10) -> -0.009062737045 | H13: =LN(Kurse_Tag!H11/Kurse_Tag!H10) -> 0.007970843896 | I13: =LN(Kurse_Tag!I11/Kurse_Tag!I10) -> 0.003330323265
A14: 2008-09-12 | B14: =LN(Kurse_Tag!B12/Kurse_Tag!B11) -> 0.03979763951 | C14: =LN(Kurse_Tag!C12/Kurse_Tag!C11) -> 0.0150821325 | D14: =LN(Kurse_Tag!D12/Kurse_Tag!D11) -> 0.0217265792 | E14: =LN(Kurse_Tag!E12/Kurse_Tag!E11) -> -0.003578735926 | F14: =LN(Kurse_Tag!F12/Kurse_Tag!F11) -> 0.02337068317 | G14: =LN(Kurse_Tag!G12/Kurse_Tag!G11) -> 0.008352905854 | H14: =LN(Kurse_Tag!H12/Kurse_Tag!H11) -> -0.01278402608 | I14: =LN(Kurse_Tag!I12/Kurse_Tag!I11) -> 0.0100189874 | L14: 1-Jahr Kovarianzen basierend Tageskurs
A15: 2008-09-15 | B15: =LN(Kurse_Tag!B13/Kurse_Tag!B12) -> -0.001697793277 | C15: =LN(Kurse_Tag!C13/Kurse_Tag!C12) -> 0.01701398508 | D15: =LN(Kurse_Tag!D13/Kurse_Tag!D12) -> -0.02711224331 | E15: =LN(Kurse_Tag!E13/Kurse_Tag!E12) -> -0.0312118964 | F15: =LN(Kurse_Tag!F13/Kurse_Tag!F12) -> -0.02458403013 | G15: =LN(Kurse_Tag!G13/Kurse_Tag!G12) -> -0.03006816303 | H15: =LN(Kurse_Tag!H13/Kurse_Tag!H12) -> 0.03133067461 | I15: =LN(Kurse_Tag!I13/Kurse_Tag!I12) -> -0.01439827848 | L15: ZKB Silver | M15: ZKB Gold | N15: Xmtch SLI | O15: UBS MSCI Japan | P15: Nestlé | Q15: DB X-TR-Dax | R15: DB Sh. Dax | S15: JPY/CHF
A16: 2008-09-16 | B16: =LN(Kurse_Tag!B14/Kurse_Tag!B13) -> -0.02233769854 | C16: =LN(Kurse_Tag!C14/Kurse_Tag!C13) -> -0.001796300106 | D16: =LN(Kurse_Tag!D14/Kurse_Tag!D13) -> -0.02075389928 | E16: =LN(Kurse_Tag!E14/Kurse_Tag!E13) -> -0.04983430222 | F16: =LN(Kurse_Tag!F14/Kurse_Tag!F13) -> -0.008943149036 | G16: =LN(Kurse_Tag!G14/Kurse_Tag!G13) -> -0.01708001458 | H16: =LN(Kurse_Tag!H14/Kurse_Tag!H13) -> 0.008983318885 | I16: =LN(Kurse_Tag!I14/Kurse_Tag!I13) -> 0.008739487562 | K16: ZKB Silver | L16: =VarCovar(B5:I253) -> 0.0009973149508 | M16: 0.0004189537178 | N16: 0.0001992074344 | O16: 0.0003002616993 | P16: 9.366252163e-05 | Q16: 0.0002867199221 | R16: -0.0001579521339 | S16: -2.187650761e-05
A17: 2008-09-17 | B17: =LN(Kurse_Tag!B15/Kurse_Tag!B14) -> 0.04833496977 | C17: =LN(Kurse_Tag!C15/Kurse_Tag!C14) -> 0.06709727279 | D17: =LN(Kurse_Tag!D15/Kurse_Tag!D14) -> -0.02059057179 | E17: =LN(Kurse_Tag!E15/Kurse_Tag!E14) -> 0.01625156275 | F17: =LN(Kurse_Tag!F15/Kurse_Tag!F14) -> -0.007788520618 | G17: =LN(Kurse_Tag!G15/Kurse_Tag!G14) -> -0.01112073052 | H17: =LN(Kurse_Tag!H15/Kurse_Tag!H14) -> 0.002111590162 | I17: =LN(Kurse_Tag!I15/Kurse_Tag!I14) -> 0.009132483563 | K17: ZKB Gold | L17: 0.0004189537178 | M17: 0.0003368380431 | N17: -5.26001293e-06 | O17: 8.242014659e-05 | P17: -8.957111831e-06 | Q17: 3.126514982e-05 | R17: 2.582821543e-05 | S17: 6.926767861e-06
A18: 2008-09-18 | B18: =LN(Kurse_Tag!B16/Kurse_Tag!B15) -> 0.07185851877 | C18: =LN(Kurse_Tag!C16/Kurse_Tag!C15) -> 0.02883381193 | D18: =LN(Kurse_Tag!D16/Kurse_Tag!D15) -> -0.006351788256 | E18: =LN(Kurse_Tag!E16/Kurse_Tag!E15) -> -0.005479465765 | F18: =LN(Kurse_Tag!F16/Kurse_Tag!F15) -> -0.01034135379 | G18: =LN(Kurse_Tag!G16/Kurse_Tag!G15) -> -0.005066576892 | H18: =LN(Kurse_Tag!H16/Kurse_Tag!H15) -> 0.01000977037 | I18: =LN(Kurse_Tag!I16/Kurse_Tag!I15) -> -0.006393402748 | K18: Xmtch SLI | L18: 0.0001992074344 | M18: -5.26001293e-06 | N18: 0.0005958594514 | O18: 0.0004406977706 | P18: 0.0002970328683 | Q18: 0.0006012831055 | R18: -0.0004565819919 | S18: -3.101970726e-05
A19: 2008-09-19 | B19: =LN(Kurse_Tag!B17/Kurse_Tag!B16) -> 0.009202518931 | C19: =LN(Kurse_Tag!C17/Kurse_Tag!C16) -> -0.003927991957 | D19: =LN(Kurse_Tag!D17/Kurse_Tag!D16) -> 0.06774466352 | E19: =LN(Kurse_Tag!E17/Kurse_Tag!E16) -> 0.09406064822 | F19: =LN(Kurse_Tag!F17/Kurse_Tag!F16) -> 0.02545293399 | G19: =LN(Kurse_Tag!G17/Kurse_Tag!G16) -> 0.06687961307 | H19: =LN(Kurse_Tag!H17/Kurse_Tag!H16) -> -0.03990206972 | I19: =LN(Kurse_Tag!I17/Kurse_Tag!I16) -> -0.008334960168 | K19: UBS MSCI Japan | L19: 0.0003002616993 | M19: 8.242014659e-05 | N19: 0.0004406977706 | O19: 0.0008593594654 | P19: 0.0002884646201 | Q19: 0.0005308802682 | R19: -0.0003471909819 | S19: -1.16382751e-05
A20: 2008-09-22 | B20: =LN(Kurse_Tag!B18/Kurse_Tag!B17) -> 0.05567300243 | C20: =LN(Kurse_Tag!C18/Kurse_Tag!C17) -> 0.01173798935 | D20: =LN(Kurse_Tag!D18/Kurse_Tag!D17) -> -0.001418775362 | E20: =LN(Kurse_Tag!E18/Kurse_Tag!E17) -> -0.06428848988 | F20: =LN(Kurse_Tag!F18/Kurse_Tag!F17) -> -0.01141471831 | G20: =LN(Kurse_Tag!G18/Kurse_Tag!G17) -> -0.01220395498 | H20: =LN(Kurse_Tag!H18/Kurse_Tag!H17) -> -0.003936518338 | I20: =LN(Kurse_Tag!I18/Kurse_Tag!I17) -> -0.02085511172 | K20: Nestlé | L20: 9.366252163e-05 | M20: -8.957111831e-06 | N20: 0.0002970328683 | O20: 0.0002884646201 | P20: 0.0003746660228 | Q20: 0.0003021392478 | R20: -0.0002025922047 | S20: -1.007234354e-05
A21: 2008-09-23 | B21: =LN(Kurse_Tag!B19/Kurse_Tag!B18) -> 0.006477172699 | C21: =LN(Kurse_Tag!C19/Kurse_Tag!C18) -> 0.007749473719 | D21: =LN(Kurse_Tag!D19/Kurse_Tag!D18) -> -0.02978125954 | E21: =LN(Kurse_Tag!E19/Kurse_Tag!E18) -> -0.01748531434 | F21: =LN(Kurse_Tag!F19/Kurse_Tag!F18) -> -0.0236476483 | G21: =LN(Kurse_Tag!G19/Kurse_Tag!G18) -> -0.002561345594 | H21: =LN(Kurse_Tag!H19/Kurse_Tag!H18) -> 0.01383470687 | I21: =LN(Kurse_Tag!I19/Kurse_Tag!I18) -> -0.0005828638207 | K21: DB X-TR-Dax | L21: 0.0002867199221 | M21: 3.126514982e-05 | N21: 0.0006012831055 | O21: 0.0005308802682 | P21: 0.0003021392478 | Q21: 0.0008966213389 | R21: -0.0005451552673 | S21: -2.855325579e-05
A22: 2008-09-24 | B22: =LN(Kurse_Tag!B20/Kurse_Tag!B19) -> -0.003593248566 | C22: =LN(Kurse_Tag!C20/Kurse_Tag!C19) -> -0.01002109566 | D22: =LN(Kurse_Tag!D20/Kurse_Tag!D19) -> -0.007143936044 | E22: =LN(Kurse_Tag!E20/Kurse_Tag!E19) -> 0.01106474654 | F22: =LN(Kurse_Tag!F20/Kurse_Tag!F19) -> -0.01693520576 | G22: =LN(Kurse_Tag!G20/Kurse_Tag!G19) -> -0.01404981789 | H22: =LN(Kurse_Tag!H20/Kurse_Tag!H19) -> 0.005365484002 | I22: =LN(Kurse_Tag!I20/Kurse_Tag!I19) -> -0.00623844503 | K22: DB Sh. Dax | L22: -0.0001579521339 | M22: 2.582821543e-05 | N22: -0.0004565819919 | O22: -0.0003471909819 | P22: -0.0002025922047 | Q22: -0.0005451552673 | R22: 0.0005521468612 | S22: 2.956974023e-05
A23: 2008-09-25 | B23: =LN(Kurse_Tag!B21/Kurse_Tag!B20) -> -0.0007202016876 | C23: =LN(Kurse_Tag!C21/Kurse_Tag!C20) -> -0.01869213301 | D23: =LN(Kurse_Tag!D21/Kurse_Tag!D20) -> 0.02128049989 | E23: =LN(Kurse_Tag!E21/Kurse_Tag!E20) -> 0.001072961476 | F23: =LN(Kurse_Tag!F21/Kurse_Tag!F20) -> 0.01819385916 | G23: =LN(Kurse_Tag!G21/Kurse_Tag!G20) -> 0.01814482771 | H23: =LN(Kurse_Tag!H21/Kurse_Tag!H20) -> -0.004869000748 | I23: =LN(Kurse_Tag!I21/Kurse_Tag!I20) -> 0.004098366392 | K23: JPY/CHF | L23: -2.187650761e-05 | M23: 6.926767861e-06 | N23: -3.101970726e-05 | O23: -1.16382751e-05 | P23: -1.007234354e-05 | Q23: -2.855325579e-05 | R23: 2.956974023e-05 | S23: 0.0001188004278
A24: 2008-09-26 | B24: =LN(Kurse_Tag!B22/Kurse_Tag!B21) -> 0.01430639565 | C24: =LN(Kurse_Tag!C22/Kurse_Tag!C21) -> 0.0254915764 | D24: =LN(Kurse_Tag!D22/Kurse_Tag!D21) -> -0.01560033576 | E24: =LN(Kurse_Tag!E22/Kurse_Tag!E21) -> -0.004837418732 | F24: =LN(Kurse_Tag!F22/Kurse_Tag!F21) -> -0.007998358784 | G24: =LN(Kurse_Tag!G22/Kurse_Tag!G21) -> -0.01700107921 | H24: =LN(Kurse_Tag!H22/Kurse_Tag!H21) -> 0.0004135478327 | I24: =LN(Kurse_Tag!I22/Kurse_Tag!I21) -> -0.002339866525
A25: 2008-09-29 | B25: =LN(Kurse_Tag!B23/Kurse_Tag!B22) -> -0.01719240054 | C25: =LN(Kurse_Tag!C23/Kurse_Tag!C22) -> 0.01250617551 | D25: =LN(Kurse_Tag!D23/Kurse_Tag!D22) -> -0.05716990288 | E25: =LN(Kurse_Tag!E23/Kurse_Tag!E22) -> -0.02675562275 | F25: =LN(Kurse_Tag!F23/Kurse_Tag!F22) -> -0.01662088124 | G25: =LN(Kurse_Tag!G23/Kurse_Tag!G22) -> -0.04723780014 | H25: =LN(Kurse_Tag!H23/Kurse_Tag!H22) -> 0 | I25: =LN(Kurse_Tag!I23/Kurse_Tag!I22) -> 0.00477141954
A26: 2008-09-30 | B26: =LN(Kurse_Tag!B24/Kurse_Tag!B23) -> -0.04205710185 | C26: =LN(Kurse_Tag!C24/Kurse_Tag!C23) -> 0.002228235842 | D26: =LN(Kurse_Tag!D24/Kurse_Tag!D23) -> 0.01120776731 | E26: =LN(Kurse_Tag!E24/Kurse_Tag!E23) -> 0.01755393401 | F26: =LN(Kurse_Tag!F24/Kurse_Tag!F23) -> 0.03504686318 | G26: =LN(Kurse_Tag!G24/Kurse_Tag!G23) -> -0.01559100532 | H26: =LN(Kurse_Tag!H24/Kurse_Tag!H23) -> 0.0463734137 | I26: =LN(Kurse_Tag!I24/Kurse_Tag!I23) -> 0.006584067162 | L26: 90-Tage Korrelationen basierend Tageskurs
A27: 2008-10-01 | B27: =LN(Kurse_Tag!B25/Kurse_Tag!B24) -> 0.009748858613 | C27: =LN(Kurse_Tag!C25/Kurse_Tag!C24) -> 0.003174605841 | D27: =LN(Kurse_Tag!D25/Kurse_Tag!D24) -> 0.003470453621 | E27: =LN(Kurse_Tag!E25/Kurse_Tag!E24) -> 0.009740336748 | F27: =LN(Kurse_Tag!F25/Kurse_Tag!F24) -> 0.004553930453 | G27: =LN(Kurse_Tag!G25/Kurse_Tag!G24) -> 0.003645003207 | H27: =LN(Kurse_Tag!H25/Kurse_Tag!H24) -> 0 | I27: =LN(Kurse_Tag!I25/Kurse_Tag!I24) -> 0.01437219335 | L27: ZKB Silver | M27: ZKB Gold | N27: Xmtch SLI | O27: UBS MSCI Japan | P27: Nestlé | Q27: DB X-TR-Dax | R27: DB Sh. Dax | S27: JPY/CHF
A28: 2008-10-02 | B28: =LN(Kurse_Tag!B26/Kurse_Tag!B25) -> -0.09218075321 | C28: =LN(Kurse_Tag!C26/Kurse_Tag!C25) -> -0.04207740451 | D28: =LN(Kurse_Tag!D26/Kurse_Tag!D25) -> 0.001730720717 | E28: =LN(Kurse_Tag!E26/Kurse_Tag!E25) -> -0.01875309747 | F28: =LN(Kurse_Tag!F26/Kurse_Tag!F25) -> -0.009545621351 | G28: =LN(Kurse_Tag!G26/Kurse_Tag!G25) -> -0.02195930627 | H28: =LN(Kurse_Tag!H26/Kurse_Tag!H25) -> -0.008483025461 | I28: =LN(Kurse_Tag!I26/Kurse_Tag!I25) -> 0.005313105478 | K28: ZKB Silver | L28: =CorrMatrix(B164:I253) -> 1 | M28: 0.7202458987 | N28: 0.3674923807 | O28: 0.2828312456 | P28: 0.0533131184 | Q28: 0.40633189 | R28: -0.3264082629 | S28: -0.1476802234
A29: 2008-10-03 | B29: =LN(Kurse_Tag!B27/Kurse_Tag!B26) -> 0.03695199527 | C29: =LN(Kurse_Tag!C27/Kurse_Tag!C26) -> 0.008230499137 | D29: =LN(Kurse_Tag!D27/Kurse_Tag!D26) -> 0.01203189279 | E29: =LN(Kurse_Tag!E27/Kurse_Tag!E26) -> -0.02528263573 | F29: =LN(Kurse_Tag!F27/Kurse_Tag!F26) -> -0.009637619119 | G29: =LN(Kurse_Tag!G27/Kurse_Tag!G26) -> 0.02284094618 | H29: =LN(Kurse_Tag!H27/Kurse_Tag!H26) -> -0.01322399555 | I29: =LN(Kurse_Tag!I27/Kurse_Tag!I26) -> 0.0132539422 | K29: ZKB Gold | L29: 0.7202458987 | M29: 1 | N29: 0.1808289742 | O29: 0.1758996509 | P29: 0.0813802976 | Q29: 0.3055878846 | R29: -0.0889779225 | S29: -0.02386598216
A30: 2008-10-06 | B30: =LN(Kurse_Tag!B28/Kurse_Tag!B27) -> -0.02636988594 | C30: =LN(Kurse_Tag!C28/Kurse_Tag!C27) -> 0.03985103148 | D30: =LN(Kurse_Tag!D28/Kurse_Tag!D27) -> -0.05633108842 | E30: =LN(Kurse_Tag!E28/Kurse_Tag!E27) -> -0.06480117052 | F30: =LN(Kurse_Tag!F28/Kurse_Tag!F27) -> -0.04742267855 | G30: =LN(Kurse_Tag!G28/Kurse_Tag!G27) -> -0.08251510132 | H30: =LN(Kurse_Tag!H28/Kurse_Tag!H27) -> 0.04827138732 | I30: =LN(Kurse_Tag!I28/Kurse_Tag!I27) -> 0.002611211033 | K30: Xmtch SLI | L30: 0.3674923807 | M30: 0.1808289742 | N30: 1 | O30: 0.3499649743 | P30: 0.2464745976 | Q30: 0.6847200685 | R30: -0.8130390102 | S30: -0.09061608682
A31: 2008-10-07 | B31: =LN(Kurse_Tag!B29/Kurse_Tag!B28) -> 0.0208340869 | C31: =LN(Kurse_Tag!C29/Kurse_Tag!C28) -> 0.01003143208 | D31: =LN(Kurse_Tag!D29/Kurse_Tag!D28) -> -0.002661699735 | E31: =LN(Kurse_Tag!E29/Kurse_Tag!E28) -> 0.01844192659 | F31: =LN(Kurse_Tag!F29/Kurse_Tag!F28) -> 0.01446442049 | G31: =LN(Kurse_Tag!G29/Kurse_Tag!G28) -> 0.0003588302174 | H31: =LN(Kurse_Tag!H29/Kurse_Tag!H28) -> 0.005901983177 | I31: =LN(Kurse_Tag!I29/Kurse_Tag!I28) -> 0.02801046341 | K31: UBS MSCI Japan | L31: 0.2828312456 | M31: 0.1758996509 | N31: 0.3499649743 | O31: 1 | P31: 0.1249256019 | Q31: 0.3082110001 | R31: -0.3114968878 | S31: 0.1163670215
A32: 2008-10-08 | B32: =LN(Kurse_Tag!B30/Kurse_Tag!B29) -> 0.01495502095 | C32: =LN(Kurse_Tag!C30/Kurse_Tag!C29) -> 0.03041241912 | D32: =LN(Kurse_Tag!D30/Kurse_Tag!D29) -> -0.06610335537 | E32: =LN(Kurse_Tag!E30/Kurse_Tag!E29) -> -0.04552406249 | F32: =LN(Kurse_Tag!F30/Kurse_Tag!F29) -> -0.03228226381 | G32: =LN(Kurse_Tag!G30/Kurse_Tag!G29) -> -0.0756177677 | H32: =LN(Kurse_Tag!H30/Kurse_Tag!H29) -> 0.07449547281 | I32: =LN(Kurse_Tag!I30/Kurse_Tag!I29) -> 0.01420759444 | K32: Nestlé | L32: 0.0533131184 | M32: 0.0813802976 | N32: 0.2464745976 | O32: 0.1249256019 | P32: 1 | Q32: 0.2141135059 | R32: -0.1688147768 | S32: -0.2126629398
A33: 2008-10-09 | B33: =LN(Kurse_Tag!B31/Kurse_Tag!B30) -> 0.006230549751 | C33: =LN(Kurse_Tag!C31/Kurse_Tag!C30) -> -0.02233533264 | D33: =LN(Kurse_Tag!D31/Kurse_Tag!D30) -> -0.02876981972 | E33: =LN(Kurse_Tag!E31/Kurse_Tag!E30) -> -0.0136648089 | F33: =LN(Kurse_Tag!F31/Kurse_Tag!F30) -> -0.05117502817 | G33: =LN(Kurse_Tag!G31/Kurse_Tag!G30) -> -0.03384373368 | H33: =LN(Kurse_Tag!H31/Kurse_Tag!H30) -> 0.03368871779 | I33: =LN(Kurse_Tag!I31/Kurse_Tag!I30) -> 0.00826928644 | K33: DB X-TR-Dax | L33: 0.40633189 | M33: 0.3055878846 | N33: 0.6847200685 | O33: 0.3082110001 | P33: 0.2141135059 | Q33: 1 | R33: -0.6882791895 | S33: -0.1311977262
A34: 2008-10-10 | B34: =LN(Kurse_Tag!B32/Kurse_Tag!B31) -> -0.03154835773 | C34: =LN(Kurse_Tag!C32/Kurse_Tag!C31) -> -0.007141778531 | D34: =LN(Kurse_Tag!D32/Kurse_Tag!D31) -> -0.06927758807 | E34: =LN(Kurse_Tag!E32/Kurse_Tag!E31) -> -0.1240172498 | F34: =LN(Kurse_Tag!F32/Kurse_Tag!F31) -> -0.06902666041 | G34: =LN(Kurse_Tag!G32/Kurse_Tag!G31) -> -0.06732648217 | H34: =LN(Kurse_Tag!H32/Kurse_Tag!H31) -> 0.04754829336 | I34: =LN(Kurse_Tag!I32/Kurse_Tag!I31) -> -0.004793192205 | K34: DB Sh. Dax | L34: -0.3264082629 | M34: -0.0889779225 | N34: -0.8130390102 | O34: -0.3114968878 | P34: -0.1688147768 | Q34: -0.6882791895 | R34: 1 | S34: 0.1106472923
A35: 2008-10-13 | B35: =LN(Kurse_Tag!B33/Kurse_Tag!B32) -> -0.09051400754 | C35: =LN(Kurse_Tag!C33/Kurse_Tag!C32) -> -0.06202791198 | D35: =LN(Kurse_Tag!D33/Kurse_Tag!D32) -> 0.08313032109 | E35: =LN(Kurse_Tag!E33/Kurse_Tag!E32) -> 0.1126963742 | F35: =LN(Kurse_Tag!F33/Kurse_Tag!F32) -> 0.07844292584 | G35: =LN(Kurse_Tag!G33/Kurse_Tag!G32) -> 0.0961272104 | H35: =LN(Kurse_Tag!H33/Kurse_Tag!H32) -> -0.08714218999 | I35: =LN(Kurse_Tag!I33/Kurse_Tag!I32) -> 0.00726953556 | K35: JPY/CHF | L35: -0.1476802234 | M35: -0.02386598216 | N35: -0.09061608682 | O35: 0.1163670215 | P35: -0.2126629398 | Q35: -0.1311977262 | R35: 0.1106472923 | S35: 1
A36: 2008-10-14 | B36: =LN(Kurse_Tag!B34/Kurse_Tag!B33) -> 0.03617965658 | C36: =LN(Kurse_Tag!C34/Kurse_Tag!C33) -> 0.009569451016 | D36: =LN(Kurse_Tag!D34/Kurse_Tag!D33) -> 0.05455386889 | E36: =LN(Kurse_Tag!E34/Kurse_Tag!E33) -> 0.04876004414 | F36: =LN(Kurse_Tag!F34/Kurse_Tag!F33) -> 0.04892404194 | G36: =LN(Kurse_Tag!G34/Kurse_Tag!G33) -> 0.03189452642 | H36: =LN(Kurse_Tag!H34/Kurse_Tag!H33) -> -0.06371111984 | I36: =LN(Kurse_Tag!I34/Kurse_Tag!I33) -> -0.0043376335
A37: 2008-10-15 | B37: =LN(Kurse_Tag!B35/Kurse_Tag!B34) -> -0.05387923368 | C37: =LN(Kurse_Tag!C35/Kurse_Tag!C34) -> 0.0006500349869 | D37: =LN(Kurse_Tag!D35/Kurse_Tag!D34) -> -0.05686868473 | E37: =LN(Kurse_Tag!E35/Kurse_Tag!E34) -> -0.06856267144 | F37: =LN(Kurse_Tag!F35/Kurse_Tag!F34) -> -0.06784608237 | G37: =LN(Kurse_Tag!G35/Kurse_Tag!G34) -> -0.06886731433 | H37: =LN(Kurse_Tag!H35/Kurse_Tag!H34) -> 0.0569809448 | I37: =LN(Kurse_Tag!I35/Kurse_Tag!I34) -> -0.01708984464
A38: 2008-10-16 | B38: =LN(Kurse_Tag!B36/Kurse_Tag!B35) -> -0.09156719353 | C38: =LN(Kurse_Tag!C36/Kurse_Tag!C35) -> -0.05220263185 | D38: =LN(Kurse_Tag!D36/Kurse_Tag!D35) -> -0.05722657784 | E38: =LN(Kurse_Tag!E36/Kurse_Tag!E35) -> -0.06359273198 | F38: =LN(Kurse_Tag!F36/Kurse_Tag!F35) -> -0.02318944492 | G38: =LN(Kurse_Tag!G36/Kurse_Tag!G35) -> -0.06861821552 | H38: =LN(Kurse_Tag!H36/Kurse_Tag!H35) -> 0.02798128364 | I38: =LN(Kurse_Tag!I36/Kurse_Tag!I35) -> 0.01103892744 | L38: 1-Jahr Korrelationen basierend Wochenkurs
A39: 2008-10-17 | B39: =LN(Kurse_Tag!B37/Kurse_Tag!B36) -> -0.007858586613 | C39: =LN(Kurse_Tag!C37/Kurse_Tag!C36) -> -0.01990636712 | D39: =LN(Kurse_Tag!D37/Kurse_Tag!D36) -> 0.02663595725 | E39: =LN(Kurse_Tag!E37/Kurse_Tag!E36) -> 0.03943223585 | F39: =LN(Kurse_Tag!F37/Kurse_Tag!F36) -> 0.07075085612 | G39: =LN(Kurse_Tag!G37/Kurse_Tag!G36) -> 0.02039286356 | H39: =LN(Kurse_Tag!H37/Kurse_Tag!H36) -> 0.01765668166 | I39: =LN(Kurse_Tag!I37/Kurse_Tag!I36) -> 0.01047687822 | L39: ZKB Silver | M39: ZKB Gold | N39: Xmtch SLI | O39: UBS MSCI Japan | P39: Nestlé | Q39: DB X-TR-Dax | R39: DB Sh. Dax | S39: JPY/CHF
A40: 2008-10-20 | B40: =LN(Kurse_Tag!B38/Kurse_Tag!B37) -> 0.034887259 | C40: =LN(Kurse_Tag!C38/Kurse_Tag!C37) -> 0.02301356796 | D40: =LN(Kurse_Tag!D38/Kurse_Tag!D37) -> 0.04462836118 | E40: =LN(Kurse_Tag!E38/Kurse_Tag!E37) -> 0.1002250782 | F40: =LN(Kurse_Tag!F38/Kurse_Tag!F37) -> 0.03093723529 | G40: =LN(Kurse_Tag!G38/Kurse_Tag!G37) -> 0.04147677728 | H40: =LN(Kurse_Tag!H38/Kurse_Tag!H37) -> -0.02946203273 | I40: =LN(Kurse_Tag!I38/Kurse_Tag!I37) -> -0.01110185034 | K40: ZKB Silver | L40: =CorrMatrix(Korrelation_Woche!$B$2:'Korrelation_Woche'!$I$50) -> 1 | M40: 0.7311556993 | N40: 0.2578315595 | O40: 0.2615281351 | P40: 0.02431299181 | Q40: 0.3087019592 | R40: -0.1071536999 | S40: -0.133753159
A41: 2008-10-21 | B41: =LN(Kurse_Tag!B39/Kurse_Tag!B38) -> 0.04652001563 | C41: =LN(Kurse_Tag!C39/Kurse_Tag!C38) -> -0.01756108765 | D41: =LN(Kurse_Tag!D39/Kurse_Tag!D38) -> 0.003763475959 | E41: =LN(Kurse_Tag!E39/Kurse_Tag!E38) -> 0.005961269516 | F41: =LN(Kurse_Tag!F39/Kurse_Tag!F38) -> -0.003981425299 | G41: =LN(Kurse_Tag!G39/Kurse_Tag!G38) -> -0.0129491348 | H41: =LN(Kurse_Tag!H39/Kurse_Tag!H38) -> 0.00373937713 | I41: =LN(Kurse_Tag!I39/Kurse_Tag!I38) -> 0.0005357142985 | K41: ZKB Gold | L41: 0.7311556993 | M41: 1 | N41: -0.05418741834 | O41: -0.04129915482 | P41: -0.1666338317 | Q41: 0.06843103337 | R41: 0.03697852035 | S41: 0.07188122651
A42: 2008-10-22 | B42: =LN(Kurse_Tag!B40/Kurse_Tag!B39) -> 0 | C42: =LN(Kurse_Tag!C40/Kurse_Tag!C39) -> -0.02504348979 | D42: =LN(Kurse_Tag!D40/Kurse_Tag!D39) -> -0.04505213938 | E42: =LN(Kurse_Tag!E40/Kurse_Tag!E39) -> -0.08202585161 | F42: =LN(Kurse_Tag!F40/Kurse_Tag!F39) -> -0.04905615699 | G42: =LN(Kurse_Tag!G40/Kurse_Tag!G39) -> -0.05223965189 | H42: =LN(Kurse_Tag!H40/Kurse_Tag!H39) -> 0.02819043859 | I42: =LN(Kurse_Tag!I40/Kurse_Tag!I39) -> 0.01541217398 | K42: Xmtch SLI | L42: 0.2578315595 | M42: -0.05418741834 | N42: 1 | O42: 0.7042742117 | P42: 0.5256035437 | Q42: 0.8783717858 | R42: -0.7703116928 | S42: -0.4596510069
A43: 2008-10-23 | B43: =LN(Kurse_Tag!B41/Kurse_Tag!B40) -> 0.003629768051 | C43: =LN(Kurse_Tag!C41/Kurse_Tag!C40) -> -0.03700733714 | D43: =LN(Kurse_Tag!D41/Kurse_Tag!D40) -> -0.0216667118 | E43: =LN(Kurse_Tag!E41/Kurse_Tag!E40) -> 0.0254790853 | F43: =LN(Kurse_Tag!F41/Kurse_Tag!F40) -> 0.03297001924 | G43: =LN(Kurse_Tag!G41/Kurse_Tag!G40) -> -0.01353436944 | H43: =LN(Kurse_Tag!H41/Kurse_Tag!H40) -> 0.03854636877 | I43: =LN(Kurse_Tag!I41/Kurse_Tag!I40) -> 0.02654102018 | K43: UBS MSCI Japan | L43: 0.2615281351 | M43: -0.04129915482 | N43: 0.7042742117 | O43: 1 | P43: 0.5444731567 | Q43: 0.6676683672 | R43: -0.521441197 | S43: -0.1186946654
A44: 2008-10-24 | B44: =LN(Kurse_Tag!B42/Kurse_Tag!B41) -> -0.1120251874 | C44: =LN(Kurse_Tag!C42/Kurse_Tag!C41) -> -0.02281140445 | D44: =LN(Kurse_Tag!D42/Kurse_Tag!D41) -> -0.05233135011 | E44: =LN(Kurse_Tag!E42/Kurse_Tag!E41) -> -0.07507602644 | F44: =LN(Kurse_Tag!F42/Kurse_Tag!F41) -> -0.02185879381 | G44: =LN(Kurse_Tag!G42/Kurse_Tag!G41) -> -0.0992740696 | H44: =LN(Kurse_Tag!H42/Kurse_Tag!H41) -> 0.01490808309 | I44: =LN(Kurse_Tag!I42/Kurse_Tag!I41) -> 0.02334933925 | K44: Nestlé | L44: 0.02431299181 | M44: -0.1666338317 | N44: 0.5256035437 | O44: 0.5444731567 | P44: 1 | Q44: 0.343385759 | R44: -0.2719915644 | S44: -0.2990975143
A45: 2008-10-27 | B45: =LN(Kurse_Tag!B43/Kurse_Tag!B42) -> 0.01906731123 | C45: =LN(Kurse_Tag!C43/Kurse_Tag!C42) -> 0.03542284756 | D45: =LN(Kurse_Tag!D43/Kurse_Tag!D42) -> -0.002310655714 | E45: =LN(Kurse_Tag!E43/Kurse_Tag!E42) -> -0.006120386327 | F45: =LN(Kurse_Tag!F43/Kurse_Tag!F42) -> -0.01671348097 | G45: =LN(Kurse_Tag!G43/Kurse_Tag!G42) -> 0.01222273177 | H45: =LN(Kurse_Tag!H43/Kurse_Tag!H42) -> -0.06066924249 | I45: =LN(Kurse_Tag!I43/Kurse_Tag!I42) -> 0.03701846623 | K45: DB X-TR-Dax | L45: 0.3087019592 | M45: 0.06843103337 | N45: 0.8783717858 | O45: 0.6676683672 | P45: 0.343385759 | Q45: 1 | R45: -0.8513006157 | S45: -0.4274987258
A46: 2008-10-28 | B46: =LN(Kurse_Tag!B44/Kurse_Tag!B43) -> -0.01805465291 | C46: =LN(Kurse_Tag!C44/Kurse_Tag!C43) -> 0.01099717828 | D46: =LN(Kurse_Tag!D44/Kurse_Tag!D43) -> -0.01176408112 | E46: =LN(Kurse_Tag!E44/Kurse_Tag!E43) -> -0.0329376282 | F46: =LN(Kurse_Tag!F44/Kurse_Tag!F43) -> 0.01809374344 | G46: =LN(Kurse_Tag!G44/Kurse_Tag!G43) -> 0.06107585142 | H46: =LN(Kurse_Tag!H44/Kurse_Tag!H43) -> -0.03558894624 | I46: =LN(Kurse_Tag!I44/Kurse_Tag!I43) -> 0.003378653363 | K46: DB Sh. Dax | L46: -0.1071536999 | M46: 0.03697852035 | N46: -0.7703116928 | O46: -0.521441197 | P46: -0.2719915644 | Q46: -0.8513006157 | R46: 1 | S46: 0.4862281775
A47: 2008-10-29 | B47: =LN(Kurse_Tag!B45/Kurse_Tag!B44) -> 0.1028269445 | C47: =LN(Kurse_Tag!C45/Kurse_Tag!C44) -> 0.008350021287 | D47: =LN(Kurse_Tag!D45/Kurse_Tag!D44) -> 0.07053481169 | E47: =LN(Kurse_Tag!E45/Kurse_Tag!E44) -> 0.08542393508 | F47: =LN(Kurse_Tag!F45/Kurse_Tag!F44) -> 0.03523399691 | G47: =LN(Kurse_Tag!G45/Kurse_Tag!G44) -> 0.05996982987 | H47: =LN(Kurse_Tag!H45/Kurse_Tag!H44) -> -0.06601643612 | I47: =LN(Kurse_Tag!I45/Kurse_Tag!I44) -> -0.01562089147 | K47: JPY/CHF | L47: -0.133753159 | M47: 0.07188122651 | N47: -0.4596510069 | O47: -0.1186946654 | P47: -0.2990975143 | Q47: -0.4274987258 | R47: 0.4862281775 | S47: 1
A48: 2008-10-30 | B48: =LN(Kurse_Tag!B46/Kurse_Tag!B45) -> -0.03437402983 | C48: =LN(Kurse_Tag!C46/Kurse_Tag!C45) -> -0.0213580663 | D48: =LN(Kurse_Tag!D46/Kurse_Tag!D45) -> -0.001455251288 | E48: =LN(Kurse_Tag!E46/Kurse_Tag!E45) -> 0.04925237818 | F48: =LN(Kurse_Tag!F46/Kurse_Tag!F45) -> -0.0265362996 | G48: =LN(Kurse_Tag!G46/Kurse_Tag!G45) -> 0.03465658923 | H48: =LN(Kurse_Tag!H46/Kurse_Tag!H45) -> -0.009048447596 | I48: =LN(Kurse_Tag!I46/Kurse_Tag!I45) -> -0.03892383252
A49: 2008-10-31 | B49: =LN(Kurse_Tag!B47/Kurse_Tag!B46) -> 0.03892984637 | C49: =LN(Kurse_Tag!C47/Kurse_Tag!C46) -> -0.000790694966 | D49: =LN(Kurse_Tag!D47/Kurse_Tag!D46) -> 0.04415623558 | E49: =LN(Kurse_Tag!E47/Kurse_Tag!E46) -> -0.008042109536 | F49: =LN(Kurse_Tag!F47/Kurse_Tag!F46) -> 0.02520385436 | G49: =LN(Kurse_Tag!G47/Kurse_Tag!G46) -> -0.01377432246 | H49: =LN(Kurse_Tag!H47/Kurse_Tag!H46) -> -0.003163216772 | I49: =LN(Kurse_Tag!I47/Kurse_Tag!I46) -> -0.0225576699
A50: 2008-11-03 | B50: =LN(Kurse_Tag!B48/Kurse_Tag!B47) -> 0.005068949324 | C50: =LN(Kurse_Tag!C48/Kurse_Tag!C47) -> 0.002738898476 | D50: =LN(Kurse_Tag!D48/Kurse_Tag!D47) -> 0.01954759264 | E50: =LN(Kurse_Tag!E48/Kurse_Tag!E47) -> 0.03868306267 | F50: =LN(Kurse_Tag!F48/Kurse_Tag!F47) -> 0.02023826224 | G50: =LN(Kurse_Tag!G48/Kurse_Tag!G47) -> 0.02776626438 | H50: =LN(Kurse_Tag!H48/Kurse_Tag!H47) -> 0.001544282602 | I50: =LN(Kurse_Tag!I48/Kurse_Tag!I47) -> 0.0217940844
A51: 2008-11-04 | B51: =LN(Kurse_Tag!B49/Kurse_Tag!B48) -> 0.05148322018 | C51: =LN(Kurse_Tag!C49/Kurse_Tag!C48) -> 0.03696989114 | D51: =LN(Kurse_Tag!D49/Kurse_Tag!D48) -> 0.03798490615 | E51: =LN(Kurse_Tag!E49/Kurse_Tag!E48) -> 0.04155073998 | F51: =LN(Kurse_Tag!F49/Kurse_Tag!F48) -> 0.03129944672 | G51: =LN(Kurse_Tag!G49/Kurse_Tag!G48) -> 0.05994990349 | H51: =LN(Kurse_Tag!H49/Kurse_Tag!H48) -> -0.02634508434 | I51: =LN(Kurse_Tag!I49/Kurse_Tag!I48) -> -0.00612976549
A52: 2008-11-05 | B52: =LN(Kurse_Tag!B50/Kurse_Tag!B49) -> -0.003442344191 | C52: =LN(Kurse_Tag!C50/Kurse_Tag!C49) -> -0.01071438821 | D52: =LN(Kurse_Tag!D50/Kurse_Tag!D49) -> -0.02823978654 | E52: =LN(Kurse_Tag!E50/Kurse_Tag!E49) -> -0.0279006764 | F52: =LN(Kurse_Tag!F50/Kurse_Tag!F49) -> -0.01231699581 | G52: =LN(Kurse_Tag!G50/Kurse_Tag!G49) -> 0.007594011941 | H52: =LN(Kurse_Tag!H50/Kurse_Tag!H49) -> 0.006789321098 | I52: =LN(Kurse_Tag!I50/Kurse_Tag!I49) -> 0.008079992928
A53: 2008-11-06 | B53: =LN(Kurse_Tag!B51/Kurse_Tag!B50) -> 0.01709443336 | C53: =LN(Kurse_Tag!C51/Kurse_Tag!C50) -> -0.003597126181 | D53: =LN(Kurse_Tag!D51/Kurse_Tag!D50) -> -0.05493212684 | E53: =LN(Kurse_Tag!E51/Kurse_Tag!E50) -> -0.03417598794 | F53: =LN(Kurse_Tag!F51/Kurse_Tag!F50) -> -0.02072613052 | G53: =LN(Kurse_Tag!G51/Kurse_Tag!G50) -> -0.0953101798 | H53: =LN(Kurse_Tag!H51/Kurse_Tag!H50) -> 0.0339566249 | I53: =LN(Kurse_Tag!I51/Kurse_Tag!I50) -> -0.005265852155
A54: 2008-11-07 | B54: =LN(Kurse_Tag!B52/Kurse_Tag!B51) -> -0.03010980147 | C54: =LN(Kurse_Tag!C52/Kurse_Tag!C51) -> -0.002706361598 | D54: =LN(Kurse_Tag!D52/Kurse_Tag!D51) -> 0.01665819134 | E54: =LN(Kurse_Tag!E52/Kurse_Tag!E51) -> -0.0116565737 | F54: =LN(Kurse_Tag!F52/Kurse_Tag!F51) -> 0.01644346873 | G54: =LN(Kurse_Tag!G52/Kurse_Tag!G51) -> 0.0136375142 | H54: =LN(Kurse_Tag!H52/Kurse_Tag!H51) -> 0.01134313433 | I54: =LN(Kurse_Tag!I52/Kurse_Tag!I51) -> 0.01386914409
A55: 2008-11-10 | B55: =LN(Kurse_Tag!B53/Kurse_Tag!B52) -> 0.009561133244 | C55: =LN(Kurse_Tag!C53/Kurse_Tag!C52) -> 0.01872512119 | D55: =LN(Kurse_Tag!D53/Kurse_Tag!D52) -> 0.0133839647 | E55: =LN(Kurse_Tag!E53/Kurse_Tag!E52) -> 0.05375862692 | F55: =LN(Kurse_Tag!F53/Kurse_Tag!F52) -> 0.01024774126 | G55: =LN(Kurse_Tag!G53/Kurse_Tag!G52) -> 0.03031964377 | H55: =LN(Kurse_Tag!H53/Kurse_Tag!H52) -> -0.02258565265 | I55: =LN(Kurse_Tag!I53/Kurse_Tag!I52) -> 0.007530156064
A56: 2008-11-11 | B56: =LN(Kurse_Tag!B54/Kurse_Tag!B53) -> -0.05421140698 | C56: =LN(Kurse_Tag!C54/Kurse_Tag!C53) -> -0.02579613243 | D56: =LN(Kurse_Tag!D54/Kurse_Tag!D53) -> -0.04746734007 | E56: =LN(Kurse_Tag!E54/Kurse_Tag!E53) -> -0.06961963428 | F56: =LN(Kurse_Tag!F54/Kurse_Tag!F53) -> -0.0232068859 | G56: =LN(Kurse_Tag!G54/Kurse_Tag!G53) -> -0.06568952397 | H56: =LN(Kurse_Tag!H54/Kurse_Tag!H53) -> 0.04061892822 | I56: =LN(Kurse_Tag!I54/Kurse_Tag!I53) -> -0.009211252534
A57: 2008-11-12 | B57: =LN(Kurse_Tag!B55/Kurse_Tag!B54) -> -0.03060044045 | C57: =LN(Kurse_Tag!C55/Kurse_Tag!C54) -> -0.01614121618 | D57: =LN(Kurse_Tag!D55/Kurse_Tag!D54) -> -0.04145863792 | E57: =LN(Kurse_Tag!E55/Kurse_Tag!E54) -> -0.006289328908 | F57: =LN(Kurse_Tag!F55/Kurse_Tag!F54) -> -0.02197890672 | G57: =LN(Kurse_Tag!G55/Kurse_Tag!G54) -> -0.04641877544 | H57: =LN(Kurse_Tag!H55/Kurse_Tag!H54) -> -0.01428064433 | I57: =LN(Kurse_Tag!I55/Kurse_Tag!I54) -> 0.01461464903
A58: 2008-11-13 | B58: =LN(Kurse_Tag!B56/Kurse_Tag!B55) -> -0.008510689668 | C58: =LN(Kurse_Tag!C56/Kurse_Tag!C55) -> 0.009961315619 | D58: =LN(Kurse_Tag!D56/Kurse_Tag!D55) -> 0.004790126391 | E58: =LN(Kurse_Tag!E56/Kurse_Tag!E55) -> 0.01782132518 | F58: =LN(Kurse_Tag!F56/Kurse_Tag!F55) -> 0.0004443457083 | G58: =LN(Kurse_Tag!G56/Kurse_Tag!G55) -> 0.03844947185 | H58: =LN(Kurse_Tag!H56/Kurse_Tag!H55) -> 0.04210067325 | I58: =LN(Kurse_Tag!I56/Kurse_Tag!I55) -> 0.01203145951
A59: 2008-11-14 | B59: =LN(Kurse_Tag!B57/Kurse_Tag!B56) -> 0.03911113012 | C59: =LN(Kurse_Tag!C57/Kurse_Tag!C56) -> 0.0338148908 | D59: =LN(Kurse_Tag!D57/Kurse_Tag!D56) -> 0.01237283796 | E59: =LN(Kurse_Tag!E57/Kurse_Tag!E56) -> -0.02415046023 | F59: =LN(Kurse_Tag!F57/Kurse_Tag!F56) -> 0.0119233031 | G59: =LN(Kurse_Tag!G57/Kurse_Tag!G56) -> 0.01489072398 | H59: =LN(Kurse_Tag!H57/Kurse_Tag!H56) -> -0.005256916294 | I59: =LN(Kurse_Tag!I57/Kurse_Tag!I56) -> 0.01938815548
A60: 2008-11-17 | B60: =LN(Kurse_Tag!B58/Kurse_Tag!B57) -> -0.01843370169 | C60: =LN(Kurse_Tag!C58/Kurse_Tag!C57) -> -0.001771479648 | D60: =LN(Kurse_Tag!D58/Kurse_Tag!D57) -> -0.02426418618 | E60: =LN(Kurse_Tag!E58/Kurse_Tag!E57) -> 0.02353049741 | F60: =LN(Kurse_Tag!F58/Kurse_Tag!F57) -> -0.02084794957 | G60: =LN(Kurse_Tag!G58/Kurse_Tag!G57) -> -0.02855705191 | H60: =LN(Kurse_Tag!H58/Kurse_Tag!H57) -> 0.01973183835 | I60: =LN(Kurse_Tag!I58/Kurse_Tag!I57) -> -0.00847155012
A61: 2008-11-18 | B61: =LN(Kurse_Tag!B59/Kurse_Tag!B58) -> 0.01110094656 | C61: =LN(Kurse_Tag!C59/Kurse_Tag!C58) -> 0.00389312118 | D61: =LN(Kurse_Tag!D59/Kurse_Tag!D58) -> -0.005871108122 | E61: =LN(Kurse_Tag!E59/Kurse_Tag!E58) -> -0.01279468227 | F61: =LN(Kurse_Tag!F59/Kurse_Tag!F58) -> 0.01468324489 | G61: =LN(Kurse_Tag!G59/Kurse_Tag!G58) -> 0.003181492199 | H61: =LN(Kurse_Tag!H59/Kurse_Tag!H58) -> 0.01719521611 | I61: =LN(Kurse_Tag!I59/Kurse_Tag!I58) -> 0.002831831659
A62: 2008-11-19 | B62: =LN(Kurse_Tag!B60/Kurse_Tag!B59) -> 0.02811976659 | C62: =LN(Kurse_Tag!C60/Kurse_Tag!C59) -> 0.010890675 | D62: =LN(Kurse_Tag!D60/Kurse_Tag!D59) -> -0.03769601844 | E62: =LN(Kurse_Tag!E60/Kurse_Tag!E59) -> -0.02673615649 | F62: =LN(Kurse_Tag!F60/Kurse_Tag!F59) -> -0.005758598416 | G62: =LN(Kurse_Tag!G60/Kurse_Tag!G59) -> -0.03706306565 | H62: =LN(Kurse_Tag!H60/Kurse_Tag!H59) -> 0.03782537219 | I62: =LN(Kurse_Tag!I60/Kurse_Tag!I59) -> 0.003387646408
A63: 2008-11-20 | B63: =LN(Kurse_Tag!B61/Kurse_Tag!B60) -> -0.06561244284 | C63: =LN(Kurse_Tag!C61/Kurse_Tag!C60) -> 0.01787561319 | D63: =LN(Kurse_Tag!D61/Kurse_Tag!D60) -> -0.03917286105 | E63: =LN(Kurse_Tag!E61/Kurse_Tag!E60) -> -0.03278982282 | F63: =LN(Kurse_Tag!F61/Kurse_Tag!F60) -> -0.04311990888 | G63: =LN(Kurse_Tag!G61/Kurse_Tag!G60) -> -0.03926866156 | H63: =LN(Kurse_Tag!H61/Kurse_Tag!H60) -> 0.0473693579 | I63: =LN(Kurse_Tag!I61/Kurse_Tag!I60) -> 0.003937803939
A64: 2008-11-21 | B64: =LN(Kurse_Tag!B62/Kurse_Tag!B61) -> 0.06739975342 | C64: =LN(Kurse_Tag!C62/Kurse_Tag!C61) -> 0.05012911592 | D64: =LN(Kurse_Tag!D62/Kurse_Tag!D61) -> -0.03331064777 | E64: =LN(Kurse_Tag!E62/Kurse_Tag!E61) -> 0.02306527293 | F64: =LN(Kurse_Tag!F62/Kurse_Tag!F61) -> -0.0306122326 | G64: =LN(Kurse_Tag!G62/Kurse_Tag!G61) -> -0.03150240713 | H64: =LN(Kurse_Tag!H62/Kurse_Tag!H61) -> 0.0370087393 | I64: =LN(Kurse_Tag!I62/Kurse_Tag!I61) -> 0.02079605066
A65: 2008-11-24 | B65: =LN(Kurse_Tag!B63/Kurse_Tag!B62) -> 0.09124348042 | C65: =LN(Kurse_Tag!C63/Kurse_Tag!C62) -> 0.02882897031 | D65: =LN(Kurse_Tag!D63/Kurse_Tag!D62) -> 0.06782025341 | E65: =LN(Kurse_Tag!E63/Kurse_Tag!E62) -> 0.06525080812 | F65: =LN(Kurse_Tag!F63/Kurse_Tag!F62) -> 0.02176055589 | G65: =LN(Kurse_Tag!G63/Kurse_Tag!G62) -> 0.1110055367 | H65: =LN(Kurse_Tag!H63/Kurse_Tag!H62) -> -0.08739772708 | I65: =LN(Kurse_Tag!I63/Kurse_Tag!I62) -> 0.001961939024
A66: 2008-11-25 | B66: =LN(Kurse_Tag!B64/Kurse_Tag!B63) -> -0.05356929219 | C66: =LN(Kurse_Tag!C64/Kurse_Tag!C63) -> -0.02563827049 | D66: =LN(Kurse_Tag!D64/Kurse_Tag!D63) -> 0.03953912071 | E66: =LN(Kurse_Tag!E64/Kurse_Tag!E63) -> -0.03477531412 | F66: =LN(Kurse_Tag!F64/Kurse_Tag!F63) -> -0.02032686389 | G66: =LN(Kurse_Tag!G64/Kurse_Tag!G63) -> 0.01613283616 | H66: =LN(Kurse_Tag!H64/Kurse_Tag!H63) -> -0.0231145573 | I66: =LN(Kurse_Tag!I64/Kurse_Tag!I63) -> -0.005187875179
A67: 2008-11-26 | B67: =LN(Kurse_Tag!B65/Kurse_Tag!B64) -> 0.01873990105 | C67: =LN(Kurse_Tag!C65/Kurse_Tag!C64) -> 0.01538608629 | D67: =LN(Kurse_Tag!D65/Kurse_Tag!D64) -> -0.01905066362 | E67: =LN(Kurse_Tag!E65/Kurse_Tag!E64) -> 0.01722830396 | F67: =LN(Kurse_Tag!F65/Kurse_Tag!F64) -> -0.0124941558 | G67: =LN(Kurse_Tag!G65/Kurse_Tag!G64) -> -0.0146946078 | H67: =LN(Kurse_Tag!H65/Kurse_Tag!H64) -> 0.002061148102 | I67: =LN(Kurse_Tag!I65/Kurse_Tag!I64) -> -0.02022039916
A68: 2008-11-27 | B68: =LN(Kurse_Tag!B66/Kurse_Tag!B65) -> 0.009239880941 | C68: =LN(Kurse_Tag!C66/Kurse_Tag!C65) -> -0.005088480969 | D68: =LN(Kurse_Tag!D66/Kurse_Tag!D65) -> 0.0348431467 | E68: =LN(Kurse_Tag!E66/Kurse_Tag!E65) -> -0.03443714164 | F68: =LN(Kurse_Tag!F66/Kurse_Tag!F65) -> 0.02766032327 | G68: =LN(Kurse_Tag!G66/Kurse_Tag!G65) -> 0.03543816869 | H68: =LN(Kurse_Tag!H66/Kurse_Tag!H65) -> -0.02663856788 | I68: =LN(Kurse_Tag!I66/Kurse_Tag!I65) -> 0.007371237607
A69: 2008-11-28 | B69: =LN(Kurse_Tag!B67/Kurse_Tag!B66) -> -0.009239880941 | C69: =LN(Kurse_Tag!C67/Kurse_Tag!C66) -> 0.01787471785 | D69: =LN(Kurse_Tag!D67/Kurse_Tag!D66) -> 0.01579574023 | E69: =LN(Kurse_Tag!E67/Kurse_Tag!E66) -> 0.06170181102 | F69: =LN(Kurse_Tag!F67/Kurse_Tag!F66) -> 0.03285051348 | G69: =LN(Kurse_Tag!G67/Kurse_Tag!G66) -> -0.01805633772 | H69: =LN(Kurse_Tag!H67/Kurse_Tag!H66) -> 0.009680210271 | I69: =LN(Kurse_Tag!I67/Kurse_Tag!I66) -> 0.005016533194
A70: 2008-12-01 | B70: =LN(Kurse_Tag!B68/Kurse_Tag!B67) -> -0.08908487157 | C70: =LN(Kurse_Tag!C68/Kurse_Tag!C67) -> -0.05762375089 | D70: =LN(Kurse_Tag!D68/Kurse_Tag!D67) -> -0.04580953603 | E70: =LN(Kurse_Tag!E68/Kurse_Tag!E67) -> -0.05242322902 | F70: =LN(Kurse_Tag!F68/Kurse_Tag!F67) -> -0.02488607691 | G70: =LN(Kurse_Tag!G68/Kurse_Tag!G67) -> -0.05815592016 | H70: =LN(Kurse_Tag!H68/Kurse_Tag!H67) -> 0.03329636568 | I70: =LN(Kurse_Tag!I68/Kurse_Tag!I67) -> 0.009643581178
A71: 2008-12-02 | B71: =LN(Kurse_Tag!B69/Kurse_Tag!B68) -> 0.03267078229 | C71: =LN(Kurse_Tag!C69/Kurse_Tag!C68) -> 0.009007567158 | D71: =LN(Kurse_Tag!D69/Kurse_Tag!D68) -> 0.005324342167 | E71: =LN(Kurse_Tag!E69/Kurse_Tag!E68) -> -0.00223178795 | F71: =LN(Kurse_Tag!F69/Kurse_Tag!F68) -> -0.003740069811 | G71: =LN(Kurse_Tag!G69/Kurse_Tag!G68) -> 0.03947977678 | H71: =LN(Kurse_Tag!H69/Kurse_Tag!H68) -> -0.02599325549 | I71: =LN(Kurse_Tag!I69/Kurse_Tag!I68) -> 0.006820613639
A72: 2008-12-03 | B72: =LN(Kurse_Tag!B70/Kurse_Tag!B69) -> 0.002674990449 | C72: =LN(Kurse_Tag!C70/Kurse_Tag!C69) -> 0.002908420047 | D72: =LN(Kurse_Tag!D70/Kurse_Tag!D69) -> -0.0102845403 | E72: =LN(Kurse_Tag!E70/Kurse_Tag!E69) -> 0.03973618341 | F72: =LN(Kurse_Tag!F70/Kurse_Tag!F69) -> -0.005636463959 | G72: =LN(Kurse_Tag!G70/Kurse_Tag!G69) -> 0.01130440599 | H72: =LN(Kurse_Tag!H70/Kurse_Tag!H69) -> 0.01102698975 | I72: =LN(Kurse_Tag!I70/Kurse_Tag!I69) -> 0.009254644737
A73: 2008-12-04 | B73: =LN(Kurse_Tag!B71/Kurse_Tag!B70) -> -0.01435002203 | C73: =LN(Kurse_Tag!C71/Kurse_Tag!C70) -> -0.0119159872 | D73: =LN(Kurse_Tag!D71/Kurse_Tag!D70) -> 0.03257029868 | E73: =LN(Kurse_Tag!E71/Kurse_Tag!E70) -> -0.04517706737 | F73: =LN(Kurse_Tag!F71/Kurse_Tag!F70) -> 0.00282220319 | G73: =LN(Kurse_Tag!G71/Kurse_Tag!G70) -> 0.0004267728922 | H73: =LN(Kurse_Tag!H71/Kurse_Tag!H70) -> -0.006187713108 | I73: =LN(Kurse_Tag!I71/Kurse_Tag!I70) -> 0.006096873989
A74: 2008-12-05 | B74: =LN(Kurse_Tag!B72/Kurse_Tag!B71) -> -0.01915243221 | C74: =LN(Kurse_Tag!C72/Kurse_Tag!C71) -> -0.0249947695 | D74: =LN(Kurse_Tag!D72/Kurse_Tag!D71) -> -0.03126259613 | E74: =LN(Kurse_Tag!E72/Kurse_Tag!E71) -> -0.01324522675 | F74: =LN(Kurse_Tag!F72/Kurse_Tag!F71) -> -0.01992475782 | G74: =LN(Kurse_Tag!G72/Kurse_Tag!G71) -> -0.04956560342 | H74: =LN(Kurse_Tag!H72/Kurse_Tag!H71) -> 0.02654119727 | I74: =LN(Kurse_Tag!I72/Kurse_Tag!I71) -> 0.000999730925
A75: 2008-12-08 | B75: =LN(Kurse_Tag!B73/Kurse_Tag!B72) -> 0.08555236348 | C75: =LN(Kurse_Tag!C73/Kurse_Tag!C72) -> 0.0243243035 | D75: =LN(Kurse_Tag!D73/Kurse_Tag!D72) -> 0.05800750438 | E75: =LN(Kurse_Tag!E73/Kurse_Tag!E72) -> 0.0823664597 | F75: =LN(Kurse_Tag!F73/Kurse_Tag!F72) -> 0.02133287821 | G75: =LN(Kurse_Tag!G73/Kurse_Tag!G72) -> 0.1000407564 | H75: =LN(Kurse_Tag!H73/Kurse_Tag!H72) -> -0.06341982765 | I75: =LN(Kurse_Tag!I73/Kurse_Tag!I72) -> 0.01123564386
A76: 2008-12-09 | B76: =LN(Kurse_Tag!B74/Kurse_Tag!B73) -> -0.03439720018 | C76: =LN(Kurse_Tag!C74/Kurse_Tag!C73) -> -0.003712449354 | D76: =LN(Kurse_Tag!D74/Kurse_Tag!D73) -> 0.0202643653 | E76: =LN(Kurse_Tag!E74/Kurse_Tag!E73) -> 0.01927984975 | F76: =LN(Kurse_Tag!F74/Kurse_Tag!F73) -> 0.00374532273 | G76: =LN(Kurse_Tag!G74/Kurse_Tag!G73) -> 0.01822373896 | H76: =LN(Kurse_Tag!H74/Kurse_Tag!H73) -> -0.01521353111 | I76: =LN(Kurse_Tag!I74/Kurse_Tag!I73) -> -0.007859336171
A77: 2008-12-10 | B77: =LN(Kurse_Tag!B75/Kurse_Tag!B74) -> 0.02077996849 | C77: =LN(Kurse_Tag!C75/Kurse_Tag!C74) -> 0.03397750654 | D77: =LN(Kurse_Tag!D75/Kurse_Tag!D74) -> -0.01460768519 | E77: =LN(Kurse_Tag!E75/Kurse_Tag!E74) -> -0.0234815366 | F77: =LN(Kurse_Tag!F75/Kurse_Tag!F74) -> -0.02459915901 | G77: =LN(Kurse_Tag!G75/Kurse_Tag!G74) -> -0.01430983964 | H77: =LN(Kurse_Tag!H75/Kurse_Tag!H74) -> 0.002467166189 | I77: =LN(Kurse_Tag!I75/Kurse_Tag!I74) -> 0.0005360903824
A78: 2008-12-11 | B78: =LN(Kurse_Tag!B76/Kurse_Tag!B75) -> 0.02370983208 | C78: =LN(Kurse_Tag!C76/Kurse_Tag!C75) -> 0.01811941645 | D78: =LN(Kurse_Tag!D76/Kurse_Tag!D75) -> -0.004670608294 | E78: =LN(Kurse_Tag!E76/Kurse_Tag!E75) -> -0.004521484719 | F78: =LN(Kurse_Tag!F76/Kurse_Tag!F75) -> -0.00143781477 | G78: =LN(Kurse_Tag!G76/Kurse_Tag!G75) -> 0.01351281515 | H78: =LN(Kurse_Tag!H76/Kurse_Tag!H75) -> 0.00657350581 | I78: =LN(Kurse_Tag!I76/Kurse_Tag!I75) -> -0.004912128996
A79: 2008-12-12 | B79: =LN(Kurse_Tag!B77/Kurse_Tag!B76) -> -0.02199750289 | C79: =LN(Kurse_Tag!C77/Kurse_Tag!C76) -> -0.007321059567 | D79: =LN(Kurse_Tag!D77/Kurse_Tag!D76) -> -0.02217330504 | E79: =LN(Kurse_Tag!E77/Kurse_Tag!E76) -> -0.0176779977 | F79: =LN(Kurse_Tag!F77/Kurse_Tag!F76) -> -0.009638628838 | G79: =LN(Kurse_Tag!G77/Kurse_Tag!G76) -> -0.02135599261 | H79: =LN(Kurse_Tag!H77/Kurse_Tag!H76) -> 0.03293148907 | I79: =LN(Kurse_Tag!I77/Kurse_Tag!I76) -> -0.004008948396
A80: 2008-12-15 | B80: =LN(Kurse_Tag!B78/Kurse_Tag!B77) -> 0.01864460788 | C80: =LN(Kurse_Tag!C78/Kurse_Tag!C77) -> -0.0003219056844 | D80: =LN(Kurse_Tag!D78/Kurse_Tag!D77) -> -0.007332523371 | E80: =LN(Kurse_Tag!E78/Kurse_Tag!E77) -> 0.01465227679 | F80: =LN(Kurse_Tag!F78/Kurse_Tag!F77) -> -0.01218041856 | G80: =LN(Kurse_Tag!G78/Kurse_Tag!G77) -> -0.0008148852821 | H80: =LN(Kurse_Tag!H78/Kurse_Tag!H77) -> -0.005168692096 | I80: =LN(Kurse_Tag!I78/Kurse_Tag!I77) -> -0.003172272381
A81: 2008-12-16 | B81: =LN(Kurse_Tag!B79/Kurse_Tag!B78) -> -0.01097520514 | C81: =LN(Kurse_Tag!C79/Kurse_Tag!C78) -> -0.01808594324 | D81: =LN(Kurse_Tag!D79/Kurse_Tag!D78) -> 0.006576474948 | E81: =LN(Kurse_Tag!E79/Kurse_Tag!E78) -> -0.03077165867 | F81: =LN(Kurse_Tag!F79/Kurse_Tag!F78) -> 0.004889985294 | G81: =LN(Kurse_Tag!G79/Kurse_Tag!G78) -> 0.0108109161 | H81: =LN(Kurse_Tag!H79/Kurse_Tag!H78) -> -0.013394631 | I81: =LN(Kurse_Tag!I79/Kurse_Tag!I78) -> -0.001783983409
A82: 2008-12-17 | B82: =LN(Kurse_Tag!B80/Kurse_Tag!B79) -> 0.01013522189 | C82: =LN(Kurse_Tag!C80/Kurse_Tag!C79) -> -0.006357183412 | D82: =LN(Kurse_Tag!D80/Kurse_Tag!D79) -> 0.006909141234 | E82: =LN(Kurse_Tag!E80/Kurse_Tag!E79) -> -0.02692165757 | F82: =LN(Kurse_Tag!F80/Kurse_Tag!F79) -> -0.005380301558 | G82: =LN(Kurse_Tag!G80/Kurse_Tag!G79) -> -0.01694381437 | H82: =LN(Kurse_Tag!H80/Kurse_Tag!H79) -> -0.003554927313 | I82: =LN(Kurse_Tag!I80/Kurse_Tag!I79) -> -0.008184946501
A83: 2008-12-18 | B83: =LN(Kurse_Tag!B81/Kurse_Tag!B80) -> -0.04556009236 | C83: =LN(Kurse_Tag!C81/Kurse_Tag!C80) -> -0.04073951689 | D83: =LN(Kurse_Tag!D81/Kurse_Tag!D80) -> -0.00791809579 | E83: =LN(Kurse_Tag!E81/Kurse_Tag!E80) -> -0.02568829271 | F83: =LN(Kurse_Tag!F81/Kurse_Tag!F80) -> -0.006396085766 | G83: =LN(Kurse_Tag!G81/Kurse_Tag!G80) -> 0.00300300526 | H83: =LN(Kurse_Tag!H81/Kurse_Tag!H80) -> -0.02743854446 | I83: =LN(Kurse_Tag!I81/Kurse_Tag!I80) -> -0.0190436793
A84: 2008-12-19 | B84: =LN(Kurse_Tag!B82/Kurse_Tag!B81) -> 0.02260965877 | C84: =LN(Kurse_Tag!C82/Kurse_Tag!C81) -> 0.02377021933 | D84: =LN(Kurse_Tag!D82/Kurse_Tag!D81) -> -0.005567520392 | E84: =LN(Kurse_Tag!E82/Kurse_Tag!E81) -> 0.0317692844 | F84: =LN(Kurse_Tag!F82/Kurse_Tag!F81) -> 0.00688640203 | G84: =LN(Kurse_Tag!G82/Kurse_Tag!G81) -> -0.0009545238333 | H84: =LN(Kurse_Tag!H82/Kurse_Tag!H81) -> 0.003653639432 | I84: =LN(Kurse_Tag!I82/Kurse_Tag!I81) -> -0.03432803492
A85: 2008-12-22 | B85: =LN(Kurse_Tag!B83/Kurse_Tag!B82) -> -0.01298157564 | C85: =LN(Kurse_Tag!C83/Kurse_Tag!C82) -> -0.004371959209 | D85: =LN(Kurse_Tag!D83/Kurse_Tag!D82) -> -0.01084401773 | E85: =LN(Kurse_Tag!E83/Kurse_Tag!E82) -> 0.007945377886 | F85: =LN(Kurse_Tag!F83/Kurse_Tag!F82) -> 0.0009799118863 | G85: =LN(Kurse_Tag!G83/Kurse_Tag!G82) -> -0.02206986129 | H85: =LN(Kurse_Tag!H83/Kurse_Tag!H82) -> 0.01376334656 | I85: =LN(Kurse_Tag!I83/Kurse_Tag!I82) -> 0.02123915813
A86: 2008-12-23 | B86: =LN(Kurse_Tag!B84/Kurse_Tag!B83) -> -0.06013475924 | C86: =LN(Kurse_Tag!C84/Kurse_Tag!C83) -> -0.02146224435 | D86: =LN(Kurse_Tag!D84/Kurse_Tag!D83) -> 0.000384738703 | E86: =LN(Kurse_Tag!E84/Kurse_Tag!E83) -> -0.05064373282 | F86: =LN(Kurse_Tag!F84/Kurse_Tag!F83) -> -0.001960784942 | G86: =LN(Kurse_Tag!G84/Kurse_Tag!G83) -> -0.002793297906 | H86: =LN(Kurse_Tag!H84/Kurse_Tag!H83) -> -0.01055914924 | I86: =LN(Kurse_Tag!I84/Kurse_Tag!I83) -> -0.01113515793
A87: 2008-12-29 | B87: =LN(Kurse_Tag!B85/Kurse_Tag!B84) -> 0.01651413676 | C87: =LN(Kurse_Tag!C85/Kurse_Tag!C84) -> 0.008230499137 | D87: =LN(Kurse_Tag!D85/Kurse_Tag!D84) -> 0.00230532889 | E87: =LN(Kurse_Tag!E85/Kurse_Tag!E84) -> -0.0009995003331 | F87: =LN(Kurse_Tag!F85/Kurse_Tag!F84) -> 0.010737048 | G87: =LN(Kurse_Tag!G85/Kurse_Tag!G84) -> -0.02163087094 | H87: =LN(Kurse_Tag!H85/Kurse_Tag!H84) -> -0.02064200812 | I87: =LN(Kurse_Tag!I85/Kurse_Tag!I84) -> -0.03594696045
A88: 2008-12-30 | B88: =LN(Kurse_Tag!B86/Kurse_Tag!B85) -> 0.02338236023 | C88: =LN(Kurse_Tag!C86/Kurse_Tag!C85) -> 0.001648231084 | D88: =LN(Kurse_Tag!D86/Kurse_Tag!D85) -> 0.01687107943 | E88: =LN(Kurse_Tag!E86/Kurse_Tag!E85) -> 0.008959741371 | F88: =LN(Kurse_Tag!F86/Kurse_Tag!F85) -> 0.009661910912 | G88: =LN(Kurse_Tag!G86/Kurse_Tag!G85) -> 0.02804383032 | H88: =LN(Kurse_Tag!H86/Kurse_Tag!H85) -> -0.02472230204 | I88: =LN(Kurse_Tag!I86/Kurse_Tag!I85) -> -0.01141798362
A89: 2009-01-05 | B89: =LN(Kurse_Tag!B87/Kurse_Tag!B86) -> 0.03579605227 | C89: =LN(Kurse_Tag!C87/Kurse_Tag!C86) -> 0.01843226931 | D89: =LN(Kurse_Tag!D87/Kurse_Tag!D86) -> 0.04308358614 | E89: =LN(Kurse_Tag!E87/Kurse_Tag!E86) -> 0.05370201975 | F89: =LN(Kurse_Tag!F87/Kurse_Tag!F86) -> 0.01904819497 | G89: =LN(Kurse_Tag!G87/Kurse_Tag!G86) -> 0.04017698388 | H89: =LN(Kurse_Tag!H87/Kurse_Tag!H86) -> -0.02808393179 | I89: =LN(Kurse_Tag!I87/Kurse_Tag!I86) -> 0.008533203072
A90: 2009-01-06 | B90: =LN(Kurse_Tag!B88/Kurse_Tag!B87) -> 0.03290047901 | C90: =LN(Kurse_Tag!C88/Kurse_Tag!C87) -> 0.01477949438 | D90: =LN(Kurse_Tag!D88/Kurse_Tag!D87) -> 0.01197619105 | E90: =LN(Kurse_Tag!E88/Kurse_Tag!E87) -> 0.007175198464 | F90: =LN(Kurse_Tag!F88/Kurse_Tag!F87) -> 0 | G90: =LN(Kurse_Tag!G88/Kurse_Tag!G87) -> 0.005059930902 | H90: =LN(Kurse_Tag!H88/Kurse_Tag!H87) -> -0.01760316994 | I90: =LN(Kurse_Tag!I88/Kurse_Tag!I87) -> 0.002037179212
A91: 2009-01-07 | B91: =LN(Kurse_Tag!B89/Kurse_Tag!B88) -> -0.04064911873 | C91: =LN(Kurse_Tag!C89/Kurse_Tag!C88) -> -0.02263988344 | D91: =LN(Kurse_Tag!D89/Kurse_Tag!D88) -> -0.009689650548 | E91: =LN(Kurse_Tag!E89/Kurse_Tag!E88) -> -0.002178311115 | F91: =LN(Kurse_Tag!F89/Kurse_Tag!F88) -> 0.0009429515079 | G91: =LN(Kurse_Tag!G89/Kurse_Tag!G88) -> -0.01849918707 | H91: =LN(Kurse_Tag!H89/Kurse_Tag!H88) -> 0.01916689192 | I91: =LN(Kurse_Tag!I89/Kurse_Tag!I88) -> 0.01121475559
A92: 2009-01-08 | B92: =LN(Kurse_Tag!B90/Kurse_Tag!B89) -> 0.01031823428 | C92: =LN(Kurse_Tag!C90/Kurse_Tag!C89) -> 0.008409212619 | D92: =LN(Kurse_Tag!D90/Kurse_Tag!D89) -> -0.008086460093 | E92: =LN(Kurse_Tag!E90/Kurse_Tag!E89) -> -0.006250020345 | F92: =LN(Kurse_Tag!F90/Kurse_Tag!F89) -> -0.008994143471 | G92: =LN(Kurse_Tag!G90/Kurse_Tag!G89) -> -0.01871000294 | H92: =LN(Kurse_Tag!H90/Kurse_Tag!H89) -> 0.01350218387 | I92: =LN(Kurse_Tag!I90/Kurse_Tag!I89) -> -0.004706682079
A93: 2009-01-09 | B93: =LN(Kurse_Tag!B91/Kurse_Tag!B90) -> 0.009365755988 | C93: =LN(Kurse_Tag!C91/Kurse_Tag!C90) -> 0.01427354773 | D93: =LN(Kurse_Tag!D91/Kurse_Tag!D90) -> -0.004615579675 | E93: =LN(Kurse_Tag!E91/Kurse_Tag!E90) -> -0.006289328908 | F93: =LN(Kurse_Tag!F91/Kurse_Tag!F90) -> -0.04076255739 | G93: =LN(Kurse_Tag!G91/Kurse_Tag!G90) -> -0.01892625377 | H93: =LN(Kurse_Tag!H91/Kurse_Tag!H90) -> 0.005150885884 | I93: =LN(Kurse_Tag!I91/Kurse_Tag!I90) -> 0.007971512739
A94: 2009-01-12 | B94: =LN(Kurse_Tag!B92/Kurse_Tag!B91) -> -0.005097717072 | C94: =LN(Kurse_Tag!C92/Kurse_Tag!C91) -> -0.02911365068 | D94: =LN(Kurse_Tag!D92/Kurse_Tag!D91) -> -0.01434639283 | E94: =LN(Kurse_Tag!E92/Kurse_Tag!E91) -> 0.01253934925 | F94: =LN(Kurse_Tag!F92/Kurse_Tag!F91) -> 0 | G94: =LN(Kurse_Tag!G92/Kurse_Tag!G91) -> -0.008606755069 | H94: =LN(Kurse_Tag!H92/Kurse_Tag!H91) -> 0.02109334654 | I94: =LN(Kurse_Tag!I92/Kurse_Tag!I91) -> 0.02996848953
A95: 2009-01-13 | B95: =LN(Kurse_Tag!B93/Kurse_Tag!B92) -> -0.01027406298 | C95: =LN(Kurse_Tag!C93/Kurse_Tag!C92) -> 0.006768215346 | D95: =LN(Kurse_Tag!D93/Kurse_Tag!D92) -> -0.01606010242 | E95: =LN(Kurse_Tag!E93/Kurse_Tag!E92) -> -0.03971927978 | F95: =LN(Kurse_Tag!F93/Kurse_Tag!F92) -> 0.0004951720824 | G95: =LN(Kurse_Tag!G93/Kurse_Tag!G92) -> -0.02787536809 | H95: =LN(Kurse_Tag!H93/Kurse_Tag!H92) -> 0.008299423316 | I95: =LN(Kurse_Tag!I93/Kurse_Tag!I92) -> 0.008480444961
A96: 2009-01-14 | B96: =LN(Kurse_Tag!B94/Kurse_Tag!B93) -> -0.0386012837 | C96: =LN(Kurse_Tag!C94/Kurse_Tag!C93) -> -0.01803690212 | D96: =LN(Kurse_Tag!D94/Kurse_Tag!D93) -> -0.04007449117 | E96: =LN(Kurse_Tag!E94/Kurse_Tag!E93) -> -0.0246115786 | F96: =LN(Kurse_Tag!F94/Kurse_Tag!F93) -> -0.02760526609 | G96: =LN(Kurse_Tag!G94/Kurse_Tag!G93) -> -0.05065697917 | H96: =LN(Kurse_Tag!H94/Kurse_Tag!H93) -> 0.0430651952 | I96: =LN(Kurse_Tag!I94/Kurse_Tag!I93) -> 0.007371828256
A97: 2009-01-15 | B97: =LN(Kurse_Tag!B95/Kurse_Tag!B94) -> 0.006241660923 | C97: =LN(Kurse_Tag!C95/Kurse_Tag!C94) -> 0.003428182994 | D97: =LN(Kurse_Tag!D95/Kurse_Tag!D94) -> -0.00209232455 | E97: =LN(Kurse_Tag!E95/Kurse_Tag!E94) -> 0.01582102875 | F97: =LN(Kurse_Tag!F95/Kurse_Tag!F94) -> 0.01314477976 | G97: =LN(Kurse_Tag!G95/Kurse_Tag!G94) -> -0.005225154043 | H97: =LN(Kurse_Tag!H95/Kurse_Tag!H94) -> 0.02075173281 | I97: =LN(Kurse_Tag!I95/Kurse_Tag!I94) -> -0.001677919774
A98: 2009-01-16 | B98: =LN(Kurse_Tag!B96/Kurse_Tag!B95) -> 0.06286211676 | C98: =LN(Kurse_Tag!C96/Kurse_Tag!C95) -> 0.01965498719 | D98: =LN(Kurse_Tag!D96/Kurse_Tag!D95) -> 0.01726082696 | E98: =LN(Kurse_Tag!E96/Kurse_Tag!E95) -> 0.0006538084574 | F98: =LN(Kurse_Tag!F96/Kurse_Tag!F95) -> 0.02382246651 | G98: =LN(Kurse_Tag!G96/Kurse_Tag!G95) -> 0.01255566946 | H98: =LN(Kurse_Tag!H96/Kurse_Tag!H95) -> -0.01520406567 | I98: =LN(Kurse_Tag!I96/Kurse_Tag!I95) -> 0.004308975706
A99: 2009-01-19 | B99: =LN(Kurse_Tag!B97/Kurse_Tag!B96) -> 0.00583441453 | C99: =LN(Kurse_Tag!C97/Kurse_Tag!C96) -> 0.01696929756 | D99: =LN(Kurse_Tag!D97/Kurse_Tag!D96) -> -0.0296424393 | E99: =LN(Kurse_Tag!E97/Kurse_Tag!E96) -> -0.009852296443 | F99: =LN(Kurse_Tag!F97/Kurse_Tag!F96) -> 0.001959824243 | G99: =LN(Kurse_Tag!G97/Kurse_Tag!G96) -> -0.02044495162 | H99: =LN(Kurse_Tag!H97/Kurse_Tag!H96) -> 0.03553390427 | I99: =LN(Kurse_Tag!I97/Kurse_Tag!I96) -> -0.01807786347
A100: 2009-01-20 | B100: =LN(Kurse_Tag!B98/Kurse_Tag!B97) -> 0.03666398437 | C100: =LN(Kurse_Tag!C98/Kurse_Tag!C97) -> 0.04295393345 | D100: =LN(Kurse_Tag!D98/Kurse_Tag!D97) -> -0.01267105983 | E100: =LN(Kurse_Tag!E98/Kurse_Tag!E97) -> 0.01766483618 | F100: =LN(Kurse_Tag!F98/Kurse_Tag!F97) -> 0.001955990844 | G100: =LN(Kurse_Tag!G98/Kurse_Tag!G97) -> -0.01155901655 | H100: =LN(Kurse_Tag!H98/Kurse_Tag!H97) -> -6.845329776e-05 | I100: =LN(Kurse_Tag!I98/Kurse_Tag!I97) -> 0.003157002663
A101: 2009-01-21 | B101: =LN(Kurse_Tag!B99/Kurse_Tag!B98) -> -0.007226045092 | C101: =LN(Kurse_Tag!C99/Kurse_Tag!C98) -> -0.01847217265 | D101: =LN(Kurse_Tag!D99/Kurse_Tag!D98) -> 0.004820577091 | E101: =LN(Kurse_Tag!E99/Kurse_Tag!E98) -> -0.01535726964 | F101: =LN(Kurse_Tag!F99/Kurse_Tag!F98) -> -0.007354776963 | G101: =LN(Kurse_Tag!G99/Kurse_Tag!G98) -> -0.02288356648 | H101: =LN(Kurse_Tag!H99/Kurse_Tag!H98) -> 0.002051563326 | I101: =LN(Kurse_Tag!I99/Kurse_Tag!I98) -> 0.02047907743
A102: 2009-01-22 | B102: =LN(Kurse_Tag!B100/Kurse_Tag!B99) -> 0.02624405093 | C102: =LN(Kurse_Tag!C100/Kurse_Tag!C99) -> 0.01909460258 | D102: =LN(Kurse_Tag!D100/Kurse_Tag!D99) -> 0.0009346418999 | E102: =LN(Kurse_Tag!E100/Kurse_Tag!E99) -> 0.01730090485 | F102: =LN(Kurse_Tag!F100/Kurse_Tag!F99) -> -0.004933409118 | G102: =LN(Kurse_Tag!G100/Kurse_Tag!G99) -> 0.009439314947 | H102: =LN(Kurse_Tag!H100/Kurse_Tag!H99) -> 0 | I102: =LN(Kurse_Tag!I100/Kurse_Tag!I99) -> 0.01469863366
A103: 2009-01-23 | B103: =LN(Kurse_Tag!B101/Kurse_Tag!B100) -> 0.007818648118 | C103: =LN(Kurse_Tag!C101/Kurse_Tag!C100) -> 0.04598866218 | D103: =LN(Kurse_Tag!D101/Kurse_Tag!D100) -> -0.02213017044 | E103: =LN(Kurse_Tag!E101/Kurse_Tag!E100) -> -0.01763023138 | F103: =LN(Kurse_Tag!F101/Kurse_Tag!F100) -> -0.001980198667 | G103: =LN(Kurse_Tag!G101/Kurse_Tag!G100) -> -0.009117874893 | H103: =LN(Kurse_Tag!H101/Kurse_Tag!H100) -> 0.03905516612 | I103: =LN(Kurse_Tag!I101/Kurse_Tag!I100) -> 0.01356241969
A104: 2009-01-26 | B104: =LN(Kurse_Tag!B102/Kurse_Tag!B101) -> 0.04119575644 | C104: =LN(Kurse_Tag!C102/Kurse_Tag!C101) -> -0.001207365073 | D104: =LN(Kurse_Tag!D102/Kurse_Tag!D101) -> 0.04208194543 | E104: =LN(Kurse_Tag!E102/Kurse_Tag!E101) -> -0.003299244167 | F104: =LN(Kurse_Tag!F102/Kurse_Tag!F101) -> 0.01035256966 | G104: =LN(Kurse_Tag!G102/Kurse_Tag!G101) -> 0.03256689957 | H104: =LN(Kurse_Tag!H102/Kurse_Tag!H101) -> -0.03007795675 | I104: =LN(Kurse_Tag!I102/Kurse_Tag!I101) -> 0.0007694675664
A105: 2009-01-27 | B105: =LN(Kurse_Tag!B103/Kurse_Tag!B102) -> -0.006749181975 | C105: =LN(Kurse_Tag!C103/Kurse_Tag!C102) -> -0.01613674839 | D105: =LN(Kurse_Tag!D103/Kurse_Tag!D102) -> -0.02369559539 | E105: =LN(Kurse_Tag!E103/Kurse_Tag!E102) -> 0.02157651536 | F105: =LN(Kurse_Tag!F103/Kurse_Tag!F102) -> -0.003931208994 | G105: =LN(Kurse_Tag!G103/Kurse_Tag!G102) -> -0.002024134595 | H105: =LN(Kurse_Tag!H103/Kurse_Tag!H102) -> -0.009045527041 | I105: =LN(Kurse_Tag!I103/Kurse_Tag!I102) -> -0.001462494969
A106: 2009-01-28 | B106: =LN(Kurse_Tag!B104/Kurse_Tag!B103) -> 0.0007521625026 | C106: =LN(Kurse_Tag!C104/Kurse_Tag!C103) -> 0.0006811675844 | D106: =LN(Kurse_Tag!D104/Kurse_Tag!D103) -> 0.04863067708 | E106: =LN(Kurse_Tag!E104/Kurse_Tag!E103) -> 0.01221487383 | F106: =LN(Kurse_Tag!F104/Kurse_Tag!F103) -> -0.009399030361 | G106: =LN(Kurse_Tag!G104/Kurse_Tag!G103) -> 0.06384665155 | H106: =LN(Kurse_Tag!H104/Kurse_Tag!H103) -> -0.03737777212 | I106: =LN(Kurse_Tag!I104/Kurse_Tag!I103) -> -0.01756203346
A107: 2009-01-29 | B107: =LN(Kurse_Tag!B105/Kurse_Tag!B104) -> -0.0005189316142 | C107: =LN(Kurse_Tag!C105/Kurse_Tag!C104) -> 0.009092887013 | D107: =LN(Kurse_Tag!D105/Kurse_Tag!D104) -> -0.03439887472 | E107: =LN(Kurse_Tag!E105/Kurse_Tag!E104) -> -0.01935544295 | F107: =LN(Kurse_Tag!F105/Kurse_Tag!F104) -> -0.0009945301665 | G107: =LN(Kurse_Tag!G105/Kurse_Tag!G104) -> -0.03815095363 | H107: =LN(Kurse_Tag!H105/Kurse_Tag!H104) -> 0 | I107: =LN(Kurse_Tag!I105/Kurse_Tag!I104) -> 0.001566661765
A108: 2009-01-30 | B108: =LN(Kurse_Tag!B106/Kurse_Tag!B105) -> 0.05323977799 | C108: =LN(Kurse_Tag!C106/Kurse_Tag!C105) -> 0.03962979477 | D108: =LN(Kurse_Tag!D106/Kurse_Tag!D105) -> -0.004765696073 | E108: =LN(Kurse_Tag!E106/Kurse_Tag!E105) -> -0.02073465759 | F108: =LN(Kurse_Tag!F106/Kurse_Tag!F105) -> -0.0004976362382 | G108: =LN(Kurse_Tag!G106/Kurse_Tag!G105) -> -0.01762362677 | H108: =LN(Kurse_Tag!H106/Kurse_Tag!H105) -> 0.02084505416 | I108: =LN(Kurse_Tag!I106/Kurse_Tag!I105) -> 0.001954881961
A109: 2009-02-02 | B109: =LN(Kurse_Tag!B107/Kurse_Tag!B106) -> -0.0007135212575 | C109: =LN(Kurse_Tag!C107/Kurse_Tag!C106) -> -0.004978777308 | D109: =LN(Kurse_Tag!D107/Kurse_Tag!D106) -> -0.02512728773 | E109: =LN(Kurse_Tag!E107/Kurse_Tag!E106) -> -0.007343157162 | F109: =LN(Kurse_Tag!F107/Kurse_Tag!F106) -> -0.0206192872 | G109: =LN(Kurse_Tag!G107/Kurse_Tag!G106) -> -0.01479662538 | H109: =LN(Kurse_Tag!H107/Kurse_Tag!H106) -> 0.02679618953 | I109: =LN(Kurse_Tag!I107/Kurse_Tag!I106) -> 0.008943560022
A110: 2009-02-03 | B110: =LN(Kurse_Tag!B108/Kurse_Tag!B107) -> -0.03117323822 | C110: =LN(Kurse_Tag!C108/Kurse_Tag!C107) -> -0.02720464649 | D110: =LN(Kurse_Tag!D108/Kurse_Tag!D107) -> 0.0009520571953 | E110: =LN(Kurse_Tag!E108/Kurse_Tag!E107) -> -0.01179457649 | F110: =LN(Kurse_Tag!F108/Kurse_Tag!F107) -> 0.01712888226 | G110: =LN(Kurse_Tag!G108/Kurse_Tag!G107) -> 0.003915125195 | H110: =LN(Kurse_Tag!H108/Kurse_Tag!H107) -> -0.02860375398 | I110: =LN(Kurse_Tag!I108/Kurse_Tag!I107) -> 0.006482504566
A111: 2009-02-04 | B111: =LN(Kurse_Tag!B109/Kurse_Tag!B108) -> 0.03045920748 | C111: =LN(Kurse_Tag!C109/Kurse_Tag!C108) -> 0.01360703823 | D111: =LN(Kurse_Tag!D109/Kurse_Tag!D108) -> 0.0237770621 | E111: =LN(Kurse_Tag!E109/Kurse_Tag!E108) -> 0.03333642027 | F111: =LN(Kurse_Tag!F109/Kurse_Tag!F108) -> -0.01307208157 | G111: =LN(Kurse_Tag!G109/Kurse_Tag!G108) -> 0.04910271301 | H111: =LN(Kurse_Tag!H109/Kurse_Tag!H108) -> -0.03454721704 | I111: =LN(Kurse_Tag!I109/Kurse_Tag!I108) -> -0.005012541824
A112: 2009-02-05 | B112: =LN(Kurse_Tag!B110/Kurse_Tag!B109) -> 0.02259983192 | C112: =LN(Kurse_Tag!C110/Kurse_Tag!C109) -> 0.01447801918 | D112: =LN(Kurse_Tag!D110/Kurse_Tag!D109) -> -0.01984245286 | E112: =LN(Kurse_Tag!E110/Kurse_Tag!E109) -> 0.02557187407 | F112: =LN(Kurse_Tag!F110/Kurse_Tag!F109) -> -0.03031313526 | G112: =LN(Kurse_Tag!G110/Kurse_Tag!G109) -> 0.0002975747679 | H112: =LN(Kurse_Tag!H110/Kurse_Tag!H109) -> 0.005387750542 | I112: =LN(Kurse_Tag!I110/Kurse_Tag!I109) -> -0.003872971534
A113: 2009-02-06 | B113: =LN(Kurse_Tag!B111/Kurse_Tag!B110) -> 0.022100347 | C113: =LN(Kurse_Tag!C111/Kurse_Tag!C110) -> -0.001038967231 | D113: =LN(Kurse_Tag!D111/Kurse_Tag!D110) -> 0.009165719916 | E113: =LN(Kurse_Tag!E111/Kurse_Tag!E110) -> -0.006090738496 | F113: =LN(Kurse_Tag!F111/Kurse_Tag!F110) -> -0.00418191932 | G113: =LN(Kurse_Tag!G111/Kurse_Tag!G110) -> 0.03622949547 | H113: =LN(Kurse_Tag!H111/Kurse_Tag!H110) -> -0.02819134675 | I113: =LN(Kurse_Tag!I111/Kurse_Tag!I110) -> 0.003176942736
A114: 2009-02-09 | B114: =LN(Kurse_Tag!B112/Kurse_Tag!B111) -> -0.01861480844 | C114: =LN(Kurse_Tag!C112/Kurse_Tag!C111) -> -0.02391335934 | D114: =LN(Kurse_Tag!D112/Kurse_Tag!D111) -> 0.004017145199 | E114: =LN(Kurse_Tag!E112/Kurse_Tag!E111) -> -0.006775312255 | F114: =LN(Kurse_Tag!F112/Kurse_Tag!F111) -> 0.003138077889 | G114: =LN(Kurse_Tag!G112/Kurse_Tag!G111) -> 0 | H114: =LN(Kurse_Tag!H112/Kurse_Tag!H111) -> 0.005145178569 | I114: =LN(Kurse_Tag!I112/Kurse_Tag!I111) -> -0.02174168693
A115: 2009-02-10 | B115: =LN(Kurse_Tag!B113/Kurse_Tag!B112) -> 0.01175389441 | C115: =LN(Kurse_Tag!C113/Kurse_Tag!C112) -> 0.01136676617 | D115: =LN(Kurse_Tag!D113/Kurse_Tag!D112) -> 0.002269239444 | E115: =LN(Kurse_Tag!E113/Kurse_Tag!E112) -> -0.03257402653 | F115: =LN(Kurse_Tag!F113/Kurse_Tag!F112) -> 0.005208345107 | G115: =LN(Kurse_Tag!G113/Kurse_Tag!G112) -> 0.009566718212 | H115: =LN(Kurse_Tag!H113/Kurse_Tag!H112) -> 0.009485660325 | I115: =LN(Kurse_Tag!I113/Kurse_Tag!I112) -> 0.002369107955
A116: 2009-02-11 | B116: =LN(Kurse_Tag!B114/Kurse_Tag!B113) -> 0.04768290855 | C116: =LN(Kurse_Tag!C114/Kurse_Tag!C113) -> 0.04078345676 | D116: =LN(Kurse_Tag!D114/Kurse_Tag!D113) -> -0.01207258123 | E116: =LN(Kurse_Tag!E114/Kurse_Tag!E113) -> 0.01295914464 | F116: =LN(Kurse_Tag!F114/Kurse_Tag!F113) -> -0.01517956391 | G116: =LN(Kurse_Tag!G114/Kurse_Tag!G113) -> -0.04952227806 | H116: =LN(Kurse_Tag!H114/Kurse_Tag!H113) -> 0.01305887755 | I116: =LN(Kurse_Tag!I114/Kurse_Tag!I113) -> 0.008326181162
A117: 2009-02-12 | B117: =LN(Kurse_Tag!B115/Kurse_Tag!B114) -> -0.005919122839 | C117: =LN(Kurse_Tag!C115/Kurse_Tag!C114) -> 0.006260709865 | D117: =LN(Kurse_Tag!D115/Kurse_Tag!D114) -> -0.009764113375 | E117: =LN(Kurse_Tag!E115/Kurse_Tag!E114) -> -0.007289628039 | F117: =LN(Kurse_Tag!F115/Kurse_Tag!F114) -> -0.006880154158 | G117: =LN(Kurse_Tag!G115/Kurse_Tag!G114) -> -0.02387541635 | H117: =LN(Kurse_Tag!H115/Kurse_Tag!H114) -> 0.01769077432 | I117: =LN(Kurse_Tag!I115/Kurse_Tag!I114) -> 0.003669728889
A118: 2009-02-13 | B118: =LN(Kurse_Tag!B116/Kurse_Tag!B115) -> -0.01797053352 | C118: =LN(Kurse_Tag!C116/Kurse_Tag!C115) -> -0.01802825413 | D118: =LN(Kurse_Tag!D116/Kurse_Tag!D115) -> 0.008548800282 | E118: =LN(Kurse_Tag!E116/Kurse_Tag!E115) -> -0.02935928773 | F118: =LN(Kurse_Tag!F116/Kurse_Tag!F115) -> -0.004791065859 | G118: =LN(Kurse_Tag!G116/Kurse_Tag!G115) -> 0 | H118: =LN(Kurse_Tag!H116/Kurse_Tag!H115) -> -0.0215689751 | I118: =LN(Kurse_Tag!I116/Kurse_Tag!I115) -> 0.003500995524
A119: 2009-02-16 | B119: =LN(Kurse_Tag!B117/Kurse_Tag!B116) -> 0.01994746991 | C119: =LN(Kurse_Tag!C117/Kurse_Tag!C116) -> 0.007482027761 | D119: =LN(Kurse_Tag!D117/Kurse_Tag!D116) -> -0.01059504614 | E119: =LN(Kurse_Tag!E117/Kurse_Tag!E116) -> -0.01240539686 | F119: =LN(Kurse_Tag!F117/Kurse_Tag!F116) -> 0.001066666768 | G119: =LN(Kurse_Tag!G117/Kurse_Tag!G116) -> 0.003358781784 | H119: =LN(Kurse_Tag!H117/Kurse_Tag!H116) -> 0.01761751639 | I119: =LN(Kurse_Tag!I117/Kurse_Tag!I116) -> -0.01715469163
A120: 2009-02-17 | B120: =LN(Kurse_Tag!B118/Kurse_Tag!B117) -> 0.04756680731 | C120: =LN(Kurse_Tag!C118/Kurse_Tag!C117) -> 0.04512178444 | D120: =LN(Kurse_Tag!D118/Kurse_Tag!D117) -> -0.03064364556 | E120: =LN(Kurse_Tag!E118/Kurse_Tag!E117) -> 0.001386001608 | F120: =LN(Kurse_Tag!F118/Kurse_Tag!F117) -> -0.01503787736 | G120: =LN(Kurse_Tag!G118/Kurse_Tag!G117) -> -0.01242252 | H120: =LN(Kurse_Tag!H118/Kurse_Tag!H117) -> 0.02761296621 | I120: =LN(Kurse_Tag!I118/Kurse_Tag!I117) -> 0.004021294597
A121: 2009-02-18 | B121: =LN(Kurse_Tag!B119/Kurse_Tag!B118) -> 0.01309653892 | C121: =LN(Kurse_Tag!C119/Kurse_Tag!C118) -> 0.006977518733 | D121: =LN(Kurse_Tag!D119/Kurse_Tag!D118) -> -0.009478743955 | E121: =LN(Kurse_Tag!E119/Kurse_Tag!E118) -> 0.0006922810938 | F121: =LN(Kurse_Tag!F119/Kurse_Tag!F118) -> 0.001622060372 | G121: =LN(Kurse_Tag!G119/Kurse_Tag!G118) -> -0.04950801435 | H121: =LN(Kurse_Tag!H119/Kurse_Tag!H118) -> 0.0188042058 | I121: =LN(Kurse_Tag!I119/Kurse_Tag!I118) -> 0.0003147128271
A122: 2009-02-19 | B122: =LN(Kurse_Tag!B120/Kurse_Tag!B119) -> -0.01876227646 | C122: =LN(Kurse_Tag!C120/Kurse_Tag!C119) -> -0.0002912345234 | D122: =LN(Kurse_Tag!D120/Kurse_Tag!D119) -> 0.01046389638 | E122: =LN(Kurse_Tag!E120/Kurse_Tag!E119) -> -0.02097979047 | F122: =LN(Kurse_Tag!F120/Kurse_Tag!F119) -> 0.0505636928 | G122: =LN(Kurse_Tag!G120/Kurse_Tag!G119) -> 0.02006648919 | H122: =LN(Kurse_Tag!H120/Kurse_Tag!H119) -> -0.002432762384 | I122: =LN(Kurse_Tag!I120/Kurse_Tag!I119) -> -0.005759157569
A123: 2009-02-20 | B123: =LN(Kurse_Tag!B121/Kurse_Tag!B120) -> 0.03474294844 | C123: =LN(Kurse_Tag!C121/Kurse_Tag!C120) -> 0.01811727812 | D123: =LN(Kurse_Tag!D121/Kurse_Tag!D120) -> -0.0328882944 | E123: =LN(Kurse_Tag!E121/Kurse_Tag!E120) -> -0.03597510246 | F123: =LN(Kurse_Tag!F121/Kurse_Tag!F120) -> 0.005633817718 | G123: =LN(Kurse_Tag!G121/Kurse_Tag!G120) -> -0.03641473624 | H123: =LN(Kurse_Tag!H121/Kurse_Tag!H120) -> 0.03784055851 | I123: =LN(Kurse_Tag!I121/Kurse_Tag!I120) -> -0.008980787562
A124: 2009-02-23 | B124: =LN(Kurse_Tag!B122/Kurse_Tag!B121) -> -0.01227009259 | C124: =LN(Kurse_Tag!C122/Kurse_Tag!C121) -> -0.0163439676 | D124: =LN(Kurse_Tag!D122/Kurse_Tag!D121) -> -0.02308756324 | E124: =LN(Kurse_Tag!E122/Kurse_Tag!E121) -> -0.01104983619 | F124: =LN(Kurse_Tag!F122/Kurse_Tag!F121) -> -0.01285034388 | G124: =LN(Kurse_Tag!G122/Kurse_Tag!G121) -> -0.04156398722 | H124: =LN(Kurse_Tag!H122/Kurse_Tag!H121) -> 0.02508976896 | I124: =LN(Kurse_Tag!I122/Kurse_Tag!I121) -> -0.009626257552
A125: 2009-02-24 | B125: =LN(Kurse_Tag!B123/Kurse_Tag!B122) -> -0.01492565022 | C125: =LN(Kurse_Tag!C123/Kurse_Tag!C122) -> -0.0135947081 | D125: =LN(Kurse_Tag!D123/Kurse_Tag!D122) -> -0.01212317474 | E125: =LN(Kurse_Tag!E123/Kurse_Tag!E122) -> -0.03084110552 | F125: =LN(Kurse_Tag!F123/Kurse_Tag!F122) -> -0.00622731644 | G125: =LN(Kurse_Tag!G123/Kurse_Tag!G122) -> -0.002063984221 | H125: =LN(Kurse_Tag!H123/Kurse_Tag!H122) -> 0.008225291549 | I125: =LN(Kurse_Tag!I123/Kurse_Tag!I122) -> -0.003148591791
A126: 2009-02-25 | B126: =LN(Kurse_Tag!B124/Kurse_Tag!B123) -> -0.01197619105 | C126: =LN(Kurse_Tag!C124/Kurse_Tag!C123) -> -0.004502851909 | D126: =LN(Kurse_Tag!D124/Kurse_Tag!D123) -> -0.001959454994 | E126: =LN(Kurse_Tag!E124/Kurse_Tag!E123) -> 0.005333345975 | F126: =LN(Kurse_Tag!F124/Kurse_Tag!F123) -> 0.00104058282 | G126: =LN(Kurse_Tag!G124/Kurse_Tag!G123) -> 0 | H126: =LN(Kurse_Tag!H124/Kurse_Tag!H123) -> 0.01903630585 | I126: =LN(Kurse_Tag!I124/Kurse_Tag!I123) -> -0.01441569127
A127: 2009-02-26 | B127: =LN(Kurse_Tag!B125/Kurse_Tag!B124) -> -0.07708787226 | C127: =LN(Kurse_Tag!C125/Kurse_Tag!C124) -> -0.0349478405 | D127: =LN(Kurse_Tag!D125/Kurse_Tag!D124) -> 0.03002157402 | E127: =LN(Kurse_Tag!E125/Kurse_Tag!E124) -> 0.01058210933 | F127: =LN(Kurse_Tag!F125/Kurse_Tag!F124) -> -0.01519547184 | G127: =LN(Kurse_Tag!G125/Kurse_Tag!G124) -> 0.01112929902 | H127: =LN(Kurse_Tag!H125/Kurse_Tag!H124) -> -0.02580141874 | I127: =LN(Kurse_Tag!I125/Kurse_Tag!I124) -> -0.01670979404
A128: 2009-02-27 | B128: =LN(Kurse_Tag!B126/Kurse_Tag!B125) -> 0.007506005899 | C128: =LN(Kurse_Tag!C126/Kurse_Tag!C125) -> 0.01165995471 | D128: =LN(Kurse_Tag!D126/Kurse_Tag!D125) -> -0.0295690512 | E128: =LN(Kurse_Tag!E126/Kurse_Tag!E125) -> -0.02281467777 | F128: =LN(Kurse_Tag!F126/Kurse_Tag!F125) -> 0.0120704693 | G128: =LN(Kurse_Tag!G126/Kurse_Tag!G125) -> -0.04956519625 | H128: =LN(Kurse_Tag!H126/Kurse_Tag!H125) -> 0.02115385035 | I128: =LN(Kurse_Tag!I126/Kurse_Tag!I125) -> -0.00585628713
A129: 2009-03-02 | B129: =LN(Kurse_Tag!B127/Kurse_Tag!B126) -> -0.02119516679 | C129: =LN(Kurse_Tag!C127/Kurse_Tag!C126) -> -0.01162557016 | D129: =LN(Kurse_Tag!D127/Kurse_Tag!D126) -> -0.04487685394 | E129: =LN(Kurse_Tag!E127/Kurse_Tag!E126) -> -0.002310359133 | F129: =LN(Kurse_Tag!F127/Kurse_Tag!F126) -> -0.03828218657 | G129: =LN(Kurse_Tag!G127/Kurse_Tag!G126) -> -0.01605228805 | H129: =LN(Kurse_Tag!H127/Kurse_Tag!H126) -> 0.02387421993 | I129: =LN(Kurse_Tag!I127/Kurse_Tag!I126) -> 0.007190065253
A130: 2009-03-03 | B130: =LN(Kurse_Tag!B128/Kurse_Tag!B127) -> -0.01549984672 | C130: =LN(Kurse_Tag!C128/Kurse_Tag!C127) -> -0.02207862516 | D130: =LN(Kurse_Tag!D128/Kurse_Tag!D127) -> -0.0191088617 | E130: =LN(Kurse_Tag!E128/Kurse_Tag!E127) -> -0.0182848899 | F130: =LN(Kurse_Tag!F128/Kurse_Tag!F127) -> -0.04093491869 | G130: =LN(Kurse_Tag!G128/Kurse_Tag!G127) -> 0.004716134263 | H130: =LN(Kurse_Tag!H128/Kurse_Tag!H127) -> 0.0001212856278 | I130: =LN(Kurse_Tag!I128/Kurse_Tag!I127) -> 0.004156627483
A131: 2009-03-04 | B131: =LN(Kurse_Tag!B129/Kurse_Tag!B128) -> 0.03840666812 | C131: =LN(Kurse_Tag!C129/Kurse_Tag!C128) -> 0.003503152908 | D131: =LN(Kurse_Tag!D129/Kurse_Tag!D128) -> 0.02147199789 | E131: =LN(Kurse_Tag!E129/Kurse_Tag!E128) -> 0.01287320294 | F131: =LN(Kurse_Tag!F129/Kurse_Tag!F128) -> 0.02948753285 | G131: =LN(Kurse_Tag!G129/Kurse_Tag!G128) -> 0.009186770906 | H131: =LN(Kurse_Tag!H129/Kurse_Tag!H128) -> -0.02679445001 | I131: =LN(Kurse_Tag!I129/Kurse_Tag!I128) -> -0.003323918633
A132: 2009-03-05 | B132: =LN(Kurse_Tag!B130/Kurse_Tag!B129) -> -0.009217660508 | C132: =LN(Kurse_Tag!C130/Kurse_Tag!C129) -> 0.001233997213 | D132: =LN(Kurse_Tag!D130/Kurse_Tag!D129) -> -0.01666044089 | E132: =LN(Kurse_Tag!E130/Kurse_Tag!E129) -> 0.008106587533 | F132: =LN(Kurse_Tag!F130/Kurse_Tag!F129) -> -0.02273455277 | G132: =LN(Kurse_Tag!G130/Kurse_Tag!G129) -> 0 | H132: =LN(Kurse_Tag!H130/Kurse_Tag!H129) -> 0.005899722127 | I132: =LN(Kurse_Tag!I130/Kurse_Tag!I129) -> -0.007938870927
A133: 2009-03-06 | B133: =LN(Kurse_Tag!B131/Kurse_Tag!B130) -> 0.0179677459 | C133: =LN(Kurse_Tag!C131/Kurse_Tag!C130) -> 0.01303421784 | D133: =LN(Kurse_Tag!D131/Kurse_Tag!D130) -> -0.0104544579 | E133: =LN(Kurse_Tag!E131/Kurse_Tag!E130) -> -0.04200813921 | F133: =LN(Kurse_Tag!F131/Kurse_Tag!F130) -> 0.00280033787 | G133: =LN(Kurse_Tag!G131/Kurse_Tag!G130) -> -0.01390290517 | H133: =LN(Kurse_Tag!H131/Kurse_Tag!H130) -> 0.01353034171 | I133: =LN(Kurse_Tag!I131/Kurse_Tag!I130) -> -0.006059094528
A134: 2009-03-09 | B134: =LN(Kurse_Tag!B132/Kurse_Tag!B131) -> -0.02829486005 | C134: =LN(Kurse_Tag!C132/Kurse_Tag!C131) -> -0.02034953942 | D134: =LN(Kurse_Tag!D132/Kurse_Tag!D131) -> -0.02604356514 | E134: =LN(Kurse_Tag!E132/Kurse_Tag!E131) -> -0.01657608198 | F134: =LN(Kurse_Tag!F132/Kurse_Tag!F131) -> -0.005046268068 | G134: =LN(Kurse_Tag!G132/Kurse_Tag!G131) -> -0.04328715174 | H134: =LN(Kurse_Tag!H132/Kurse_Tag!H131) -> 0.01093571044 | I134: =LN(Kurse_Tag!I132/Kurse_Tag!I131) -> -0.004059888855
A135: 2009-03-10 | B135: =LN(Kurse_Tag!B133/Kurse_Tag!B132) -> -0.03880557442 | C135: =LN(Kurse_Tag!C133/Kurse_Tag!C132) -> -0.03496546241 | D135: =LN(Kurse_Tag!D133/Kurse_Tag!D132) -> 0.05614377529 | E135: =LN(Kurse_Tag!E133/Kurse_Tag!E132) -> 0.0423047919 | F135: =LN(Kurse_Tag!F133/Kurse_Tag!F132) -> 0.03262661525 | G135: =LN(Kurse_Tag!G133/Kurse_Tag!G132) -> 0.06433677305 | H135: =LN(Kurse_Tag!H133/Kurse_Tag!H132) -> -0.05482951241 | I135: =LN(Kurse_Tag!I133/Kurse_Tag!I132) -> -0.002460860846
A136: 2009-03-11 | B136: =LN(Kurse_Tag!B134/Kurse_Tag!B133) -> 0.02837069713 | C136: =LN(Kurse_Tag!C134/Kurse_Tag!C133) -> 0.02372187275 | D136: =LN(Kurse_Tag!D134/Kurse_Tag!D133) -> 0.009990716881 | E136: =LN(Kurse_Tag!E134/Kurse_Tag!E133) -> -0.005093057042 | F136: =LN(Kurse_Tag!F134/Kurse_Tag!F133) -> -0.001088731735 | G136: =LN(Kurse_Tag!G134/Kurse_Tag!G133) -> 0.04575904836 | H136: =LN(Kurse_Tag!H134/Kurse_Tag!H133) -> -0.01271856816 | I136: =LN(Kurse_Tag!I134/Kurse_Tag!I133) -> -0.004257137123
A137: 2009-03-12 | B137: =LN(Kurse_Tag!B135/Kurse_Tag!B134) -> 0.02770359609 | C137: =LN(Kurse_Tag!C135/Kurse_Tag!C134) -> 0.04531154942 | D137: =LN(Kurse_Tag!D135/Kurse_Tag!D134) -> 0.02530615834 | E137: =LN(Kurse_Tag!E135/Kurse_Tag!E134) -> 0.01790627835 | F137: =LN(Kurse_Tag!F135/Kurse_Tag!F134) -> -0.0005448106918 | G137: =LN(Kurse_Tag!G135/Kurse_Tag!G134) -> 0.001019887901 | H137: =LN(Kurse_Tag!H135/Kurse_Tag!H134) -> 0.02104532849 | I137: =LN(Kurse_Tag!I135/Kurse_Tag!I134) -> 0.00764984606
A138: 2009-03-13 | B138: =LN(Kurse_Tag!B136/Kurse_Tag!B135) -> 0.02181224544 | C138: =LN(Kurse_Tag!C136/Kurse_Tag!C135) -> 0.0009022326613 | D138: =LN(Kurse_Tag!D136/Kurse_Tag!D135) -> 0.002571278736 | E138: =LN(Kurse_Tag!E136/Kurse_Tag!E135) -> 0.01379332213 | F138: =LN(Kurse_Tag!F136/Kurse_Tag!F135) -> 0.01460669735 | G138: =LN(Kurse_Tag!G136/Kurse_Tag!G135) -> 0.04566245222 | H138: =LN(Kurse_Tag!H136/Kurse_Tag!H135) -> 0.01057811148 | I138: =LN(Kurse_Tag!I136/Kurse_Tag!I135) -> 0.01695951991
A139: 2009-03-16 | B139: =LN(Kurse_Tag!B137/Kurse_Tag!B136) -> -0.03769783815 | C139: =LN(Kurse_Tag!C137/Kurse_Tag!C136) -> -0.01117336433 | D139: =LN(Kurse_Tag!D137/Kurse_Tag!D136) -> 0.03181478374 | E139: =LN(Kurse_Tag!E137/Kurse_Tag!E136) -> 0.03293710907 | F139: =LN(Kurse_Tag!F137/Kurse_Tag!F136) -> 0.006957480567 | G139: =LN(Kurse_Tag!G137/Kurse_Tag!G136) -> -0.005697093622 | H139: =LN(Kurse_Tag!H137/Kurse_Tag!H136) -> -0.005212106371 | I139: =LN(Kurse_Tag!I137/Kurse_Tag!I136) -> 0.008125407444
A140: 2009-03-17 | B140: =LN(Kurse_Tag!B138/Kurse_Tag!B137) -> -0.01181800338 | C140: =LN(Kurse_Tag!C138/Kurse_Tag!C137) -> -0.005752100991 | D140: =LN(Kurse_Tag!D138/Kurse_Tag!D137) -> -0.003811762422 | E140: =LN(Kurse_Tag!E138/Kurse_Tag!E137) -> -0.002211574805 | F140: =LN(Kurse_Tag!F138/Kurse_Tag!F137) -> -0.004811556997 | G140: =LN(Kurse_Tag!G138/Kurse_Tag!G137) -> 0.002608413608 | H140: =LN(Kurse_Tag!H138/Kurse_Tag!H137) -> -0.002016765037 | I140: =LN(Kurse_Tag!I138/Kurse_Tag!I137) -> -0.002397587028
A141: 2009-03-18 | B141: =LN(Kurse_Tag!B139/Kurse_Tag!B138) -> -0.05608946665 | C141: =LN(Kurse_Tag!C139/Kurse_Tag!C138) -> -0.04296952524 | D141: =LN(Kurse_Tag!D139/Kurse_Tag!D138) -> -0.005006636875 | E141: =LN(Kurse_Tag!E139/Kurse_Tag!E138) -> -0.001477105143 | F141: =LN(Kurse_Tag!F139/Kurse_Tag!F138) -> -0.01784313357 | G141: =LN(Kurse_Tag!G139/Kurse_Tag!G138) -> 0.005682294695 | H141: =LN(Kurse_Tag!H139/Kurse_Tag!H138) -> -0.009826686993 | I141: =LN(Kurse_Tag!I139/Kurse_Tag!I138) -> -0.004812488545
A142: 2009-03-19 | B142: =LN(Kurse_Tag!B140/Kurse_Tag!B139) -> 0.06843946395 | C142: =LN(Kurse_Tag!C140/Kurse_Tag!C139) -> 0.03003068362 | D142: =LN(Kurse_Tag!D140/Kurse_Tag!D139) -> 0.01494533313 | E142: =LN(Kurse_Tag!E140/Kurse_Tag!E139) -> 0.005160350559 | F142: =LN(Kurse_Tag!F140/Kurse_Tag!F139) -> -0.01207478996 | G142: =LN(Kurse_Tag!G140/Kurse_Tag!G139) -> 0.0128681203 | H142: =LN(Kurse_Tag!H140/Kurse_Tag!H139) -> -0.01385703466 | I142: =LN(Kurse_Tag!I140/Kurse_Tag!I139) -> -0.006508701215
A143: 2009-03-20 | B143: =LN(Kurse_Tag!B141/Kurse_Tag!B140) -> 0.01255408875 | C143: =LN(Kurse_Tag!C141/Kurse_Tag!C140) -> -0.002003507538 | D143: =LN(Kurse_Tag!D141/Kurse_Tag!D140) -> 0.003484324083 | E143: =LN(Kurse_Tag!E141/Kurse_Tag!E140) -> -0.01668249996 | F143: =LN(Kurse_Tag!F141/Kurse_Tag!F140) -> -0.02856536985 | G143: =LN(Kurse_Tag!G141/Kurse_Tag!G140) -> -0.01465050755 | H143: =LN(Kurse_Tag!H141/Kurse_Tag!H140) -> 0.0001937796731 | I143: =LN(Kurse_Tag!I141/Kurse_Tag!I140) -> -0.003018363992
A144: 2009-03-23 | B144: =LN(Kurse_Tag!B142/Kurse_Tag!B141) -> 0.02687859906 | C144: =LN(Kurse_Tag!C142/Kurse_Tag!C141) -> 0.004504446329 | D144: =LN(Kurse_Tag!D142/Kurse_Tag!D141) -> 0.02645846154 | E144: =LN(Kurse_Tag!E142/Kurse_Tag!E141) -> 0.04709758882 | F144: =LN(Kurse_Tag!F142/Kurse_Tag!F141) -> 0.04716546844 | G144: =LN(Kurse_Tag!G142/Kurse_Tag!G141) -> 0.02956195136 | H144: =LN(Kurse_Tag!H142/Kurse_Tag!H141) -> -0.02075250669 | I144: =LN(Kurse_Tag!I142/Kurse_Tag!I141) -> -0.01242042075
A145: 2009-03-24 | B145: =LN(Kurse_Tag!B143/Kurse_Tag!B142) -> -0.03858346604 | C145: =LN(Kurse_Tag!C143/Kurse_Tag!C142) -> -0.03063349785 | D145: =LN(Kurse_Tag!D143/Kurse_Tag!D142) -> 0.0007054674014 | E145: =LN(Kurse_Tag!E143/Kurse_Tag!E142) -> -0.005005373339 | F145: =LN(Kurse_Tag!F143/Kurse_Tag!F142) -> 0.01612938193 | G145: =LN(Kurse_Tag!G143/Kurse_Tag!G142) -> -0.0009451796545 | H145: =LN(Kurse_Tag!H143/Kurse_Tag!H142) -> -0.007479268409 | I145: =LN(Kurse_Tag!I143/Kurse_Tag!I142) -> -0.007595513367
A146: 2009-03-25 | B146: =LN(Kurse_Tag!B144/Kurse_Tag!B143) -> 0.002261071939 | C146: =LN(Kurse_Tag!C144/Kurse_Tag!C143) -> 0.003261402412 | D146: =LN(Kurse_Tag!D144/Kurse_Tag!D143) -> 0.009405558212 | E146: =LN(Kurse_Tag!E144/Kurse_Tag!E143) -> 0.03174869831 | F146: =LN(Kurse_Tag!F144/Kurse_Tag!F143) -> 0.02163102013 | G146: =LN(Kurse_Tag!G144/Kurse_Tag!G143) -> -0.007117467769 | H146: =LN(Kurse_Tag!H144/Kurse_Tag!H143) -> -0.006331455054 | I146: =LN(Kurse_Tag!I144/Kurse_Tag!I143) -> -0.01449675918
A147: 2009-03-26 | B147: =LN(Kurse_Tag!B145/Kurse_Tag!B144) -> 0.0236259322 | C147: =LN(Kurse_Tag!C145/Kurse_Tag!C144) -> 0.01506997769 | D147: =LN(Kurse_Tag!D145/Kurse_Tag!D144) -> -0.01520513596 | E147: =LN(Kurse_Tag!E145/Kurse_Tag!E144) -> -0.003826757149 | F147: =LN(Kurse_Tag!F145/Kurse_Tag!F144) -> 0.005724709884 | G147: =LN(Kurse_Tag!G145/Kurse_Tag!G144) -> 0.025389234 | H147: =LN(Kurse_Tag!H145/Kurse_Tag!H144) -> -0.01224285439 | I147: =LN(Kurse_Tag!I145/Kurse_Tag!I144) -> 0.003817129646
A148: 2009-03-27 | B148: =LN(Kurse_Tag!B146/Kurse_Tag!B145) -> -0.01476891556 | C148: =LN(Kurse_Tag!C146/Kurse_Tag!C145) -> -0.004696691084 | D148: =LN(Kurse_Tag!D146/Kurse_Tag!D145) -> -0.01026673783 | E148: =LN(Kurse_Tag!E146/Kurse_Tag!E145) -> 0.00243690286 | F148: =LN(Kurse_Tag!F146/Kurse_Tag!F145) -> -0.01885859976 | G148: =LN(Kurse_Tag!G146/Kurse_Tag!G145) -> 0.003552950366 | H148: =LN(Kurse_Tag!H146/Kurse_Tag!H145) -> 0.01464686222 | I148: =LN(Kurse_Tag!I146/Kurse_Tag!I145) -> -0.007561637003
A149: 2009-03-30 | B149: =LN(Kurse_Tag!B147/Kurse_Tag!B146) -> 0.003950689697 | C149: =LN(Kurse_Tag!C147/Kurse_Tag!C146) -> 0.01319970395 | D149: =LN(Kurse_Tag!D147/Kurse_Tag!D146) -> -0.03678709947 | E149: =LN(Kurse_Tag!E147/Kurse_Tag!E146) -> -0.01930900784 | F149: =LN(Kurse_Tag!F147/Kurse_Tag!F146) -> -0.01116735881 | G149: =LN(Kurse_Tag!G147/Kurse_Tag!G146) -> -0.06120304659 | H149: =LN(Kurse_Tag!H147/Kurse_Tag!H146) -> 0.03827623698 | I149: =LN(Kurse_Tag!I147/Kurse_Tag!I146) -> 0.02072255124
A150: 2009-03-31 | B150: =LN(Kurse_Tag!B148/Kurse_Tag!B147) -> -0.05645885453 | C150: =LN(Kurse_Tag!C148/Kurse_Tag!C147) -> -0.02398045923 | D150: =LN(Kurse_Tag!D148/Kurse_Tag!D147) -> 0.02945052049 | E150: =LN(Kurse_Tag!E148/Kurse_Tag!E147) -> -0.03645955171 | F150: =LN(Kurse_Tag!F148/Kurse_Tag!F147) -> 0.02846792138 | G150: =LN(Kurse_Tag!G148/Kurse_Tag!G147) -> 0.005395255465 | H150: =LN(Kurse_Tag!H148/Kurse_Tag!H147) -> -0.01149215308 | I150: =LN(Kurse_Tag!I148/Kurse_Tag!I147) -> 0.0094408526
A151: 2009-04-01 | B151: =LN(Kurse_Tag!B149/Kurse_Tag!B148) -> 0.02679127683 | C151: =LN(Kurse_Tag!C149/Kurse_Tag!C148) -> 0.01487237407 | D151: =LN(Kurse_Tag!D149/Kurse_Tag!D148) -> 0.01958744445 | E151: =LN(Kurse_Tag!E149/Kurse_Tag!E148) -> 0.06476827415 | F151: =LN(Kurse_Tag!F149/Kurse_Tag!F148) -> 0.01598384119 | G151: =LN(Kurse_Tag!G149/Kurse_Tag!G148) -> 0.003255741115 | H151: =LN(Kurse_Tag!H149/Kurse_Tag!H148) -> -0.01815074565 | I151: =LN(Kurse_Tag!I149/Kurse_Tag!I148) -> -0.02087151292
A152: 2009-04-02 | B152: =LN(Kurse_Tag!B150/Kurse_Tag!B149) -> -0.03715226563 | C152: =LN(Kurse_Tag!C150/Kurse_Tag!C149) -> -0.04098193251 | D152: =LN(Kurse_Tag!D150/Kurse_Tag!D149) -> 0.04661010978 | E152: =LN(Kurse_Tag!E150/Kurse_Tag!E149) -> 0.007894326222 | F152: =LN(Kurse_Tag!F150/Kurse_Tag!F149) -> 0.009165033603 | G152: =LN(Kurse_Tag!G150/Kurse_Tag!G149) -> 0.06709497758 | H152: =LN(Kurse_Tag!H150/Kurse_Tag!H149) -> -0.04968324287 | I152: =LN(Kurse_Tag!I150/Kurse_Tag!I149) -> 8.643415883e-05
A153: 2009-04-03 | B153: =LN(Kurse_Tag!B151/Kurse_Tag!B150) -> 0.006577541353 | C153: =LN(Kurse_Tag!C151/Kurse_Tag!C150) -> 0.003071255485 | D153: =LN(Kurse_Tag!D151/Kurse_Tag!D150) -> -0.01360565206 | E153: =LN(Kurse_Tag!E151/Kurse_Tag!E150) -> 0.007493223072 | F153: =LN(Kurse_Tag!F151/Kurse_Tag!F150) -> -0.0251488748 | G153: =LN(Kurse_Tag!G151/Kurse_Tag!G150) -> 0.01148395818 | H153: =LN(Kurse_Tag!H151/Kurse_Tag!H150) -> -0.01837487704 | I153: =LN(Kurse_Tag!I151/Kurse_Tag!I150) -> -0.004157289895
A154: 2009-04-06 | B154: =LN(Kurse_Tag!B152/Kurse_Tag!B151) -> -0.0442876802 | C154: =LN(Kurse_Tag!C152/Kurse_Tag!C151) -> -0.02830230892 | D154: =LN(Kurse_Tag!D152/Kurse_Tag!D151) -> -0.01018871543 | E154: =LN(Kurse_Tag!E152/Kurse_Tag!E151) -> -0.0405109921 | F154: =LN(Kurse_Tag!F152/Kurse_Tag!F151) -> 0.01598384119 | G154: =LN(Kurse_Tag!G152/Kurse_Tag!G151) -> -0.01072436832 | H154: =LN(Kurse_Tag!H152/Kurse_Tag!H151) -> 0.02447161201 | I154: =LN(Kurse_Tag!I152/Kurse_Tag!I151) -> -0.02096108315
A155: 2009-04-07 | B155: =LN(Kurse_Tag!B153/Kurse_Tag!B152) -> 0.02017251818 | C155: =LN(Kurse_Tag!C153/Kurse_Tag!C152) -> 0.01689123676 | D155: =LN(Kurse_Tag!D153/Kurse_Tag!D152) -> -0.009594733969 | E155: =LN(Kurse_Tag!E153/Kurse_Tag!E152) -> 0.03096438022 | F155: =LN(Kurse_Tag!F153/Kurse_Tag!F152) -> 0.01573237219 | G155: =LN(Kurse_Tag!G153/Kurse_Tag!G152) -> -0.01530251743 | H155: =LN(Kurse_Tag!H153/Kurse_Tag!H152) -> -0.001451529545 | I155: =LN(Kurse_Tag!I153/Kurse_Tag!I152) -> -0.00577753707
A156: 2009-04-08 | B156: =LN(Kurse_Tag!B154/Kurse_Tag!B153) -> 0.002105769476 | C156: =LN(Kurse_Tag!C154/Kurse_Tag!C153) -> 0.00880110676 | D156: =LN(Kurse_Tag!D154/Kurse_Tag!D153) -> -0.001258301459 | E156: =LN(Kurse_Tag!E154/Kurse_Tag!E153) -> -0.01345079772 | F156: =LN(Kurse_Tag!F154/Kurse_Tag!F153) -> 0.002514459459 | G156: =LN(Kurse_Tag!G154/Kurse_Tag!G153) -> 0.01119386065 | H156: =LN(Kurse_Tag!H154/Kurse_Tag!H153) -> -0.01091918906 | I156: =LN(Kurse_Tag!I154/Kurse_Tag!I153) -> 0.01152188586
A157: 2009-04-09 | B157: =LN(Kurse_Tag!B155/Kurse_Tag!B154) -> -0.005922214444 | C157: =LN(Kurse_Tag!C155/Kurse_Tag!C154) -> -0.0038506016 | D157: =LN(Kurse_Tag!D155/Kurse_Tag!D154) -> 0.0258248143 | E157: =LN(Kurse_Tag!E155/Kurse_Tag!E154) -> 0.03413300637 | F157: =LN(Kurse_Tag!F155/Kurse_Tag!F154) -> -0.007056480894 | G157: =LN(Kurse_Tag!G155/Kurse_Tag!G154) -> 0.02052592437 | H157: =LN(Kurse_Tag!H155/Kurse_Tag!H154) -> -0.03269658708 | I157: =LN(Kurse_Tag!I155/Kurse_Tag!I154) -> 0.009908450568
A158: 2009-04-14 | B158: =LN(Kurse_Tag!B156/Kurse_Tag!B155) -> 0.01338589598 | C158: =LN(Kurse_Tag!C156/Kurse_Tag!C155) -> -0.002298936828 | D158: =LN(Kurse_Tag!D156/Kurse_Tag!D155) -> 0.02211226672 | E158: =LN(Kurse_Tag!E156/Kurse_Tag!E155) -> 0.01267105983 | F158: =LN(Kurse_Tag!F156/Kurse_Tag!F155) -> -0.006088298867 | G158: =LN(Kurse_Tag!G156/Kurse_Tag!G155) -> 0.03175803499 | H158: =LN(Kurse_Tag!H156/Kurse_Tag!H155) -> -0.02346684681 | I158: =LN(Kurse_Tag!I156/Kurse_Tag!I155) -> -0.0005236516091
A159: 2009-04-15 | B159: =LN(Kurse_Tag!B157/Kurse_Tag!B156) -> 0.0232585463 | C159: =LN(Kurse_Tag!C157/Kurse_Tag!C156) -> 0.008955743391 | D159: =LN(Kurse_Tag!D157/Kurse_Tag!D156) -> -0.00615304242 | E159: =LN(Kurse_Tag!E157/Kurse_Tag!E156) -> -0.002986562698 | F159: =LN(Kurse_Tag!F157/Kurse_Tag!F156) -> -0.01331986906 | G159: =LN(Kurse_Tag!G157/Kurse_Tag!G156) -> 0 | H159: =LN(Kurse_Tag!H157/Kurse_Tag!H156) -> 0.008470569558 | I159: =LN(Kurse_Tag!I157/Kurse_Tag!I156) -> -0.003060111678
A160: 2009-04-16 | B160: =LN(Kurse_Tag!B158/Kurse_Tag!B157) -> -0.03876273284 | C160: =LN(Kurse_Tag!C158/Kurse_Tag!C157) -> -0.01309104218 | D160: =LN(Kurse_Tag!D158/Kurse_Tag!D157) -> 0.01650070705 | E160: =LN(Kurse_Tag!E158/Kurse_Tag!E157) -> -0.00299550898 | F160: =LN(Kurse_Tag!F158/Kurse_Tag!F157) -> 0.002060794135 | G160: =LN(Kurse_Tag!G158/Kurse_Tag!G157) -> 0.005340273931 | H160: =LN(Kurse_Tag!H158/Kurse_Tag!H157) -> -0.01373627683 | I160: =LN(Kurse_Tag!I158/Kurse_Tag!I157) -> 0.01045305685
A161: 2009-04-17 | B161: =LN(Kurse_Tag!B159/Kurse_Tag!B158) -> -0.01912517825 | C161: =LN(Kurse_Tag!C159/Kurse_Tag!C158) -> 0.00179385606 | D161: =LN(Kurse_Tag!D159/Kurse_Tag!D158) -> 0.017789874 | E161: =LN(Kurse_Tag!E159/Kurse_Tag!E158) -> 0.01028030941 | F161: =LN(Kurse_Tag!F159/Kurse_Tag!F158) -> -0.01451554776 | G161: =LN(Kurse_Tag!G159/Kurse_Tag!G158) -> 0.0212213333 | H161: =LN(Kurse_Tag!H159/Kurse_Tag!H158) -> -0.005368339764 | I161: =LN(Kurse_Tag!I159/Kurse_Tag!I158) -> 0.001818103613
A162: 2009-04-20 | B162: =LN(Kurse_Tag!B160/Kurse_Tag!B159) -> 0.02559231639 | C162: =LN(Kurse_Tag!C160/Kurse_Tag!C159) -> 0.0220830469 | D162: =LN(Kurse_Tag!D160/Kurse_Tag!D159) -> -0.02800419641 | E162: =LN(Kurse_Tag!E160/Kurse_Tag!E159) -> 0.006248992544 | F162: =LN(Kurse_Tag!F160/Kurse_Tag!F159) -> -0.008390190802 | G162: =LN(Kurse_Tag!G160/Kurse_Tag!G159) -> -0.03528259273 | H162: =LN(Kurse_Tag!H160/Kurse_Tag!H159) -> 0.02968363767 | I162: =LN(Kurse_Tag!I160/Kurse_Tag!I159) -> 0.01698154015
A163: 2009-04-21 | B163: =LN(Kurse_Tag!B161/Kurse_Tag!B160) -> -0.01052297098 | C163: =LN(Kurse_Tag!C161/Kurse_Tag!C160) -> -0.003360193714 | D163: =LN(Kurse_Tag!D161/Kurse_Tag!D160) -> -0.02867386058 | E163: =LN(Kurse_Tag!E161/Kurse_Tag!E160) -> -0.01953381097 | F163: =LN(Kurse_Tag!F161/Kurse_Tag!F160) -> -0.002108593296 | G163: =LN(Kurse_Tag!G161/Kurse_Tag!G160) -> -0.01945816108 | H163: =LN(Kurse_Tag!H161/Kurse_Tag!H160) -> 0.01733918759 | I163: =LN(Kurse_Tag!I161/Kurse_Tag!I160) -> 0.00770896274
A164: 2009-04-22 | B164: =LN(Kurse_Tag!B162/Kurse_Tag!B161) -> 0.01809374344 | C164: =LN(Kurse_Tag!C162/Kurse_Tag!C161) -> 0.0008426278928 | D164: =LN(Kurse_Tag!D162/Kurse_Tag!D161) -> 0.04152427256 | E164: =LN(Kurse_Tag!E162/Kurse_Tag!E161) -> 0.01953381097 | F164: =LN(Kurse_Tag!F162/Kurse_Tag!F161) -> -0.008479118103 | G164: =LN(Kurse_Tag!G162/Kurse_Tag!G161) -> 0.005492480222 | H164: =LN(Kurse_Tag!H162/Kurse_Tag!H161) -> -0.03786927298 | I164: =LN(Kurse_Tag!I162/Kurse_Tag!I161) -> 0.003958399913
A165: 2009-04-23 | B165: =LN(Kurse_Tag!B163/Kurse_Tag!B162) -> 0.04448366101 | C165: =LN(Kurse_Tag!C163/Kurse_Tag!C162) -> 0.01592736196 | D165: =LN(Kurse_Tag!D163/Kurse_Tag!D162) -> 0.0003948147712 | E165: =LN(Kurse_Tag!E163/Kurse_Tag!E162) -> -0.009553688215 | F165: =LN(Kurse_Tag!F163/Kurse_Tag!F162) -> -0.01663574721 | G165: =LN(Kurse_Tag!G163/Kurse_Tag!G162) -> 0 | H165: =LN(Kurse_Tag!H163/Kurse_Tag!H162) -> -0.0050501407 | I165: =LN(Kurse_Tag!I163/Kurse_Tag!I162) -> -0.001093309894
A166: 2009-04-24 | B166: =LN(Kurse_Tag!B164/Kurse_Tag!B163) -> -0.02249677958 | C166: =LN(Kurse_Tag!C164/Kurse_Tag!C163) -> -0.01311563345 | D166: =LN(Kurse_Tag!D164/Kurse_Tag!D163) -> 0.01268239526 | E166: =LN(Kurse_Tag!E164/Kurse_Tag!E163) -> 0.007584537595 | F166: =LN(Kurse_Tag!F164/Kurse_Tag!F163) -> 0.0219436153 | G166: =LN(Kurse_Tag!G164/Kurse_Tag!G163) -> 0.008549580379 | H166: =LN(Kurse_Tag!H164/Kurse_Tag!H163) -> -0.01734863833 | I166: =LN(Kurse_Tag!I164/Kurse_Tag!I163) -> -0.002780705394
A167: 2009-04-27 | B167: =LN(Kurse_Tag!B165/Kurse_Tag!B164) -> 0.02010796372 | C167: =LN(Kurse_Tag!C165/Kurse_Tag!C164) -> 0.0051474638 | D167: =LN(Kurse_Tag!D165/Kurse_Tag!D164) -> 0.006862200813 | E167: =LN(Kurse_Tag!E165/Kurse_Tag!E164) -> -0.007584537595 | F167: =LN(Kurse_Tag!F165/Kurse_Tag!F164) -> 0.01000798451 | G167: =LN(Kurse_Tag!G165/Kurse_Tag!G164) -> 0.03632046434 | H167: =LN(Kurse_Tag!H165/Kurse_Tag!H164) -> -0.01073927835 | I167: =LN(Kurse_Tag!I165/Kurse_Tag!I164) -> -0.009921641703
A168: 2009-04-28 | B168: =LN(Kurse_Tag!B166/Kurse_Tag!B165) -> -0.04062856922 | C168: =LN(Kurse_Tag!C166/Kurse_Tag!C165) -> -0.01402856012 | D168: =LN(Kurse_Tag!D166/Kurse_Tag!D165) -> -0.01586715563 | E168: =LN(Kurse_Tag!E166/Kurse_Tag!E165) -> -0.01098363513 | F168: =LN(Kurse_Tag!F166/Kurse_Tag!F165) -> -0.009478743955 | G168: =LN(Kurse_Tag!G166/Kurse_Tag!G165) -> -0.02508193111 | H168: =LN(Kurse_Tag!H166/Kurse_Tag!H165) -> 0.01376499927 | I168: =LN(Kurse_Tag!I166/Kurse_Tag!I165) -> 0.009752865331
A169: 2009-04-29 | B169: =LN(Kurse_Tag!B167/Kurse_Tag!B166) -> 0.0170335884 | C169: =LN(Kurse_Tag!C167/Kurse_Tag!C166) -> -0.009179860309 | D169: =LN(Kurse_Tag!D167/Kurse_Tag!D166) -> 0.01599617956 | E169: =LN(Kurse_Tag!E167/Kurse_Tag!E166) -> 0.004008021398 | F169: =LN(Kurse_Tag!F167/Kurse_Tag!F166) -> -0.01010378178 | G169: =LN(Kurse_Tag!G167/Kurse_Tag!G166) -> 0.02706156977 | H169: =LN(Kurse_Tag!H167/Kurse_Tag!H166) -> -0.01445441674 | I169: =LN(Kurse_Tag!I167/Kurse_Tag!I166) -> 0.0114958262
A170: 2009-04-30 | B170: =LN(Kurse_Tag!B168/Kurse_Tag!B167) -> -0.03607826125 | C170: =LN(Kurse_Tag!C168/Kurse_Tag!C167) -> -0.008507971686 | D170: =LN(Kurse_Tag!D168/Kurse_Tag!D167) -> 0.02911654416 | E170: =LN(Kurse_Tag!E168/Kurse_Tag!E167) -> -0.007696206634 | F170: =LN(Kurse_Tag!F168/Kurse_Tag!F167) -> -0.001604707485 | G170: =LN(Kurse_Tag!G168/Kurse_Tag!G167) -> 0.02455823154 | H170: =LN(Kurse_Tag!H168/Kurse_Tag!H167) -> -0.02419848182 | I170: =LN(Kurse_Tag!I168/Kurse_Tag!I167) -> -0.01861027986
A171: 2009-05-04 | B171: =LN(Kurse_Tag!B169/Kurse_Tag!B168) -> 0.04650304534 | C171: =LN(Kurse_Tag!C169/Kurse_Tag!C168) -> 0.01191376482 | D171: =LN(Kurse_Tag!D169/Kurse_Tag!D168) -> 0.01009920684 | E171: =LN(Kurse_Tag!E169/Kurse_Tag!E168) -> 0.0245533237 | F171: =LN(Kurse_Tag!F169/Kurse_Tag!F168) -> 0.04039363726 | G171: =LN(Kurse_Tag!G169/Kurse_Tag!G168) -> 0.001102080288 | H171: =LN(Kurse_Tag!H169/Kurse_Tag!H168) -> -0.01335618701 | I171: =LN(Kurse_Tag!I169/Kurse_Tag!I168) -> -0.02556847416
A172: 2009-05-05 | B172: =LN(Kurse_Tag!B170/Kurse_Tag!B169) -> 0.02949652044 | C172: =LN(Kurse_Tag!C170/Kurse_Tag!C169) -> 0.002605832636 | D172: =LN(Kurse_Tag!D170/Kurse_Tag!D169) -> -0.002857322274 | E172: =LN(Kurse_Tag!E170/Kurse_Tag!E169) -> -0.004270001561 | F172: =LN(Kurse_Tag!F170/Kurse_Tag!F169) -> -0.006188776844 | G172: =LN(Kurse_Tag!G170/Kurse_Tag!G169) -> 0.0119073466 | H172: =LN(Kurse_Tag!H170/Kurse_Tag!H169) -> 0.002463349015 | I172: =LN(Kurse_Tag!I170/Kurse_Tag!I169) -> -0.004019227778
A173: 2009-05-06 | B173: =LN(Kurse_Tag!B171/Kurse_Tag!B170) -> 0.03602156353 | C173: =LN(Kurse_Tag!C171/Kurse_Tag!C170) -> 0.00771305177 | D173: =LN(Kurse_Tag!D171/Kurse_Tag!D170) -> 0 | E173: =LN(Kurse_Tag!E171/Kurse_Tag!E170) -> 0.03270487369 | F173: =LN(Kurse_Tag!F171/Kurse_Tag!F170) -> 0.003099176034 | G173: =LN(Kurse_Tag!G171/Kurse_Tag!G170) -> 0.001359619516 | H173: =LN(Kurse_Tag!H171/Kurse_Tag!H170) -> -0.002781642962 | I173: =LN(Kurse_Tag!I171/Kurse_Tag!I170) -> 0.0003501400596
A174: 2009-05-07 | B174: =LN(Kurse_Tag!B172/Kurse_Tag!B171) -> -0.00871611284 | C174: =LN(Kurse_Tag!C172/Kurse_Tag!C171) -> 0.001579281618 | D174: =LN(Kurse_Tag!D172/Kurse_Tag!D171) -> 0.006819194487 | E174: =LN(Kurse_Tag!E172/Kurse_Tag!E171) -> -0.0254893619 | F174: =LN(Kurse_Tag!F172/Kurse_Tag!F171) -> 0.01230153903 | G174: =LN(Kurse_Tag!G172/Kurse_Tag!G171) -> 0 | H174: =LN(Kurse_Tag!H172/Kurse_Tag!H171) -> 0.01555683445 | I174: =LN(Kurse_Tag!I172/Kurse_Tag!I171) -> 0.007932744384
A175: 2009-05-08 | B175: =LN(Kurse_Tag!B173/Kurse_Tag!B172) -> 0.003361347703 | C175: =LN(Kurse_Tag!C173/Kurse_Tag!C172) -> -0.01228285539 | D175: =LN(Kurse_Tag!D173/Kurse_Tag!D172) -> 0.02042509702 | E175: =LN(Kurse_Tag!E173/Kurse_Tag!E172) -> 0.01556451654 | F175: =LN(Kurse_Tag!F173/Kurse_Tag!F172) -> 0.004067112876 | G175: =LN(Kurse_Tag!G173/Kurse_Tag!G172) -> 0.01000413913 | H175: =LN(Kurse_Tag!H173/Kurse_Tag!H172) -> -0.02611777748 | I175: =LN(Kurse_Tag!I173/Kurse_Tag!I172) -> -0.005572500271
A176: 2009-05-11 | B176: =LN(Kurse_Tag!B174/Kurse_Tag!B173) -> -0.02085351486 | C176: =LN(Kurse_Tag!C174/Kurse_Tag!C173) -> -0.01137651089 | D176: =LN(Kurse_Tag!D174/Kurse_Tag!D173) -> -0.008022408408 | E176: =LN(Kurse_Tag!E174/Kurse_Tag!E173) -> -0.009374563563 | F176: =LN(Kurse_Tag!F174/Kurse_Tag!F173) -> 0 | G176: =LN(Kurse_Tag!G174/Kurse_Tag!G173) -> -0.01723127907 | H176: =LN(Kurse_Tag!H174/Kurse_Tag!H173) -> 0.01254862009 | I176: =LN(Kurse_Tag!I174/Kurse_Tag!I173) -> -0.01903979949
A177: 2009-05-12 | B177: =LN(Kurse_Tag!B175/Kurse_Tag!B174) -> 0.02420360174 | C177: =LN(Kurse_Tag!C175/Kurse_Tag!C174) -> 0.007135131868 | D177: =LN(Kurse_Tag!D175/Kurse_Tag!D174) -> -0.008456450909 | E177: =LN(Kurse_Tag!E175/Kurse_Tag!E174) -> 0.01961793098 | F177: =LN(Kurse_Tag!F175/Kurse_Tag!F174) -> 0.01460615239 | G177: =LN(Kurse_Tag!G175/Kurse_Tag!G174) -> 0.008991886198 | H177: =LN(Kurse_Tag!H175/Kurse_Tag!H174) -> -0.001589825454 | I177: =LN(Kurse_Tag!I175/Kurse_Tag!I174) -> 0.005148244994
A178: 2009-05-13 | B178: =LN(Kurse_Tag!B176/Kurse_Tag!B175) -> -0.003235999434 | C178: =LN(Kurse_Tag!C176/Kurse_Tag!C175) -> 0.004626068389 | D178: =LN(Kurse_Tag!D176/Kurse_Tag!D175) -> -0.03036404944 | E178: =LN(Kurse_Tag!E176/Kurse_Tag!E175) -> -0.01864406302 | F178: =LN(Kurse_Tag!F176/Kurse_Tag!F175) -> 0.01242252 | G178: =LN(Kurse_Tag!G176/Kurse_Tag!G175) -> -0.01572037022 | H178: =LN(Kurse_Tag!H176/Kurse_Tag!H175) -> 0.02761826253 | I178: =LN(Kurse_Tag!I176/Kurse_Tag!I175) -> 0.009340920932
A179: 2009-05-14 | B179: =LN(Kurse_Tag!B177/Kurse_Tag!B176) -> -0.007226569614 | C179: =LN(Kurse_Tag!C177/Kurse_Tag!C176) -> 0.005217136277 | D179: =LN(Kurse_Tag!D177/Kurse_Tag!D176) -> 0.01360908101 | E179: =LN(Kurse_Tag!E177/Kurse_Tag!E176) -> -0.01536731239 | F179: =LN(Kurse_Tag!F177/Kurse_Tag!F176) -> 0.006399234242 | G179: =LN(Kurse_Tag!G177/Kurse_Tag!G176) -> -0.03305623104 | H179: =LN(Kurse_Tag!H177/Kurse_Tag!H176) -> 0.002936405788 | I179: =LN(Kurse_Tag!I177/Kurse_Tag!I176) -> 0.008037083535
A180: 2009-05-15 | B180: =LN(Kurse_Tag!B178/Kurse_Tag!B177) -> 0.00375113446 | C180: =LN(Kurse_Tag!C178/Kurse_Tag!C177) -> 0.004891597871 | D180: =LN(Kurse_Tag!D178/Kurse_Tag!D177) -> 0.009714860314 | E180: =LN(Kurse_Tag!E178/Kurse_Tag!E177) -> 0.04509620783 | F180: =LN(Kurse_Tag!F178/Kurse_Tag!F177) -> -0.009862012869 | G180: =LN(Kurse_Tag!G178/Kurse_Tag!G177) -> 0.01470198944 | H180: =LN(Kurse_Tag!H178/Kurse_Tag!H177) -> 0.003312409145 | I180: =LN(Kurse_Tag!I178/Kurse_Tag!I177) -> 0.009525530979
A181: 2009-05-18 | B181: =LN(Kurse_Tag!B179/Kurse_Tag!B178) -> -0.01470011174 | C181: =LN(Kurse_Tag!C179/Kurse_Tag!C178) -> -0.001835360773 | D181: =LN(Kurse_Tag!D179/Kurse_Tag!D178) -> 0.02206512662 | E181: =LN(Kurse_Tag!E179/Kurse_Tag!E178) -> -0.005052110525 | F181: =LN(Kurse_Tag!F179/Kurse_Tag!F178) -> 0.003462778627 | G181: =LN(Kurse_Tag!G179/Kurse_Tag!G178) -> 0.02849826279 | H181: =LN(Kurse_Tag!H179/Kurse_Tag!H178) -> -0.03021425041 | I181: =LN(Kurse_Tag!I179/Kurse_Tag!I178) -> 0.01632724221
A182: 2009-05-19 | B182: =LN(Kurse_Tag!B180/Kurse_Tag!B179) -> 0.01598548059 | C182: =LN(Kurse_Tag!C180/Kurse_Tag!C179) -> -0.0009158907677 | D182: =LN(Kurse_Tag!D180/Kurse_Tag!D179) -> 0.02063908154 | E182: =LN(Kurse_Tag!E180/Kurse_Tag!E179) -> -0.002853068982 | F182: =LN(Kurse_Tag!F180/Kurse_Tag!F179) -> -0.003958441586 | G182: =LN(Kurse_Tag!G180/Kurse_Tag!G179) -> 0.01971704658 | H182: =LN(Kurse_Tag!H180/Kurse_Tag!H179) -> -0.02577317399 | I182: =LN(Kurse_Tag!I180/Kurse_Tag!I179) -> -0.004078170478
A183: 2009-05-20 | B183: =LN(Kurse_Tag!B181/Kurse_Tag!B180) -> 0.009431411551 | C183: =LN(Kurse_Tag!C181/Kurse_Tag!C180) -> -0.001659898556 | D183: =LN(Kurse_Tag!D181/Kurse_Tag!D180) -> 0.003674949308 | E183: =LN(Kurse_Tag!E181/Kurse_Tag!E180) -> -0.005730674709 | F183: =LN(Kurse_Tag!F181/Kurse_Tag!F180) -> 0.007901275674 | G183: =LN(Kurse_Tag!G181/Kurse_Tag!G180) -> 0.02064657777 | H183: =LN(Kurse_Tag!H181/Kurse_Tag!H180) -> -0.01153434195 | I183: =LN(Kurse_Tag!I181/Kurse_Tag!I180) -> -0.01578889844
A184: 2009-05-22 | B184: =LN(Kurse_Tag!B182/Kurse_Tag!B181) -> 0.01060314772 | C184: =LN(Kurse_Tag!C182/Kurse_Tag!C181) -> 0.009791075737 | D184: =LN(Kurse_Tag!D182/Kurse_Tag!D181) -> -0.02044180917 | E184: =LN(Kurse_Tag!E182/Kurse_Tag!E181) -> -0.01091503613 | F184: =LN(Kurse_Tag!F182/Kurse_Tag!F181) -> -0.01786648021 | G184: =LN(Kurse_Tag!G182/Kurse_Tag!G181) -> -0.02856767712 | H184: =LN(Kurse_Tag!H182/Kurse_Tag!H181) -> 0.02646902923 | I184: =LN(Kurse_Tag!I182/Kurse_Tag!I181) -> 0.005434092813
A185: 2009-05-25 | B185: =LN(Kurse_Tag!B183/Kurse_Tag!B182) -> 0.004150898468 | C185: =LN(Kurse_Tag!C183/Kurse_Tag!C182) -> -0.002044060202 | D185: =LN(Kurse_Tag!D183/Kurse_Tag!D182) -> 0.004939471521 | E185: =LN(Kurse_Tag!E183/Kurse_Tag!E182) -> 0.0006453694964 | F185: =LN(Kurse_Tag!F183/Kurse_Tag!F182) -> 0.01342969699 | G185: =LN(Kurse_Tag!G183/Kurse_Tag!G182) -> -0.002564276997 | H185: =LN(Kurse_Tag!H183/Kurse_Tag!H182) -> 0.009807517914 | I185: =LN(Kurse_Tag!I183/Kurse_Tag!I182) -> -0.01377181699
A186: 2009-05-26 | B186: =LN(Kurse_Tag!B184/Kurse_Tag!B183) -> -0.006791164028 | C186: =LN(Kurse_Tag!C184/Kurse_Tag!C183) -> -0.007006904546 | D186: =LN(Kurse_Tag!D184/Kurse_Tag!D183) -> -0.005060251762 | E186: =LN(Kurse_Tag!E184/Kurse_Tag!E183) -> 0 | F186: =LN(Kurse_Tag!F184/Kurse_Tag!F183) -> -0.003960401216 | G186: =LN(Kurse_Tag!G184/Kurse_Tag!G183) -> -0.01005033585 | H186: =LN(Kurse_Tag!H184/Kurse_Tag!H183) -> -0.01930762962 | I186: =LN(Kurse_Tag!I184/Kurse_Tag!I183) -> -0.002532420687
A187: 2009-05-27 | B187: =LN(Kurse_Tag!B185/Kurse_Tag!B184) -> 0.01573802975 | C187: =LN(Kurse_Tag!C185/Kurse_Tag!C184) -> 0.009738455026 | D187: =LN(Kurse_Tag!D185/Kurse_Tag!D184) -> 0.003015138267 | E187: =LN(Kurse_Tag!E185/Kurse_Tag!E184) -> 0.01600034135 | F187: =LN(Kurse_Tag!F185/Kurse_Tag!F184) -> -0.01549643607 | G187: =LN(Kurse_Tag!G185/Kurse_Tag!G184) -> 0.02905773448 | H187: =LN(Kurse_Tag!H185/Kurse_Tag!H184) -> -0.004784116159 | I187: =LN(Kurse_Tag!I185/Kurse_Tag!I184) -> 0.001572602106
A188: 2009-05-28 | B188: =LN(Kurse_Tag!B186/Kurse_Tag!B185) -> 0.02183533612 | C188: =LN(Kurse_Tag!C186/Kurse_Tag!C185) -> 0.0048263604 | D188: =LN(Kurse_Tag!D186/Kurse_Tag!D185) -> -0.01565660964 | E188: =LN(Kurse_Tag!E186/Kurse_Tag!E185) -> -0.01277972665 | F188: =LN(Kurse_Tag!F186/Kurse_Tag!F185) -> -0.01012666882 | G188: =LN(Kurse_Tag!G186/Kurse_Tag!G185) -> -0.00305424844 | H188: =LN(Kurse_Tag!H186/Kurse_Tag!H185) -> 0.01123471101 | I188: =LN(Kurse_Tag!I186/Kurse_Tag!I185) -> -0.004286783171
A189: 2009-05-29 | B189: =LN(Kurse_Tag!B187/Kurse_Tag!B186) -> 0.01708504667 | C189: =LN(Kurse_Tag!C187/Kurse_Tag!C186) -> -0.0005967468433 | D189: =LN(Kurse_Tag!D187/Kurse_Tag!D186) -> 0.004150396583 | E189: =LN(Kurse_Tag!E187/Kurse_Tag!E186) -> 0.001285347221 | F189: =LN(Kurse_Tag!F187/Kurse_Tag!F186) -> -0.01538491884 | G189: =LN(Kurse_Tag!G187/Kurse_Tag!G186) -> -0.01177271122 | H189: =LN(Kurse_Tag!H187/Kurse_Tag!H186) -> -0.005803659688 | I189: =LN(Kurse_Tag!I187/Kurse_Tag!I186) -> -0.009690851983
A190: 2009-06-02 | B190: =LN(Kurse_Tag!B188/Kurse_Tag!B187) -> 0.009342951799 | C190: =LN(Kurse_Tag!C188/Kurse_Tag!C187) -> 0.001807229408 | D190: =LN(Kurse_Tag!D188/Kurse_Tag!D187) -> 0.02157099967 | E190: =LN(Kurse_Tag!E188/Kurse_Tag!E187) -> -0.001285347221 | F190: =LN(Kurse_Tag!F188/Kurse_Tag!F187) -> 0.01995461453 | G190: =LN(Kurse_Tag!G188/Kurse_Tag!G187) -> 0.05127983716 | H190: =LN(Kurse_Tag!H188/Kurse_Tag!H187) -> -0.0373082343 | I190: =LN(Kurse_Tag!I188/Kurse_Tag!I187) -> -0.009875085809
A191: 2009-06-03 | B191: =LN(Kurse_Tag!B189/Kurse_Tag!B188) -> -0.003104628386 | C191: =LN(Kurse_Tag!C189/Kurse_Tag!C188) -> -0.0009032064441 | D191: =LN(Kurse_Tag!D189/Kurse_Tag!D188) -> -0.0111491894 | E191: =LN(Kurse_Tag!E189/Kurse_Tag!E188) -> 0.00896292812 | F191: =LN(Kurse_Tag!F189/Kurse_Tag!F188) -> 0 | G191: =LN(Kurse_Tag!G189/Kurse_Tag!G188) -> -0.009763695241 | H191: =LN(Kurse_Tag!H189/Kurse_Tag!H188) -> 0.008689168213 | I191: =LN(Kurse_Tag!I189/Kurse_Tag!I188) -> -0.007088092123
A192: 2009-06-04 | B192: =LN(Kurse_Tag!B190/Kurse_Tag!B189) -> -0.00125700861 | C192: =LN(Kurse_Tag!C190/Kurse_Tag!C189) -> 0.001802591223 | D192: =LN(Kurse_Tag!D190/Kurse_Tag!D189) -> 0.009836931529 | E192: =LN(Kurse_Tag!E190/Kurse_Tag!E189) -> -0.002872189624 | F192: =LN(Kurse_Tag!F190/Kurse_Tag!F189) -> 0.01058210933 | G192: =LN(Kurse_Tag!G190/Kurse_Tag!G189) -> -0.006735776762 | H192: =LN(Kurse_Tag!H190/Kurse_Tag!H189) -> -0.001415192744 | I192: =LN(Kurse_Tag!I190/Kurse_Tag!I189) -> 0.001349710017
A193: 2009-06-05 | B193: =LN(Kurse_Tag!B191/Kurse_Tag!B190) -> -0.002481313501 | C193: =LN(Kurse_Tag!C191/Kurse_Tag!C190) -> -0.003611455147 | D193: =LN(Kurse_Tag!D191/Kurse_Tag!D190) -> 0.003693778403 | E193: =LN(Kurse_Tag!E191/Kurse_Tag!E190) -> 0.02649161545 | F193: =LN(Kurse_Tag!F191/Kurse_Tag!F190) -> -0.02847167408 | G193: =LN(Kurse_Tag!G191/Kurse_Tag!G190) -> 0.001688202466 | H193: =LN(Kurse_Tag!H191/Kurse_Tag!H190) -> 0.001248803393 | I193: =LN(Kurse_Tag!I191/Kurse_Tag!I190) -> -0.002160411318
A194: 2009-06-08 | B194: =LN(Kurse_Tag!B192/Kurse_Tag!B191) -> -0.02178361437 | C194: =LN(Kurse_Tag!C192/Kurse_Tag!C191) -> -0.004294058429 | D194: =LN(Kurse_Tag!D192/Kurse_Tag!D191) -> -0.00716164436 | E194: =LN(Kurse_Tag!E192/Kurse_Tag!E191) -> -0.01095301202 | F194: =LN(Kurse_Tag!F192/Kurse_Tag!F191) -> 0.01077209698 | G194: =LN(Kurse_Tag!G192/Kurse_Tag!G191) -> -0.0139807595 | H194: =LN(Kurse_Tag!H192/Kurse_Tag!H191) -> 0.01903720602 | I194: =LN(Kurse_Tag!I192/Kurse_Tag!I191) -> -0.007507610678
A195: 2009-06-09 | B195: =LN(Kurse_Tag!B193/Kurse_Tag!B192) -> -0.004783413011 | C195: =LN(Kurse_Tag!C193/Kurse_Tag!C192) -> -0.006018438179 | D195: =LN(Kurse_Tag!D193/Kurse_Tag!D192) -> -0.006730794641 | E195: =LN(Kurse_Tag!E193/Kurse_Tag!E192) -> 0.01157528958 | F195: =LN(Kurse_Tag!F193/Kurse_Tag!F192) -> 0.001019887901 | G195: =LN(Kurse_Tag!G193/Kurse_Tag!G192) -> -0.002635047638 | H195: =LN(Kurse_Tag!H193/Kurse_Tag!H192) -> -8.163598519e-05 | I195: =LN(Kurse_Tag!I193/Kurse_Tag!I192) -> 0.005342521876
A196: 2009-06-10 | B196: =LN(Kurse_Tag!B194/Kurse_Tag!B193) -> 0 | C196: =LN(Kurse_Tag!C194/Kurse_Tag!C193) -> -0.003053437487 | D196: =LN(Kurse_Tag!D194/Kurse_Tag!D193) -> 0.01508107577 | E196: =LN(Kurse_Tag!E194/Kurse_Tag!E193) -> 0.0117502898 | F196: =LN(Kurse_Tag!F194/Kurse_Tag!F193) -> 0.003561438514 | G196: =LN(Kurse_Tag!G194/Kurse_Tag!G193) -> 0.01700498792 | H196: =LN(Kurse_Tag!H194/Kurse_Tag!H193) -> -0.01978793233 | I196: =LN(Kurse_Tag!I194/Kurse_Tag!I193) -> 0.002345301454
A197: 2009-06-11 | B197: =LN(Kurse_Tag!B195/Kurse_Tag!B194) -> 0.00463666991 | C197: =LN(Kurse_Tag!C195/Kurse_Tag!C194) -> -0.007058491788 | D197: =LN(Kurse_Tag!D195/Kurse_Tag!D194) -> 0.009223194151 | E197: =LN(Kurse_Tag!E195/Kurse_Tag!E194) -> -0.0161143865 | F197: =LN(Kurse_Tag!F195/Kurse_Tag!F194) -> -0.002542589725 | G197: =LN(Kurse_Tag!G195/Kurse_Tag!G194) -> -0.0009083242044 | H197: =LN(Kurse_Tag!H195/Kurse_Tag!H194) -> 0.001414603939 | I197: =LN(Kurse_Tag!I195/Kurse_Tag!I194) -> -0.006508203393
A198: 2009-06-12 | B198: =LN(Kurse_Tag!B196/Kurse_Tag!B195) -> -0.0207855955 | C198: =LN(Kurse_Tag!C196/Kurse_Tag!C195) -> -0.006798542873 | D198: =LN(Kurse_Tag!D196/Kurse_Tag!D195) -> 0.002468701659 | E198: =LN(Kurse_Tag!E196/Kurse_Tag!E195) -> 0 | F198: =LN(Kurse_Tag!F196/Kurse_Tag!F195) -> -0.001018848789 | G198: =LN(Kurse_Tag!G196/Kurse_Tag!G195) -> -0.003250766792 | H198: =LN(Kurse_Tag!H196/Kurse_Tag!H195) -> 0.002408539016 | I198: =LN(Kurse_Tag!I196/Kurse_Tag!I195) -> -0.002542451202
A199: 2009-06-15 | B199: =LN(Kurse_Tag!B197/Kurse_Tag!B196) -> -0.03971620726 | C199: =LN(Kurse_Tag!C197/Kurse_Tag!C196) -> -0.0006203474144 | D199: =LN(Kurse_Tag!D197/Kurse_Tag!D196) -> -0.02617016248 | E199: =LN(Kurse_Tag!E197/Kurse_Tag!E196) -> -0.01764937084 | F199: =LN(Kurse_Tag!F197/Kurse_Tag!F196) -> -0.01282397672 | G199: =LN(Kurse_Tag!G197/Kurse_Tag!G196) -> -0.01906572774 | H199: =LN(Kurse_Tag!H197/Kurse_Tag!H196) -> 0.02150091033 | I199: =LN(Kurse_Tag!I197/Kurse_Tag!I196) -> -0.002275520938
A200: 2009-06-16 | B200: =LN(Kurse_Tag!B198/Kurse_Tag!B197) -> -0.003558287629 | C200: =LN(Kurse_Tag!C198/Kurse_Tag!C197) -> 0.003329851685 | D200: =LN(Kurse_Tag!D198/Kurse_Tag!D197) -> -0.01005398815 | E200: =LN(Kurse_Tag!E198/Kurse_Tag!E197) -> -0.003822878182 | F200: =LN(Kurse_Tag!F198/Kurse_Tag!F197) -> 0.004635599339 | G200: =LN(Kurse_Tag!G198/Kurse_Tag!G197) -> -0.01875976227 | H200: =LN(Kurse_Tag!H198/Kurse_Tag!H197) -> 0.002108678802 | I200: =LN(Kurse_Tag!I198/Kurse_Tag!I197) -> 0.009522585902
... 53 more rows

Sheet Kurse_Tag
A1: Date | B1: ZKB SILVER ETF (ZSIL/ CH0029792717) | C1: ZKB GOLD ETF (ZGLD/ CH0024391002) | D1: Xmtch (CH) SLI (XMSLI/ CH0031768937) | E1: UBS-ETF MSCI JAPAN (FDJPHU/ LU0136240974) | F1: NESTLE N (NESN/ CH0038863350) | G1: DB X-TR DAX (XDAX/ LU0274211480) | H1: DB X-TR SHORT DAX (XSDX/ LU0292106241) | I1: JPY/CHF
A2: 2008-08-29 | B2: 1451 | C2: 2938 | D2: 108.65 | E2: 39.99 | F2: 48.6 | G2: 104.4 | H2: 115.71 | I2: 0.010016
A3: 2008-09-01 | B3: 1435 | C3: 2880 | D3: 108.77 | E3: 39.2 | F3: 48.54 | G3: 103.11 | H3: 115.71 | I3: 0.01013
A4: 2008-09-02 | B4: 1362 | C4: 2828 | D4: 109.96 | E4: 39.86 | F4: 48.96 | G4: 104.92 | H4: 114.15 | I4: 0.010173
A5: 2008-09-03 | B5: 1370 | C5: 2839 | D5: 109.82 | E5: 38.76 | F5: 48.62 | G5: 103.7 | H5: 114.29 | I5: 0.010197
A6: 2008-09-04 | B6: 1360 | C6: 2830 | D6: 106.99 | E6: 38.3 | F6: 47.86 | G6: 100.81 | H6: 117.16 | I6: 0.010217
A7: 2008-09-05 | B7: 1363 | C7: 2871 | D7: 104.55 | E7: 37.88 | F7: 48.1 | G7: 96.6 | H7: 119.58 | I7: 0.010238
A8: 2008-09-08 | B8: 1340 | C8: 2900 | D8: 108 | E8: 39.3 | F8: 48.9 | G8: 100.51 | H8: 117.05 | I8: 0.010391
A9: 2008-09-09 | B9: 1277 | C9: 2817 | D9: 107.5 | E9: 39.3 | F9: 49.92 | G9: 99.37 | H9: 117.73 | I9: 0.010355
A10: 2008-09-10 | B10: 1199 | C10: 2777 | D10: 107.16 | E10: 38.8 | F10: 49.12 | G10: 98.65 | H10: 118.71 | I10: 0.010492
A11: 2008-09-11 | B11: 1133 | C11: 2698 | D11: 104.26 | E11: 39.19 | F11: 49.48 | G11: 97.76 | H11: 119.66 | I11: 0.010527
A12: 2008-09-12 | B12: 1179 | C12: 2739 | D12: 106.55 | E12: 39.05 | F12: 50.65 | G12: 98.58 | H12: 118.14 | I12: 0.010633
A13: 2008-09-15 | B13: 1177 | C13: 2786 | D13: 103.7 | E13: 37.85 | F13: 49.42 | G13: 95.66 | H13: 121.9 | I13: 0.010481
A14: 2008-09-16 | B14: 1151 | C14: 2781 | D14: 101.57 | E14: 36.01 | F14: 48.98 | G14: 94.04 | H14: 123 | I14: 0.010573
A15: 2008-09-17 | B15: 1208 | C15: 2974 | D15: 99.5 | E15: 36.6 | F15: 48.6 | G15: 93 | H15: 123.26 | I15: 0.01067
A16: 2008-09-18 | B16: 1298 | C16: 3061 | D16: 98.87 | E16: 36.4 | F16: 48.1 | G16: 92.53 | H16: 124.5 | I16: 0.010602
A17: 2008-09-19 | B17: 1310 | C17: 3049 | D17: 105.8 | E17: 39.99 | F17: 49.34 | G17: 98.93 | H17: 119.63 | I17: 0.010514
A18: 2008-09-22 | B18: 1385 | C18: 3085 | D18: 105.65 | E18: 37.5 | F18: 48.78 | G18: 97.73 | H18: 119.16 | I18: 0.010297
A19: 2008-09-23 | B19: 1394 | C19: 3109 | D19: 102.55 | E19: 36.85 | F19: 47.64 | G19: 97.48 | H19: 120.82 | I19: 0.010291
A20: 2008-09-24 | B20: 1389 | C20: 3078 | D20: 101.82 | E20: 37.26 | F20: 46.84 | G20: 96.12 | H20: 121.47 | I20: 0.010227
A21: 2008-09-25 | B21: 1388 | C21: 3021 | D21: 104.01 | E21: 37.3 | F21: 47.7 | G21: 97.88 | H21: 120.88 | I21: 0.010269
A22: 2008-09-26 | B22: 1408 | C22: 3099 | D22: 102.4 | E22: 37.12 | F22: 47.32 | G22: 96.23 | H22: 120.93 | I22: 0.010245
A23: 2008-09-29 | B23: 1384 | C23: 3138 | D23: 96.71 | E23: 36.14 | F23: 46.54 | G23: 91.79 | H23: 120.93 | I23: 0.010294
A24: 2008-09-30 | B24: 1327 | C24: 3145 | D24: 97.8 | E24: 36.78 | F24: 48.2 | G24: 90.37 | H24: 126.67 | I24: 0.010362
A25: 2008-10-01 | B25: 1340 | C25: 3155 | D25: 98.14 | E25: 37.14 | F25: 48.42 | G25: 90.7 | H25: 126.67 | I25: 0.010512
A26: 2008-10-02 | B26: 1222 | C26: 3025 | D26: 98.31 | E26: 36.45 | F26: 47.96 | G26: 88.73 | H26: 125.6 | I26: 0.010568
A27: 2008-10-03 | B27: 1268 | C27: 3050 | D27: 99.5 | E27: 35.54 | F27: 47.5 | G27: 90.78 | H27: 123.95 | I27: 0.010709
A28: 2008-10-06 | B28: 1235 | C28: 3174 | D28: 94.05 | E28: 33.31 | F28: 45.3 | G28: 83.59 | H28: 130.08 | I28: 0.010737
A29: 2008-10-07 | B29: 1261 | C29: 3206 | D29: 93.8 | E29: 33.93 | F29: 45.96 | G29: 83.62 | H29: 130.85 | I29: 0.011042
A30: 2008-10-08 | B30: 1280 | C30: 3305 | D30: 87.8 | E30: 32.42 | F30: 44.5 | G30: 77.53 | H30: 140.97 | I30: 0.0112
A31: 2008-10-09 | B31: 1288 | C31: 3232 | D31: 85.31 | E31: 31.98 | F31: 42.28 | G31: 74.95 | H31: 145.8 | I31: 0.011293
A32: 2008-10-10 | B32: 1248 | C32: 3209 | D32: 79.6 | E32: 28.25 | F32: 39.46 | G32: 70.07 | H32: 152.9 | I32: 0.011239
A33: 2008-10-13 | B33: 1140 | C33: 3016 | D33: 86.5 | E33: 31.62 | F33: 42.68 | G33: 77.14 | H33: 140.14 | I33: 0.011321
A34: 2008-10-14 | B34: 1182 | C34: 3045 | D34: 91.35 | E34: 33.2 | F34: 44.82 | G34: 79.64 | H34: 131.49 | I34: 0.011272
A35: 2008-10-15 | B35: 1120 | C35: 3046.98 | D35: 86.3 | E35: 31 | F35: 41.88 | G35: 74.34 | H35: 139.2 | I35: 0.011081
A36: 2008-10-16 | B36: 1022 | C36: 2892 | D36: 81.5 | E36: 29.09 | F36: 40.92 | G36: 69.41 | H36: 143.15 | I36: 0.011204
A37: 2008-10-17 | B37: 1014 | C37: 2835 | D37: 83.7 | E37: 30.26 | F37: 43.92 | G37: 70.84 | H37: 145.7 | I37: 0.011322
A38: 2008-10-20 | B38: 1050 | C38: 2901 | D38: 87.52 | E38: 33.45 | F38: 45.3 | G38: 73.84 | H38: 141.47 | I38: 0.011197
A39: 2008-10-21 | B39: 1100 | C39: 2850.5 | D39: 87.85 | E39: 33.65 | F39: 45.12 | G39: 72.89 | H39: 142 | I39: 0.011203
A40: 2008-10-22 | B40: 1100 | C40: 2780 | D40: 83.98 | E40: 31 | F40: 42.96 | G40: 69.18 | H40: 146.06 | I40: 0.011377
A41: 2008-10-23 | B41: 1104 | C41: 2679 | D41: 82.18 | E41: 31.8 | F41: 44.4 | G41: 68.25 | H41: 151.8 | I41: 0.011683
A42: 2008-10-24 | B42: 987 | C42: 2618.58 | D42: 77.99 | E42: 29.5 | F42: 43.44 | G42: 61.8 | H42: 154.08 | I42: 0.011959
A43: 2008-10-27 | B43: 1006 | C43: 2713 | D43: 77.81 | E43: 29.32 | F43: 42.72 | G43: 62.56 | H43: 145.01 | I43: 0.01241
A44: 2008-10-28 | B44: 988 | C44: 2743 | D44: 76.9 | E44: 28.37 | F44: 43.5 | G44: 66.5 | H44: 139.94 | I44: 0.012452
A45: 2008-10-29 | B45: 1095 | C45: 2766 | D45: 82.52 | E45: 30.9 | F45: 45.06 | G45: 70.61 | H45: 131 | I45: 0.012259
A46: 2008-10-30 | B46: 1058 | C46: 2707.55 | D46: 82.4 | E46: 32.46 | F46: 43.88 | G46: 73.1 | H46: 129.82 | I46: 0.011791
A47: 2008-10-31 | B47: 1100 | C47: 2705.41 | D47: 86.12 | E47: 32.2 | F47: 45 | G47: 72.1 | H47: 129.41 | I47: 0.011528
A48: 2008-11-03 | B48: 1105.59 | C48: 2712.83 | D48: 87.82 | E48: 33.47 | F48: 45.92 | G48: 74.13 | H48: 129.61 | I48: 0.011782
A49: 2008-11-04 | B49: 1164 | C49: 2815 | D49: 91.22 | E49: 34.89 | F49: 47.38 | G49: 78.71 | H49: 126.24 | I49: 0.01171
A50: 2008-11-05 | B50: 1160 | C50: 2785 | D50: 88.68 | E50: 33.93 | F50: 46.8 | G50: 79.31 | H50: 127.1 | I50: 0.011805
A51: 2008-11-06 | B51: 1180 | C51: 2775 | D51: 83.94 | E51: 32.79 | F51: 45.84 | G51: 72.1 | H51: 131.49 | I51: 0.011743
A52: 2008-11-07 | B52: 1145 | C52: 2767.5 | D52: 85.35 | E52: 32.41 | F52: 46.6 | G52: 73.09 | H52: 132.99 | I52: 0.011907
A53: 2008-11-10 | B53: 1156 | C53: 2819.81 | D53: 86.5 | E53: 34.2 | F53: 47.08 | G53: 75.34 | H53: 130.02 | I53: 0.011997
A54: 2008-11-11 | B54: 1095 | C54: 2748 | D54: 82.49 | E54: 31.9 | F54: 46 | G54: 70.55 | H54: 135.41 | I54: 0.011887
A55: 2008-11-12 | B55: 1062 | C55: 2704 | D55: 79.14 | E55: 31.7 | F55: 45 | G55: 67.35 | H55: 133.49 | I55: 0.012062
A56: 2008-11-13 | B56: 1053 | C56: 2731.07 | D56: 79.52 | E56: 32.27 | F56: 45.02 | G56: 69.99 | H56: 139.23 | I56: 0.012208
A57: 2008-11-14 | B57: 1095 | C57: 2825 | D57: 80.51 | E57: 31.5 | F57: 45.56 | G57: 71.04 | H57: 138.5 | I57: 0.012447
A58: 2008-11-17 | B58: 1075 | C58: 2820 | D58: 78.58 | E58: 32.25 | F58: 44.62 | G58: 69.04 | H58: 141.26 | I58: 0.012342
A59: 2008-11-18 | B59: 1087 | C59: 2831 | D59: 78.12 | E59: 31.84 | F59: 45.28 | G59: 69.26 | H59: 143.71 | I59: 0.012377
A60: 2008-11-19 | B60: 1118 | C60: 2862 | D60: 75.23 | E60: 31 | F60: 45.02 | G60: 66.74 | H60: 149.25 | I60: 0.012419
A61: 2008-11-20 | B61: 1047 | C61: 2913.62 | D61: 72.34 | E61: 30 | F61: 43.12 | G61: 64.17 | H61: 156.49 | I61: 0.012468
A62: 2008-11-21 | B62: 1120 | C62: 3063.4 | D62: 69.97 | E62: 30.7 | F62: 41.82 | G62: 62.18 | H62: 162.39 | I62: 0.01273
A63: 2008-11-24 | B63: 1227 | C63: 3153 | D63: 74.88 | E63: 32.77 | F63: 42.74 | G63: 69.48 | H63: 148.8 | I63: 0.012755
A64: 2008-11-25 | B64: 1163 | C64: 3073.19 | D64: 77.9 | E64: 31.65 | F64: 41.88 | G64: 70.61 | H64: 145.4 | I64: 0.012689
A65: 2008-11-26 | B65: 1185 | C65: 3120.84 | D65: 76.43 | E65: 32.2 | F65: 41.36 | G65: 69.58 | H65: 145.7 | I65: 0.012435
A66: 2008-11-27 | B66: 1196 | C66: 3105 | D66: 79.14 | E66: 31.11 | F66: 42.52 | G66: 72.09 | H66: 141.87 | I66: 0.012527
A67: 2008-11-28 | B67: 1185 | C67: 3161 | D67: 80.4 | E67: 33.09 | F67: 43.94 | G67: 70.8 | H67: 143.25 | I67: 0.01259
A68: 2008-12-01 | B68: 1084 | C68: 2984 | D68: 76.8 | E68: 31.4 | F68: 42.86 | G68: 66.8 | H68: 148.1 | I68: 0.012712
A69: 2008-12-02 | B69: 1120 | C69: 3011 | D69: 77.21 | E69: 31.33 | F69: 42.7 | G69: 69.49 | H69: 144.3 | I69: 0.012799
A70: 2008-12-03 | B70: 1123 | C70: 3019.77 | D70: 76.42 | E70: 32.6 | F70: 42.46 | G70: 70.28 | H70: 145.9 | I70: 0.012918
A71: 2008-12-04 | B71: 1107 | C71: 2984 | D71: 78.95 | E71: 31.16 | F71: 42.58 | G71: 70.31 | H71: 145 | I71: 0.012997
A72: 2008-12-05 | B72: 1086 | C72: 2910.34 | D72: 76.52 | E72: 30.75 | F72: 41.74 | G72: 66.91 | H72: 148.9 | I72: 0.01301
A73: 2008-12-08 | B73: 1183 | C73: 2982 | D73: 81.09 | E73: 33.39 | F73: 42.64 | G73: 73.95 | H73: 139.75 | I73: 0.013157
A74: 2008-12-09 | B74: 1143 | C74: 2970.95 | D74: 82.75 | E74: 34.04 | F74: 42.8 | G74: 75.31 | H74: 137.64 | I74: 0.013054
A75: 2008-12-10 | B75: 1167 | C75: 3073.63 | D75: 81.55 | E75: 33.25 | F75: 41.76 | G75: 74.24 | H75: 137.98 | I75: 0.013061
A76: 2008-12-11 | B76: 1195 | C76: 3129.83 | D76: 81.17 | E76: 33.1 | F76: 41.7 | G76: 75.25 | H76: 138.89 | I76: 0.012997
A77: 2008-12-12 | B77: 1169 | C77: 3107 | D77: 79.39 | E77: 32.52 | F77: 41.3 | G77: 73.66 | H77: 143.54 | I77: 0.012945
A78: 2008-12-15 | B78: 1191 | C78: 3106 | D78: 78.81 | E78: 33 | F78: 40.8 | G78: 73.6 | H78: 142.8 | I78: 0.012904
A79: 2008-12-16 | B79: 1178 | C79: 3050.33 | D79: 79.33 | E79: 32 | F79: 41 | G79: 74.4 | H79: 140.9 | I79: 0.012881
A80: 2008-12-17 | B80: 1190 | C80: 3031 | D80: 79.88 | E80: 31.15 | F80: 40.78 | G80: 73.15 | H80: 140.4 | I80: 0.012776
A81: 2008-12-18 | B81: 1137 | C81: 2910 | D81: 79.25 | E81: 30.36 | F81: 40.52 | G81: 73.37 | H81: 136.6 | I81: 0.012535
A82: 2008-12-19 | B82: 1163 | C82: 2980 | D82: 78.81 | E82: 31.34 | F82: 40.8 | G82: 73.3 | H82: 137.1 | I82: 0.012112
A83: 2008-12-22 | B83: 1148 | C83: 2967 | D83: 77.96 | E83: 31.59 | F83: 40.84 | G83: 71.7 | H83: 139 | I83: 0.012372
A84: 2008-12-23 | B84: 1081 | C84: 2904 | D84: 77.99 | E84: 30.03 | F84: 40.76 | G84: 71.5 | H84: 137.54 | I84: 0.012235
A85: 2008-12-29 | B85: 1099 | C85: 2928 | D85: 78.17 | E85: 30 | F85: 41.2 | G85: 69.97 | H85: 134.73 | I85: 0.011803
A86: 2008-12-30 | B86: 1125 | C86: 2932.83 | D86: 79.5 | E86: 30.27 | F86: 41.6 | G86: 71.96 | H86: 131.44 | I86: 0.011669
A87: 2009-01-05 | B87: 1166 | C87: 2987.39 | D87: 83 | E87: 31.94 | F87: 42.4 | G87: 74.91 | H87: 127.8 | I87: 0.011769
A88: 2009-01-06 | B88: 1205 | C88: 3031.87 | D88: 84 | E88: 32.17 | F88: 42.4 | G88: 75.29 | H88: 125.57 | I88: 0.011793
A89: 2009-01-07 | B89: 1157 | C89: 2964 | D89: 83.19 | E89: 32.1 | F89: 42.44 | G89: 73.91 | H89: 128 | I89: 0.011926
A90: 2009-01-08 | B90: 1169 | C90: 2989.03 | D90: 82.52 | E90: 31.9 | F90: 42.06 | G90: 72.54 | H90: 129.74 | I90: 0.01187
A91: 2009-01-09 | B91: 1180 | C91: 3032 | D91: 82.14 | E91: 31.7 | F91: 40.38 | G91: 71.18 | H91: 130.41 | I91: 0.011965
A92: 2009-01-12 | B92: 1174 | C92: 2945 | D92: 80.97 | E92: 32.1 | F92: 40.38 | G92: 70.57 | H92: 133.19 | I92: 0.012329
A93: 2009-01-13 | B93: 1162 | C93: 2965 | D93: 79.68 | E93: 30.85 | F93: 40.4 | G93: 68.63 | H93: 134.3 | I93: 0.012434
A94: 2009-01-14 | B94: 1118 | C94: 2912 | D94: 76.55 | E94: 30.1 | F94: 39.3 | G94: 65.24 | H94: 140.21 | I94: 0.012526
A95: 2009-01-15 | B95: 1125 | C95: 2922 | D95: 76.39 | E95: 30.58 | F95: 39.82 | G95: 64.9 | H95: 143.15 | I95: 0.012505
A96: 2009-01-16 | B96: 1197.99 | C96: 2980 | D96: 77.72 | E96: 30.6 | F96: 40.78 | G96: 65.72 | H96: 140.99 | I96: 0.012559
A97: 2009-01-19 | B97: 1205 | C97: 3031 | D97: 75.45 | E97: 30.3 | F97: 40.86 | G97: 64.39 | H97: 146.09 | I97: 0.012334
A98: 2009-01-20 | B98: 1250 | C98: 3164.03 | D98: 74.5 | E98: 30.84 | F98: 40.94 | G98: 63.65 | H98: 146.08 | I98: 0.012373
A99: 2009-01-21 | B99: 1241 | C99: 3106.12 | D99: 74.86 | E99: 30.37 | F99: 40.64 | G99: 62.21 | H99: 146.38 | I99: 0.012629
A100: 2009-01-22 | B100: 1274 | C100: 3166 | D100: 74.93 | E100: 30.9 | F100: 40.44 | G100: 62.8 | H100: 146.38 | I100: 0.012816
A101: 2009-01-23 | B101: 1284 | C101: 3315 | D101: 73.29 | E101: 30.36 | F101: 40.36 | G101: 62.23 | H101: 152.21 | I101: 0.012991
A102: 2009-01-26 | B102: 1338 | C102: 3311 | D102: 76.44 | E102: 30.26 | F102: 40.78 | G102: 64.29 | H102: 147.7 | I102: 0.013001
A103: 2009-01-27 | B103: 1329 | C103: 3258 | D103: 74.65 | E103: 30.92 | F103: 40.62 | G103: 64.16 | H103: 146.37 | I103: 0.012982
A104: 2009-01-28 | B104: 1330 | C104: 3260.22 | D104: 78.37 | E104: 31.3 | F104: 40.24 | G104: 68.39 | H104: 141 | I104: 0.012756
A105: 2009-01-29 | B105: 1329.31 | C105: 3290 | D105: 75.72 | E105: 30.7 | F105: 40.2 | G105: 65.83 | H105: 141 | I105: 0.012776
A106: 2009-01-30 | B106: 1402 | C106: 3423 | D106: 75.36 | E106: 30.07 | F106: 40.18 | G106: 64.68 | H106: 143.97 | I106: 0.012801
A107: 2009-02-02 | B107: 1401 | C107: 3406 | D107: 73.49 | E107: 29.85 | F107: 39.36 | G107: 63.73 | H107: 147.88 | I107: 0.012916
A108: 2009-02-03 | B108: 1358 | C108: 3314.59 | D108: 73.56 | E108: 29.5 | F108: 40.04 | G108: 63.98 | H108: 143.71 | I108: 0.013
A109: 2009-02-04 | B109: 1400 | C109: 3360 | D109: 75.33 | E109: 30.5 | F109: 39.52 | G109: 67.2 | H109: 138.83 | I109: 0.012935
A110: 2009-02-05 | B110: 1432 | C110: 3409 | D110: 73.85 | E110: 31.29 | F110: 38.34 | G110: 67.22 | H110: 139.58 | I110: 0.012885
A111: 2009-02-06 | B111: 1464 | C111: 3405.46 | D111: 74.53 | E111: 31.1 | F111: 38.18 | G111: 69.7 | H111: 135.7 | I111: 0.012926
A112: 2009-02-09 | B112: 1437 | C112: 3324.99 | D112: 74.83 | E112: 30.89 | F112: 38.3 | G112: 69.7 | H112: 136.4 | I112: 0.012648
A113: 2009-02-10 | B113: 1453.99 | C113: 3363 | D113: 75 | E113: 29.9 | F113: 38.5 | G113: 70.37 | H113: 137.7 | I113: 0.012678
A114: 2009-02-11 | B114: 1525 | C114: 3502.99 | D114: 74.1 | E114: 30.29 | F114: 37.92 | G114: 66.97 | H114: 139.51 | I114: 0.012784
A115: 2009-02-12 | B115: 1516 | C115: 3524.99 | D115: 73.38 | E115: 30.07 | F115: 37.66 | G115: 65.39 | H115: 142 | I115: 0.012831
A116: 2009-02-13 | B116: 1489 | C116: 3462.01 | D116: 74.01 | E116: 29.2 | F116: 37.48 | G116: 65.39 | H116: 138.97 | I116: 0.012876
A117: 2009-02-16 | B117: 1519 | C117: 3488.01 | D117: 73.23 | E117: 28.84 | F117: 37.52 | G117: 65.61 | H117: 141.44 | I117: 0.012657
A118: 2009-02-17 | B118: 1593 | C118: 3649 | D118: 71.02 | E118: 28.88 | F118: 36.96 | G118: 64.8 | H118: 145.4 | I118: 0.012708
A119: 2009-02-18 | B119: 1614 | C119: 3674.55 | D119: 70.35 | E119: 28.9 | F119: 37.02 | G119: 61.67 | H119: 148.16 | I119: 0.012712
A120: 2009-02-19 | B120: 1584 | C120: 3673.48 | D120: 71.09 | E120: 28.3 | F120: 38.94 | G120: 62.92 | H120: 147.8 | I120: 0.012639
A121: 2009-02-20 | B121: 1640 | C121: 3740.64 | D121: 68.79 | E121: 27.3 | F121: 39.16 | G121: 60.67 | H121: 153.5 | I121: 0.012526
A122: 2009-02-23 | B122: 1620 | C122: 3680 | D122: 67.22 | E122: 27 | F122: 38.66 | G122: 58.2 | H122: 157.4 | I122: 0.012406
A123: 2009-02-24 | B123: 1596 | C123: 3630.31 | D123: 66.41 | E123: 26.18 | F123: 38.42 | G123: 58.08 | H123: 158.7 | I123: 0.012367
A124: 2009-02-25 | B124: 1577 | C124: 3614 | D124: 66.28 | E124: 26.32 | F124: 38.46 | G124: 58.08 | H124: 161.75 | I124: 0.01219
A125: 2009-02-26 | B125: 1460 | C125: 3489.88 | D125: 68.3 | E125: 26.6 | F125: 37.88 | G125: 58.73 | H125: 157.63 | I125: 0.011988
A126: 2009-02-27 | B126: 1471 | C126: 3530.81 | D126: 66.31 | E126: 26 | F126: 38.34 | G126: 55.89 | H126: 161 | I126: 0.011918
A127: 2009-03-02 | B127: 1440.15 | C127: 3490 | D127: 63.4 | E127: 25.94 | F127: 36.9 | G127: 55 | H127: 164.89 | I127: 0.012004
A128: 2009-03-03 | B128: 1418 | C128: 3413.79 | D128: 62.2 | E128: 25.47 | F128: 35.42 | G128: 55.26 | H128: 164.91 | I128: 0.012054
A129: 2009-03-04 | B129: 1473.52 | C129: 3425.77 | D129: 63.55 | E129: 25.8 | F129: 36.48 | G129: 55.77 | H129: 160.55 | I129: 0.012014
A130: 2009-03-05 | B130: 1460 | C130: 3430 | D130: 62.5 | E130: 26.01 | F130: 35.66 | G130: 55.77 | H130: 161.5 | I130: 0.011919
A131: 2009-03-06 | B131: 1486.47 | C131: 3475 | D131: 61.85 | E131: 24.94 | F131: 35.76 | G131: 55 | H131: 163.7 | I131: 0.011847
A132: 2009-03-09 | B132: 1445 | C132: 3405 | D132: 60.26 | E132: 24.53 | F132: 35.58 | G132: 52.67 | H132: 165.5 | I132: 0.011799
A133: 2009-03-10 | B133: 1390 | C133: 3288 | D133: 63.74 | E133: 25.59 | F133: 36.76 | G133: 56.17 | H133: 156.67 | I133: 0.01177
A134: 2009-03-11 | B134: 1430 | C134: 3366.93 | D134: 64.38 | E134: 25.46 | F134: 36.72 | G134: 58.8 | H134: 154.69 | I134: 0.01172
A135: 2009-03-12 | B135: 1470.17 | C135: 3523 | D135: 66.03 | E135: 25.92 | F135: 36.7 | G135: 58.86 | H135: 157.98 | I135: 0.01181
A136: 2009-03-13 | B136: 1502.59 | C136: 3526.18 | D136: 66.2 | E136: 26.28 | F136: 37.24 | G136: 61.61 | H136: 159.66 | I136: 0.012012
A137: 2009-03-16 | B137: 1447 | C137: 3487 | D137: 68.34 | E137: 27.16 | F137: 37.5 | G137: 61.26 | H137: 158.83 | I137: 0.01211
A138: 2009-03-17 | B138: 1430 | C138: 3467 | D138: 68.08 | E138: 27.1 | F138: 37.32 | G138: 61.42 | H138: 158.51 | I138: 0.012081
A139: 2009-03-18 | B139: 1352 | C139: 3321.18 | D139: 67.74 | E139: 27.06 | F139: 36.66 | G139: 61.77 | H139: 156.96 | I139: 0.012023
A140: 2009-03-19 | B140: 1447.77 | C140: 3422.43 | D140: 68.76 | E140: 27.2 | F140: 36.22 | G140: 62.57 | H140: 154.8 | I140: 0.011945
A141: 2009-03-20 | B141: 1466.06 | C141: 3415.58 | D141: 69 | E141: 26.75 | F141: 35.2 | G141: 61.66 | H141: 154.83 | I141: 0.011909
A142: 2009-03-23 | B142: 1506 | C142: 3431 | D142: 70.85 | E142: 28.04 | F142: 36.9 | G142: 63.51 | H142: 151.65 | I142: 0.011762
A143: 2009-03-24 | B143: 1449 | C143: 3327.49 | D143: 70.9 | E143: 27.9 | F143: 37.5 | G143: 63.45 | H143: 150.52 | I143: 0.011673
A144: 2009-03-25 | B144: 1452.28 | C144: 3338.36 | D144: 71.57 | E144: 28.8 | F144: 38.32 | G144: 63 | H144: 149.57 | I144: 0.011505
A145: 2009-03-26 | B145: 1487 | C145: 3389.05 | D145: 70.49 | E145: 28.69 | F145: 38.54 | G145: 64.62 | H145: 147.75 | I145: 0.011549
A146: 2009-03-27 | B146: 1465.2 | C146: 3373.17 | D146: 69.77 | E146: 28.76 | F146: 37.82 | G146: 64.85 | H146: 149.93 | I146: 0.011462
A147: 2009-03-30 | B147: 1471 | C147: 3417.99 | D147: 67.25 | E147: 28.21 | F147: 37.4 | G147: 61 | H147: 155.78 | I147: 0.011702
A148: 2009-03-31 | B148: 1390.25 | C148: 3337 | D148: 69.26 | E148: 27.2 | F148: 38.48 | G148: 61.33 | H148: 154 | I148: 0.011813
A149: 2009-04-01 | B149: 1428 | C149: 3387 | D149: 70.63 | E149: 29.02 | F149: 39.1 | G149: 61.53 | H149: 151.23 | I149: 0.011569
A150: 2009-04-02 | B150: 1375.92 | C150: 3251 | D150: 74 | E150: 29.25 | F150: 39.46 | G150: 65.8 | H150: 143.9 | I150: 0.01157
A151: 2009-04-03 | B151: 1385 | C151: 3261 | D151: 73 | E151: 29.47 | F151: 38.48 | G151: 66.56 | H151: 141.28 | I151: 0.011522
A152: 2009-04-06 | B152: 1325 | C152: 3170 | D152: 72.26 | E152: 28.3 | F152: 39.1 | G152: 65.85 | H152: 144.78 | I152: 0.011283
A153: 2009-04-07 | B153: 1352 | C153: 3224 | D153: 71.57 | E153: 29.19 | F153: 39.72 | G153: 64.85 | H153: 144.57 | I153: 0.011218
A154: 2009-04-08 | B154: 1354.85 | C154: 3252.5 | D154: 71.48 | E154: 28.8 | F154: 39.82 | G154: 65.58 | H154: 143 | I154: 0.011348
A155: 2009-04-09 | B155: 1346.85 | C155: 3240 | D155: 73.35 | E155: 29.8 | F155: 39.54 | G155: 66.94 | H155: 138.4 | I155: 0.011461
A156: 2009-04-14 | B156: 1365 | C156: 3232.56 | D156: 74.99 | E156: 30.18 | F156: 39.3 | G156: 69.1 | H156: 135.19 | I156: 0.011455
A157: 2009-04-15 | B157: 1397.12 | C157: 3261.64 | D157: 74.53 | E157: 30.09 | F157: 38.78 | G157: 69.1 | H157: 136.34 | I157: 0.01142
A158: 2009-04-16 | B158: 1344 | C158: 3219.22 | D158: 75.77 | E158: 30 | F158: 38.86 | G158: 69.47 | H158: 134.48 | I158: 0.01154
A159: 2009-04-17 | B159: 1318.54 | C159: 3225 | D159: 77.13 | E159: 30.31 | F159: 38.3 | G159: 70.96 | H159: 133.76 | I159: 0.011561
A160: 2009-04-20 | B160: 1352.72 | C160: 3297.01 | D160: 75 | E160: 30.5 | F160: 37.98 | G160: 68.5 | H160: 137.79 | I160: 0.011759
A161: 2009-04-21 | B161: 1338.56 | C161: 3285.95 | D161: 72.88 | E161: 29.91 | F161: 37.9 | G161: 67.18 | H161: 140.2 | I161: 0.01185
A162: 2009-04-22 | B162: 1363 | C162: 3288.72 | D162: 75.97 | E162: 30.5 | F162: 37.58 | G162: 67.55 | H162: 134.99 | I162: 0.011897
A163: 2009-04-23 | B163: 1425 | C163: 3341.52 | D163: 76 | E163: 30.21 | F163: 36.96 | G163: 67.55 | H163: 134.31 | I163: 0.011884
A164: 2009-04-24 | B164: 1393.3 | C164: 3297.98 | D164: 76.97 | E164: 30.44 | F164: 37.78 | G164: 68.13 | H164: 132 | I164: 0.011851
A165: 2009-04-27 | B165: 1421.6 | C165: 3315 | D165: 77.5 | E165: 30.21 | F165: 38.16 | G165: 70.65 | H165: 130.59 | I165: 0.011734
A166: 2009-04-28 | B166: 1365 | C166: 3268.82 | D166: 76.28 | E166: 29.88 | F166: 37.8 | G166: 68.9 | H166: 132.4 | I166: 0.011849
A167: 2009-04-29 | B167: 1388.45 | C167: 3238.95 | D167: 77.51 | E167: 30 | F167: 37.42 | G167: 70.79 | H167: 130.5 | I167: 0.011986
A168: 2009-04-30 | B168: 1339.25 | C168: 3211.51 | D168: 79.8 | E168: 29.77 | F168: 37.36 | G168: 72.55 | H168: 127.38 | I168: 0.011765
A169: 2009-05-04 | B169: 1403 | C169: 3250 | D169: 80.61 | E169: 30.51 | F169: 38.9 | G169: 72.63 | H169: 125.69 | I169: 0.011468
A170: 2009-05-05 | B170: 1445 | C170: 3258.48 | D170: 80.38 | E170: 30.38 | F170: 38.66 | G170: 73.5 | H170: 126 | I170: 0.011422
A171: 2009-05-06 | B171: 1498 | C171: 3283.71 | D171: 80.38 | E171: 31.39 | F171: 38.78 | G171: 73.6 | H171: 125.65 | I171: 0.011426
A172: 2009-05-07 | B172: 1485 | C172: 3288.9 | D172: 80.93 | E172: 30.6 | F172: 39.26 | G172: 73.6 | H172: 127.62 | I172: 0.011517
A173: 2009-05-08 | B173: 1490 | C173: 3248.75 | D173: 82.6 | E173: 31.08 | F173: 39.42 | G173: 74.34 | H173: 124.33 | I173: 0.011453
A174: 2009-05-11 | B174: 1459.25 | C174: 3212 | D174: 81.94 | E174: 30.79 | F174: 39.42 | G174: 73.07 | H174: 125.9 | I174: 0.011237
A175: 2009-05-12 | B175: 1495 | C175: 3235 | D175: 81.25 | E175: 31.4 | F175: 40 | G175: 73.73 | H175: 125.7 | I175: 0.011295
A176: 2009-05-13 | B176: 1490.17 | C176: 3250 | D176: 78.82 | E176: 30.82 | F176: 40.5 | G176: 72.58 | H176: 129.22 | I176: 0.011401
A177: 2009-05-14 | B177: 1479.44 | C177: 3267 | D177: 79.9 | E177: 30.35 | F177: 40.76 | G177: 70.22 | H177: 129.6 | I177: 0.011493
A178: 2009-05-15 | B178: 1485 | C178: 3283.02 | D178: 80.68 | E178: 31.75 | F178: 40.36 | G178: 71.26 | H178: 130.03 | I178: 0.011603
A179: 2009-05-18 | B179: 1463.33 | C179: 3277 | D179: 82.48 | E179: 31.59 | F179: 40.5 | G179: 73.32 | H179: 126.16 | I179: 0.011794
A180: 2009-05-19 | B180: 1486.91 | C180: 3274 | D180: 84.2 | E180: 31.5 | F180: 40.34 | G180: 74.78 | H180: 122.95 | I180: 0.011746
A181: 2009-05-20 | B181: 1501 | C181: 3268.57 | D181: 84.51 | E181: 31.32 | F181: 40.66 | G181: 76.34 | H181: 121.54 | I181: 0.011562
A182: 2009-05-22 | B182: 1517 | C182: 3300.73 | D182: 82.8 | E182: 30.98 | F182: 39.94 | G182: 74.19 | H182: 124.8 | I182: 0.011625
A183: 2009-05-25 | B183: 1523.31 | C183: 3293.99 | D183: 83.21 | E183: 31 | F183: 40.48 | G183: 74 | H183: 126.03 | I183: 0.011466
A184: 2009-05-26 | B184: 1513 | C184: 3270.99 | D184: 82.79 | E184: 31 | F184: 40.32 | G184: 73.26 | H184: 123.62 | I184: 0.011437
A185: 2009-05-27 | B185: 1537 | C185: 3303 | D185: 83.04 | E185: 31.5 | F185: 39.7 | G185: 75.42 | H185: 123.03 | I185: 0.011455
A186: 2009-05-28 | B186: 1570.93 | C186: 3318.98 | D186: 81.75 | E186: 31.1 | F186: 39.3 | G186: 75.19 | H186: 124.42 | I186: 0.011406
A187: 2009-05-29 | B187: 1598 | C187: 3317 | D187: 82.09 | E187: 31.14 | F187: 38.7 | G187: 74.31 | H187: 123.7 | I187: 0.011296
A188: 2009-06-02 | B188: 1613 | C188: 3323 | D188: 83.88 | E188: 31.1 | F188: 39.48 | G188: 78.22 | H188: 119.17 | I188: 0.011185
A189: 2009-06-03 | B189: 1608 | C189: 3320 | D189: 82.95 | E189: 31.38 | F189: 39.48 | G189: 77.46 | H189: 120.21 | I189: 0.011106
A190: 2009-06-04 | B190: 1605.98 | C190: 3325.99 | D190: 83.77 | E190: 31.29 | F190: 39.9 | G190: 76.94 | H190: 120.04 | I190: 0.011121
A191: 2009-06-05 | B191: 1602 | C191: 3314 | D191: 84.08 | E191: 32.13 | F191: 38.78 | G191: 77.07 | H191: 120.19 | I191: 0.011097
A192: 2009-06-08 | B192: 1567.48 | C192: 3299.8 | D192: 83.48 | E192: 31.78 | F192: 39.2 | G192: 76 | H192: 122.5 | I192: 0.011014
A193: 2009-06-09 | B193: 1560 | C193: 3280 | D193: 82.92 | E193: 32.15 | F193: 39.24 | G193: 75.8 | H193: 122.49 | I193: 0.011073
A194: 2009-06-10 | B194: 1560 | C194: 3270 | D194: 84.18 | E194: 32.53 | F194: 39.38 | G194: 77.1 | H194: 120.09 | I194: 0.011099
A195: 2009-06-11 | B195: 1567.25 | C195: 3247 | D195: 84.96 | E195: 32.01 | F195: 39.28 | G195: 77.03 | H195: 120.26 | I195: 0.011027
A196: 2009-06-12 | B196: 1535.01 | C196: 3225 | D196: 85.17 | E196: 32.01 | F196: 39.24 | G196: 76.78 | H196: 120.55 | I196: 0.010999
A197: 2009-06-15 | B197: 1475.24 | C197: 3223 | D197: 82.97 | E197: 31.45 | F197: 38.74 | G197: 75.33 | H197: 123.17 | I197: 0.010974
A198: 2009-06-16 | B198: 1470 | C198: 3233.75 | D198: 82.14 | E198: 31.33 | F198: 38.92 | G198: 73.93 | H198: 123.43 | I198: 0.011079
A199: 2009-06-17 | B199: 1468.99 | C199: 3222.94 | D199: 79.9 | E199: 31.17 | F199: 38.9 | G199: 72 | H199: 127.02 | I199: 0.011246
A200: 2009-06-18 | B200: 1478.99 | C200: 3212.39 | D200: 81.33 | E200: 31.52 | F200: 39.24 | G200: 72.59 | H200: 125.23 | I200: 0.011297
... 51 more rows

Sheet Silber_Gold_Tag

Sheet Korrelation_Woche
A1: Date | B1: ZKB SILVER ETF (ZSIL/ CH0029792717) | C1: ZKB GOLD ETF (ZGLD/ CH0024391002) | D1: Xmtch (CH) SLI (XMSLI/ CH0031768937) | E1: UBS-ETF MSCI JAPAN (FDJPHU/ LU0136240974) | F1: NESTLE N (NESN/ CH0038863350) | G1: DB X-TR DAX (XDAX/ LU0274211480) | H1: DB X-TR SHORT DAX (XSDX/ LU0292106241) | I1: JPY/CHF
A2: 2008-09-04 | B2: =LN(Kurse_Woche!B3/Kurse_Woche!B2) -> -0.06476827415 | C2: =LN(Kurse_Woche!C3/Kurse_Woche!C2) -> -0.0374523661 | D2: =LN(Kurse_Woche!D3/Kurse_Woche!D2) -> -0.01539633455 | E2: =LN(Kurse_Woche!E3/Kurse_Woche!E2) -> -0.04317952667 | F2: =LN(Kurse_Woche!F3/Kurse_Woche!F2) -> -0.01534344843 | G2: =LN(Kurse_Woche!G3/Kurse_Woche!G2) -> -0.03499211838 | H2: =LN(Kurse_Woche!H3/Kurse_Woche!H2) -> 0.01245346107 | I2: =LN(Kurse_Woche!I3/Kurse_Woche!I2) -> 0.01986918525 | L2: 1-Jahr Korrelation basierend Wochenkurs
A3: 2008-09-11 | B3: =LN(Kurse_Woche!B4/Kurse_Woche!B3) -> -0.1826157177 | C3: =LN(Kurse_Woche!C4/Kurse_Woche!C3) -> -0.04776595387 | D3: =LN(Kurse_Woche!D4/Kurse_Woche!D3) -> -0.02584759281 | E3: =LN(Kurse_Woche!E4/Kurse_Woche!E3) -> 0.02297171602 | F3: =LN(Kurse_Woche!F4/Kurse_Woche!F3) -> 0.03328846504 | G3: =LN(Kurse_Woche!G4/Kurse_Woche!G3) -> -0.03072206164 | H3: =LN(Kurse_Woche!H4/Kurse_Woche!H3) -> 0.021113866 | I3: =LN(Kurse_Woche!I4/Kurse_Woche!I3) -> 0.02989038566 | L3: ZKB Silver | M3: ZKB Gold | N3: Xmtch SLI | O3: UBS MSCI Japan | P3: Nestlé | Q3: DB X-TR-Dax | R3: DB Sh. Dax | S3: JPY/CHF
A4: 2008-09-18 | B4: =LN(Kurse_Woche!B5/Kurse_Woche!B4) -> 0.1359556362 | C4: =LN(Kurse_Woche!C5/Kurse_Woche!C4) -> 0.1262309022 | D4: =LN(Kurse_Woche!D5/Kurse_Woche!D4) -> -0.05308192343 | E4: =LN(Kurse_Woche!E5/Kurse_Woche!E4) -> -0.07385283757 | F4: =LN(Kurse_Woche!F5/Kurse_Woche!F4) -> -0.02828637041 | G4: =LN(Kurse_Woche!G5/Kurse_Woche!G4) -> -0.05498257916 | H4: =LN(Kurse_Woche!H5/Kurse_Woche!H4) -> 0.03965132794 | I4: =LN(Kurse_Woche!I5/Kurse_Woche!I4) -> 0.007099277296 | K4: ZKB Silver | L4: =CorrMatrix(Korrelation_Woche!$B$2:'Korrelation_Woche'!$I$50) -> 1 | M4: 0.7311556993 | N4: 0.2578315595 | O4: 0.2615281351 | P4: 0.02431299181 | Q4: 0.3087019592 | R4: -0.1071536999 | S4: -0.133753159
A5: 2008-09-25 | B5: =LN(Kurse_Woche!B6/Kurse_Woche!B5) -> 0.0670392438 | C5: =LN(Kurse_Woche!C6/Kurse_Woche!C5) -> -0.01315375756 | D5: =LN(Kurse_Woche!D6/Kurse_Woche!D5) -> 0.05068119246 | E5: =LN(Kurse_Woche!E6/Kurse_Woche!E5) -> 0.02442455201 | F5: =LN(Kurse_Woche!F6/Kurse_Woche!F5) -> -0.008350779217 | G5: =LN(Kurse_Woche!G6/Kurse_Woche!G5) -> 0.05620932231 | H5: =LN(Kurse_Woche!H6/Kurse_Woche!H5) -> -0.02950739794 | I5: =LN(Kurse_Woche!I6/Kurse_Woche!I5) -> -0.03191301435 | K5: ZKB Gold | L5: 0.7311556993 | M5: 1 | N5: -0.05418741834 | O5: -0.04129915482 | P5: -0.1666338317 | Q5: 0.06843103337 | R5: 0.03697852035 | S5: 0.07188122651
A6: 2008-10-02 | B6: =LN(Kurse_Woche!B7/Kurse_Woche!B6) -> -0.1273750013 | C6: =LN(Kurse_Woche!C7/Kurse_Woche!C6) -> 0.001323189078 | D6: =LN(Kurse_Woche!D7/Kurse_Woche!D6) -> -0.05636129699 | E6: =LN(Kurse_Woche!E7/Kurse_Woche!E6) -> -0.0230518682 | F6: =LN(Kurse_Woche!F7/Kurse_Woche!F6) -> 0.005435932265 | G6: =LN(Kurse_Woche!G7/Kurse_Woche!G6) -> -0.09814418773 | H6: =LN(Kurse_Woche!H7/Kurse_Woche!H6) -> 0.03830393607 | I6: =LN(Kurse_Woche!I7/Kurse_Woche!I6) -> 0.028700919 | K6: Xmtch SLI | L6: 0.2578315595 | M6: -0.05418741834 | N6: 1 | O6: 0.7042742117 | P6: 0.5256035437 | Q6: 0.8783717858 | R6: -0.7703116928 | S6: -0.4596510069
A7: 2008-10-09 | B7: =LN(Kurse_Woche!B8/Kurse_Woche!B7) -> 0.05260176693 | C7: =LN(Kurse_Woche!C8/Kurse_Woche!C7) -> 0.06619004918 | D7: =LN(Kurse_Woche!D8/Kurse_Woche!D7) -> -0.1418340705 | E7: =LN(Kurse_Woche!E8/Kurse_Woche!E7) -> -0.130830751 | F7: =LN(Kurse_Woche!F8/Kurse_Woche!F7) -> -0.1260531692 | G7: =LN(Kurse_Woche!G8/Kurse_Woche!G7) -> -0.1687768263 | H7: =LN(Kurse_Woche!H8/Kurse_Woche!H7) -> 0.1491335655 | I7: =LN(Kurse_Woche!I8/Kurse_Woche!I7) -> 0.06635249752 | K7: UBS MSCI Japan | L7: 0.2615281351 | M7: -0.04129915482 | N7: 0.7042742117 | O7: 1 | P7: 0.5444731567 | Q7: 0.6676683672 | R7: -0.521441197 | S7: -0.1186946654
A8: 2008-10-16 | B8: =LN(Kurse_Woche!B9/Kurse_Woche!B8) -> -0.2313291359 | C8: =LN(Kurse_Woche!C9/Kurse_Woche!C8) -> -0.1111528364 | D8: =LN(Kurse_Woche!D9/Kurse_Woche!D8) -> -0.04568866067 | E8: =LN(Kurse_Woche!E9/Kurse_Woche!E8) -> -0.0947162349 | F8: =LN(Kurse_Woche!F9/Kurse_Woche!F8) -> -0.03269521992 | G8: =LN(Kurse_Woche!G9/Kurse_Woche!G8) -> -0.0767902752 | H8: =LN(Kurse_Woche!H9/Kurse_Woche!H8) -> -0.01834278803 | I8: =LN(Kurse_Woche!I9/Kurse_Woche!I8) -> -0.007912207344 | K8: Nestlé | L8: 0.02431299181 | M8: -0.1666338317 | N8: 0.5256035437 | O8: 0.5444731567 | P8: 1 | Q8: 0.343385759 | R8: -0.2719915644 | S8: -0.2990975143
A9: 2008-10-23 | B9: =LN(Kurse_Woche!B10/Kurse_Woche!B9) -> 0.07717845607 | C9: =LN(Kurse_Woche!C10/Kurse_Woche!C9) -> -0.07650471373 | D9: =LN(Kurse_Woche!D10/Kurse_Woche!D9) -> 0.008308943208 | E9: =LN(Kurse_Woche!E10/Kurse_Woche!E9) -> 0.08907181728 | F9: =LN(Kurse_Woche!F10/Kurse_Woche!F9) -> 0.08162052835 | G9: =LN(Kurse_Woche!G10/Kurse_Woche!G9) -> -0.01685351529 | H9: =LN(Kurse_Woche!H10/Kurse_Woche!H9) -> 0.05867083342 | I9: =LN(Kurse_Woche!I10/Kurse_Woche!I9) -> 0.04186393634 | K9: DB X-TR-Dax | L9: 0.3087019592 | M9: 0.06843103337 | N9: 0.8783717858 | O9: 0.6676683672 | P9: 0.343385759 | Q9: 1 | R9: -0.8513006157 | S9: -0.4274987258
A10: 2008-10-30 | B10: =LN(Kurse_Woche!B11/Kurse_Woche!B10) -> -0.04255961442 | C10: =LN(Kurse_Woche!C11/Kurse_Woche!C10) -> 0.01060057638 | D10: =LN(Kurse_Woche!D11/Kurse_Woche!D10) -> 0.00267347346 | E10: =LN(Kurse_Woche!E11/Kurse_Woche!E10) -> 0.0205422723 | F10: =LN(Kurse_Woche!F11/Kurse_Woche!F10) -> -0.01178083403 | G10: =LN(Kurse_Woche!G11/Kurse_Woche!G10) -> 0.06865093269 | H10: =LN(Kurse_Woche!H11/Kurse_Woche!H10) -> -0.1564149894 | I10: =LN(Kurse_Woche!I11/Kurse_Woche!I10) -> 0.00920173486 | K10: DB Sh. Dax | L10: -0.1071536999 | M10: 0.03697852035 | N10: -0.7703116928 | O10: -0.521441197 | P10: -0.2719915644 | Q10: -0.8513006157 | R10: 1 | S10: 0.4862281775
A11: 2008-11-06 | B11: =LN(Kurse_Woche!B12/Kurse_Woche!B11) -> 0.109134105 | C11: =LN(Kurse_Woche!C12/Kurse_Woche!C11) -> 0.02460658026 | D11: =LN(Kurse_Woche!D12/Kurse_Woche!D11) -> 0.01851682099 | E11: =LN(Kurse_Woche!E12/Kurse_Woche!E11) -> 0.01011502877 | F11: =LN(Kurse_Woche!F12/Kurse_Woche!F11) -> 0.043698437 | G11: =LN(Kurse_Woche!G12/Kurse_Woche!G11) -> -0.01377432246 | H11: =LN(Kurse_Woche!H12/Kurse_Woche!H11) -> 0.01278192749 | I11: =LN(Kurse_Woche!I12/Kurse_Woche!I11) -> -0.004079210212 | K11: JPY/CHF | L11: -0.133753159 | M11: 0.07188122651 | N11: -0.4596510069 | O11: -0.1186946654 | P11: -0.2990975143 | Q11: -0.4274987258 | R11: 0.4862281775 | S11: 1
A12: 2008-11-13 | B12: =LN(Kurse_Woche!B13/Kurse_Woche!B12) -> -0.1138712053 | C12: =LN(Kurse_Woche!C13/Kurse_Woche!C12) -> -0.0159572734 | D12: =LN(Kurse_Woche!D13/Kurse_Woche!D12) -> -0.05409369556 | E12: =LN(Kurse_Woche!E13/Kurse_Woche!E12) -> -0.01598558479 | F12: =LN(Kurse_Woche!F13/Kurse_Woche!F12) -> -0.01805023693 | G12: =LN(Kurse_Woche!G13/Kurse_Woche!G12) -> -0.02970166959 | H12: =LN(Kurse_Woche!H13/Kurse_Woche!H12) -> 0.05719643882 | I12: =LN(Kurse_Woche!I13/Kurse_Woche!I12) -> 0.03883415616
A13: 2008-11-20 | B13: =LN(Kurse_Woche!B14/Kurse_Woche!B13) -> -0.005714301263 | C13: =LN(Kurse_Woche!C14/Kurse_Woche!C13) -> 0.06470282053 | D13: =LN(Kurse_Woche!D14/Kurse_Woche!D13) -> -0.09463133582 | E13: =LN(Kurse_Woche!E14/Kurse_Woche!E13) -> -0.0729406244 | F13: =LN(Kurse_Woche!F14/Kurse_Woche!F13) -> -0.04311990888 | G13: =LN(Kurse_Woche!G14/Kurse_Woche!G13) -> -0.08681656294 | H13: =LN(Kurse_Woche!H14/Kurse_Woche!H13) -> 0.1168648683 | I13: =LN(Kurse_Woche!I14/Kurse_Woche!I13) -> 0.02107388736
A14: 2008-11-27 | B14: =LN(Kurse_Woche!B15/Kurse_Woche!B14) -> 0.1330537236 | C14: =LN(Kurse_Woche!C15/Kurse_Woche!C14) -> 0.06361742106 | D14: =LN(Kurse_Woche!D15/Kurse_Woche!D14) -> 0.08984120943 | E14: =LN(Kurse_Woche!E15/Kurse_Woche!E14) -> 0.03633192925 | F14: =LN(Kurse_Woche!F15/Kurse_Woche!F14) -> -0.01401237313 | G14: =LN(Kurse_Woche!G15/Kurse_Woche!G14) -> 0.1163795267 | H14: =LN(Kurse_Woche!H15/Kurse_Woche!H14) -> -0.09808096485 | I14: =LN(Kurse_Woche!I15/Kurse_Woche!I14) -> 0.004720952957
A15: 2008-12-04 | B15: =LN(Kurse_Woche!B16/Kurse_Woche!B15) -> -0.0773290018 | C15: =LN(Kurse_Woche!C16/Kurse_Woche!C15) -> -0.03974903304 | D15: =LN(Kurse_Woche!D16/Kurse_Woche!D15) -> -0.002403695256 | E15: =LN(Kurse_Woche!E16/Kurse_Woche!E15) -> 0.001605910093 | F15: =LN(Kurse_Woche!F16/Kurse_Woche!F15) -> 0.001410105992 | G15: =LN(Kurse_Woche!G16/Kurse_Woche!G15) -> -0.02500130221 | H15: =LN(Kurse_Woche!H16/Kurse_Woche!H15) -> 0.0218225971 | I15: =LN(Kurse_Woche!I16/Kurse_Woche!I15) -> 0.03683224674
A16: 2008-12-11 | B16: =LN(Kurse_Woche!B17/Kurse_Woche!B16) -> 0.07649253166 | C16: =LN(Kurse_Woche!C17/Kurse_Woche!C16) -> 0.04771400764 | D16: =LN(Kurse_Woche!D17/Kurse_Woche!D16) -> 0.02773098007 | E16: =LN(Kurse_Woche!E17/Kurse_Woche!E16) -> 0.06039806138 | F16: =LN(Kurse_Woche!F17/Kurse_Woche!F16) -> -0.02088353066 | G16: =LN(Kurse_Woche!G17/Kurse_Woche!G16) -> 0.06790186742 | H16: =LN(Kurse_Woche!H17/Kurse_Woche!H16) -> -0.04305148949 | I16: =LN(Kurse_Woche!I17/Kurse_Woche!I16) -> 0
A17: 2008-12-18 | B17: =LN(Kurse_Woche!B18/Kurse_Woche!B17) -> -0.04975297062 | C17: =LN(Kurse_Woche!C18/Kurse_Woche!C17) -> -0.07282560879 | D17: =LN(Kurse_Woche!D18/Kurse_Woche!D17) -> -0.02393830802 | E17: =LN(Kurse_Woche!E18/Kurse_Woche!E17) -> -0.08640732986 | F17: =LN(Kurse_Woche!F18/Kurse_Woche!F17) -> -0.02870544942 | G17: =LN(Kurse_Woche!G18/Kurse_Woche!G17) -> -0.0253007709 | H17: =LN(Kurse_Woche!H18/Kurse_Woche!H17) -> -0.01662530579 | I17: =LN(Kurse_Woche!I18/Kurse_Woche!I17) -> -0.03619382999
A18: 2009-01-08 | B18: =LN(Kurse_Woche!B19/Kurse_Woche!B18) -> 0.02775546772 | C18: =LN(Kurse_Woche!C19/Kurse_Woche!C18) -> 0.02679583887 | D18: =LN(Kurse_Woche!D19/Kurse_Woche!D18) -> 0.04043327545 | E18: =LN(Kurse_Woche!E19/Kurse_Woche!E18) -> 0.04948005726 | F18: =LN(Kurse_Woche!F19/Kurse_Woche!F18) -> 0.03730149089 | G18: =LN(Kurse_Woche!G19/Kurse_Woche!G18) -> -0.01137699887 | H18: =LN(Kurse_Woche!H19/Kurse_Woche!H18) -> -0.05152449935 | I18: =LN(Kurse_Woche!I19/Kurse_Woche!I18) -> -0.05451052299
A19: 2009-01-15 | B19: =LN(Kurse_Woche!B20/Kurse_Woche!B19) -> -0.03836564683 | C19: =LN(Kurse_Woche!C20/Kurse_Woche!C19) -> -0.02268060672 | D19: =LN(Kurse_Woche!D20/Kurse_Woche!D19) -> -0.07718889065 | E19: =LN(Kurse_Woche!E20/Kurse_Woche!E19) -> -0.04225980929 | F19: =LN(Kurse_Woche!F20/Kurse_Woche!F19) -> -0.05472787164 | G19: =LN(Kurse_Woche!G20/Kurse_Woche!G19) -> -0.1112905101 | H19: =LN(Kurse_Woche!H20/Kurse_Woche!H19) -> 0.09836058376 | I19: =LN(Kurse_Woche!I20/Kurse_Woche!I19) -> 0.05211435571
A20: 2009-01-22 | B20: =LN(Kurse_Woche!B21/Kurse_Woche!B20) -> 0.1243785215 | C20: =LN(Kurse_Woche!C21/Kurse_Woche!C20) -> 0.08020064813 | D20: =LN(Kurse_Woche!D21/Kurse_Woche!D20) -> -0.01929745318 | E20: =LN(Kurse_Woche!E21/Kurse_Woche!E20) -> 0.0104099834 | F20: =LN(Kurse_Woche!F21/Kurse_Woche!F20) -> 0.01545009552 | G20: =LN(Kurse_Woche!G21/Kurse_Woche!G20) -> -0.03289255024 | H20: =LN(Kurse_Woche!H21/Kurse_Woche!H20) -> 0.02231294863 | I20: =LN(Kurse_Woche!I21/Kurse_Woche!I20) -> 0.024565826
A21: 2009-01-29 | B21: =LN(Kurse_Woche!B22/Kurse_Woche!B21) -> 0.04249845347 | C21: =LN(Kurse_Woche!C22/Kurse_Woche!C21) -> 0.03841860332 | D21: =LN(Kurse_Woche!D22/Kurse_Woche!D21) -> 0.01048798196 | E21: =LN(Kurse_Woche!E22/Kurse_Woche!E21) -> -0.006493529311 | F21: =LN(Kurse_Woche!F22/Kurse_Woche!F21) -> -0.005952398527 | G21: =LN(Kurse_Woche!G22/Kurse_Woche!G21) -> 0.04712058801 | H21: =LN(Kurse_Woche!H22/Kurse_Woche!H21) -> -0.03744608979 | I21: =LN(Kurse_Woche!I22/Kurse_Woche!I21) -> -0.003125979413
A22: 2009-02-05 | B22: =LN(Kurse_Woche!B23/Kurse_Woche!B22) -> 0.07441205792 | C22: =LN(Kurse_Woche!C23/Kurse_Woche!C22) -> 0.03553142838 | D22: =LN(Kurse_Woche!D23/Kurse_Woche!D22) -> -0.02500631736 | E22: =LN(Kurse_Woche!E23/Kurse_Woche!E22) -> 0.01903590309 | F22: =LN(Kurse_Woche!F23/Kurse_Woche!F22) -> -0.04737325801 | G22: =LN(Kurse_Woche!G23/Kurse_Woche!G22) -> 0.02089516082 | H22: =LN(Kurse_Woche!H23/Kurse_Woche!H22) -> -0.01012197679 | I22: =LN(Kurse_Woche!I23/Kurse_Woche!I22) -> 0.008495433192
A23: 2009-02-12 | B23: =LN(Kurse_Woche!B24/Kurse_Woche!B23) -> 0.05700321868 | C23: =LN(Kurse_Woche!C24/Kurse_Woche!C23) -> 0.03345860623 | D23: =LN(Kurse_Woche!D24/Kurse_Woche!D23) -> -0.00638459005 | E23: =LN(Kurse_Woche!E24/Kurse_Woche!E23) -> -0.03977056068 | F23: =LN(Kurse_Woche!F24/Kurse_Woche!F23) -> -0.01789521439 | G23: =LN(Kurse_Woche!G24/Kurse_Woche!G23) -> -0.02760148072 | H23: =LN(Kurse_Woche!H24/Kurse_Woche!H23) -> 0.01718914401 | I23: =LN(Kurse_Woche!I24/Kurse_Woche!I23) -> -0.004199726191
A24: 2009-02-19 | B24: =LN(Kurse_Woche!B25/Kurse_Woche!B24) -> 0.04387800617 | C24: =LN(Kurse_Woche!C25/Kurse_Woche!C24) -> 0.04126184228 | D24: =LN(Kurse_Woche!D25/Kurse_Woche!D24) -> -0.03170473899 | E24: =LN(Kurse_Woche!E25/Kurse_Woche!E24) -> -0.06066619235 | F24: =LN(Kurse_Woche!F25/Kurse_Woche!F24) -> 0.03342347672 | G24: =LN(Kurse_Woche!G25/Kurse_Woche!G24) -> -0.03850526338 | H24: =LN(Kurse_Woche!H25/Kurse_Woche!H24) -> 0.04003295091 | I24: =LN(Kurse_Woche!I25/Kurse_Woche!I24) -> -0.01507684625
A25: 2009-02-26 | B25: =LN(Kurse_Woche!B26/Kurse_Woche!B25) -> -0.08151685767 | C25: =LN(Kurse_Woche!C26/Kurse_Woche!C25) -> -0.05127209 | D25: =LN(Kurse_Woche!D26/Kurse_Woche!D25) -> -0.04003691336 | E25: =LN(Kurse_Woche!E26/Kurse_Woche!E25) -> -0.06195058886 | F25: =LN(Kurse_Woche!F26/Kurse_Woche!F25) -> -0.02759873163 | G25: =LN(Kurse_Woche!G26/Kurse_Woche!G25) -> -0.06891340866 | H25: =LN(Kurse_Woche!H26/Kurse_Woche!H25) -> 0.06439050612 | I25: =LN(Kurse_Woche!I26/Kurse_Woche!I25) -> -0.05288112221
A26: 2009-03-05 | B26: =LN(Kurse_Woche!B27/Kurse_Woche!B26) -> 0 | C26: =LN(Kurse_Woche!C27/Kurse_Woche!C26) -> -0.01730709049 | D26: =LN(Kurse_Woche!D27/Kurse_Woche!D26) -> -0.08874320983 | E26: =LN(Kurse_Woche!E27/Kurse_Woche!E26) -> -0.02243013633 | F26: =LN(Kurse_Woche!F27/Kurse_Woche!F26) -> -0.06039365588 | G26: =LN(Kurse_Woche!G27/Kurse_Woche!G26) -> -0.05171457913 | H26: =LN(Kurse_Woche!H27/Kurse_Woche!H26) -> 0.02425462802 | I26: =LN(Kurse_Woche!I27/Kurse_Woche!I26) -> -0.005772383954
A27: 2009-03-12 | B27: =LN(Kurse_Woche!B28/Kurse_Woche!B27) -> 0.006941604642 | C27: =LN(Kurse_Woche!C28/Kurse_Woche!C27) -> 0.02675263818 | D27: =LN(Kurse_Woche!D28/Kurse_Woche!D27) -> 0.05494262746 | E27: =LN(Kurse_Woche!E28/Kurse_Woche!E27) -> -0.003466207976 | F27: =LN(Kurse_Woche!F28/Kurse_Woche!F27) -> 0.02874714263 | G27: =LN(Kurse_Woche!G28/Kurse_Woche!G27) -> 0.0539256524 | H27: =LN(Kurse_Woche!H28/Kurse_Woche!H27) -> -0.02203669993 | I27: =LN(Kurse_Woche!I28/Kurse_Woche!I27) -> -0.009187135291
A28: 2009-03-19 | B28: =LN(Kurse_Woche!B29/Kurse_Woche!B28) -> -0.01535359879 | C28: =LN(Kurse_Woche!C29/Kurse_Woche!C28) -> -0.02896207427 | D28: =LN(Kurse_Woche!D29/Kurse_Woche!D28) -> 0.04051299631 | E28: =LN(Kurse_Woche!E29/Kurse_Woche!E28) -> 0.04820210182 | F28: =LN(Kurse_Woche!F29/Kurse_Woche!F28) -> -0.01316530261 | G28: =LN(Kurse_Woche!G29/Kurse_Woche!G28) -> 0.0611241872 | H28: =LN(Kurse_Woche!H29/Kurse_Woche!H28) -> -0.02033448158 | I28: =LN(Kurse_Woche!I29/Kurse_Woche!I28) -> 0.01136615057
A29: 2009-03-26 | B29: =LN(Kurse_Woche!B30/Kurse_Woche!B29) -> 0.02673622591 | C29: =LN(Kurse_Woche!C30/Kurse_Woche!C29) -> -0.009801178955 | D29: =LN(Kurse_Woche!D30/Kurse_Woche!D29) -> 0.02484867527 | E29: =LN(Kurse_Woche!E30/Kurse_Woche!E29) -> 0.05333165669 | F29: =LN(Kurse_Woche!F30/Kurse_Woche!F29) -> 0.06208521053 | G29: =LN(Kurse_Woche!G30/Kurse_Woche!G29) -> 0.03223803039 | H29: =LN(Kurse_Woche!H30/Kurse_Woche!H29) -> -0.04661230487 | I29: =LN(Kurse_Woche!I30/Kurse_Woche!I29) -> -0.03371392764
A30: 2009-04-02 | B30: =LN(Kurse_Woche!B31/Kurse_Woche!B30) -> -0.07763806919 | C30: =LN(Kurse_Woche!C31/Kurse_Woche!C30) -> -0.04158700481 | D30: =LN(Kurse_Woche!D31/Kurse_Woche!D30) -> 0.04859423742 | E30: =LN(Kurse_Woche!E31/Kurse_Woche!E30) -> 0.01933094368 | F30: =LN(Kurse_Woche!F31/Kurse_Woche!F30) -> 0.02359083761 | G30: =LN(Kurse_Woche!G31/Kurse_Woche!G30) -> 0.01809587793 | H30: =LN(Kurse_Woche!H31/Kurse_Woche!H30) -> -0.02640304239 | I30: =LN(Kurse_Woche!I31/Kurse_Woche!I30) -> 0.001816688073
A31: 2009-04-09 | B31: =LN(Kurse_Woche!B32/Kurse_Woche!B31) -> -0.02135406563 | C31: =LN(Kurse_Woche!C32/Kurse_Woche!C31) -> -0.003389311518 | D31: =LN(Kurse_Woche!D32/Kurse_Woche!D31) -> -0.008822588615 | E31: =LN(Kurse_Woche!E32/Kurse_Woche!E31) -> 0.01862881983 | F31: =LN(Kurse_Woche!F32/Kurse_Woche!F31) -> 0.002025317148 | G31: =LN(Kurse_Woche!G32/Kurse_Woche!G31) -> 0.01717685745 | H31: =LN(Kurse_Woche!H32/Kurse_Woche!H31) -> -0.03897057071 | I31: =LN(Kurse_Woche!I32/Kurse_Woche!I31) -> -0.009465573691
A32: 2009-04-16 | B32: =LN(Kurse_Woche!B33/Kurse_Woche!B32) -> -0.002118290552 | C32: =LN(Kurse_Woche!C33/Kurse_Woche!C32) -> -0.006434235617 | D32: =LN(Kurse_Woche!D33/Kurse_Woche!D32) -> 0.03245993135 | E32: =LN(Kurse_Woche!E33/Kurse_Woche!E32) -> 0.006688988151 | F32: =LN(Kurse_Woche!F33/Kurse_Woche!F32) -> -0.01734737379 | G32: =LN(Kurse_Woche!G33/Kurse_Woche!G32) -> 0.03709830892 | H32: =LN(Kurse_Woche!H33/Kurse_Woche!H32) -> -0.02873255408 | I32: =LN(Kurse_Woche!I33/Kurse_Woche!I32) -> 0.006869293565
A33: 2009-04-23 | B33: =LN(Kurse_Woche!B34/Kurse_Woche!B33) -> 0.05852157162 | C33: =LN(Kurse_Woche!C34/Kurse_Woche!C33) -> 0.0372866991 | D33: =LN(Kurse_Woche!D34/Kurse_Woche!D33) -> 0.003030904343 | E33: =LN(Kurse_Woche!E34/Kurse_Woche!E33) -> 0.006975613736 | F33: =LN(Kurse_Woche!F34/Kurse_Woche!F33) -> -0.05012919718 | G33: =LN(Kurse_Woche!G34/Kurse_Woche!G33) -> -0.0280269403 | H33: =LN(Kurse_Woche!H34/Kurse_Woche!H33) -> -0.001264928179 | I33: =LN(Kurse_Woche!I34/Kurse_Woche!I33) -> 0.02937369652
A34: 2009-04-30 | B34: =LN(Kurse_Woche!B35/Kurse_Woche!B34) -> -0.06206205794 | C34: =LN(Kurse_Woche!C35/Kurse_Woche!C34) -> -0.03968456177 | D34: =LN(Kurse_Woche!D35/Kurse_Woche!D34) -> 0.04879016417 | E34: =LN(Kurse_Woche!E35/Kurse_Woche!E34) -> -0.01467182037 | F34: =LN(Kurse_Woche!F35/Kurse_Woche!F34) -> 0.01076436659 | G34: =LN(Kurse_Woche!G35/Kurse_Woche!G34) -> 0.07140791492 | H34: =LN(Kurse_Woche!H35/Kurse_Woche!H34) -> -0.05297581598 | I34: =LN(Kurse_Woche!I35/Kurse_Woche!I34) -> -0.01006393542
A35: 2009-05-07 | B35: =LN(Kurse_Woche!B36/Kurse_Woche!B35) -> 0.1033050165 | C35: =LN(Kurse_Woche!C36/Kurse_Woche!C35) -> 0.02381193085 | D35: =LN(Kurse_Woche!D36/Kurse_Woche!D35) -> 0.01406107905 | E35: =LN(Kurse_Woche!E36/Kurse_Woche!E35) -> 0.02749883393 | F35: =LN(Kurse_Woche!F36/Kurse_Woche!F35) -> 0.04960557549 | G35: =LN(Kurse_Woche!G36/Kurse_Woche!G35) -> 0.0143690464 | H35: =LN(Kurse_Woche!H36/Kurse_Woche!H35) -> 0.001882353497 | I35: =LN(Kurse_Woche!I36/Kurse_Woche!I35) -> -0.02130481749
A36: 2009-05-14 | B36: =LN(Kurse_Woche!B37/Kurse_Woche!B36) -> -0.00375113446 | C36: =LN(Kurse_Woche!C37/Kurse_Woche!C36) -> -0.006681029748 | D36: =LN(Kurse_Woche!D37/Kurse_Woche!D36) -> -0.01280873074 | E36: =LN(Kurse_Woche!E37/Kurse_Woche!E36) -> -0.008203491453 | F36: =LN(Kurse_Woche!F37/Kurse_Woche!F36) -> 0.03749501951 | G36: =LN(Kurse_Woche!G37/Kurse_Woche!G36) -> -0.04701185499 | H36: =LN(Kurse_Woche!H37/Kurse_Woche!H36) -> 0.01539568548 | I36: =LN(Kurse_Woche!I37/Kurse_Woche!I36) -> -0.0020860503
A37: 2009-05-28 | B37: =LN(Kurse_Woche!B38/Kurse_Woche!B37) -> 0.06000416288 | C37: =LN(Kurse_Woche!C38/Kurse_Woche!C37) -> 0.01578537419 | D37: =LN(Kurse_Woche!D38/Kurse_Woche!D37) -> 0.02288995701 | E37: =LN(Kurse_Woche!E38/Kurse_Woche!E37) -> 0.02441130168 | F37: =LN(Kurse_Woche!F38/Kurse_Woche!F37) -> -0.03647668948 | G37: =LN(Kurse_Woche!G38/Kurse_Woche!G37) -> 0.06838507265 | H37: =LN(Kurse_Woche!H38/Kurse_Woche!H37) -> -0.04078984483 | I37: =LN(Kurse_Woche!I38/Kurse_Woche!I37) -> -0.007598621652
A38: 2009-06-04 | B38: =LN(Kurse_Woche!B39/Kurse_Woche!B38) -> 0.02206636147 | C38: =LN(Kurse_Woche!C39/Kurse_Woche!C38) -> 0.002109867343 | D38: =LN(Kurse_Woche!D39/Kurse_Woche!D38) -> 0.02440913839 | E38: =LN(Kurse_Woche!E39/Kurse_Woche!E38) -> 0.006090738496 | F38: =LN(Kurse_Woche!F39/Kurse_Woche!F38) -> 0.01515180502 | G38: =LN(Kurse_Woche!G39/Kurse_Woche!G38) -> 0.02300765393 | H38: =LN(Kurse_Woche!H39/Kurse_Woche!H38) -> -0.03583791851 | I38: =LN(Kurse_Woche!I39/Kurse_Woche!I38) -> -0.0253043199
A39: 2009-06-11 | B39: =LN(Kurse_Woche!B40/Kurse_Woche!B39) -> -0.02441167097 | C39: =LN(Kurse_Woche!C40/Kurse_Woche!C39) -> -0.02403588103 | D39: =LN(Kurse_Woche!D40/Kurse_Woche!D39) -> 0.01410560933 | E39: =LN(Kurse_Woche!E40/Kurse_Woche!E39) -> 0.0227497963 | F39: =LN(Kurse_Woche!F40/Kurse_Woche!F39) -> -0.01566084041 | G39: =LN(Kurse_Woche!G40/Kurse_Woche!G39) -> 0.001169059041 | H39: =LN(Kurse_Woche!H40/Kurse_Woche!H39) -> 0.001831045039 | I39: =LN(Kurse_Woche!I40/Kurse_Woche!I39) -> -0.00848840206
A40: 2009-06-18 | B40: =LN(Kurse_Woche!B41/Kurse_Woche!B40) -> -0.05796306879 | C40: =LN(Kurse_Woche!C41/Kurse_Woche!C40) -> -0.01071628473 | D40: =LN(Kurse_Woche!D41/Kurse_Woche!D40) -> -0.04366560531 | E40: =LN(Kurse_Woche!E41/Kurse_Woche!E40) -> -0.01542608899 | F40: =LN(Kurse_Woche!F41/Kurse_Woche!F40) -> -0.001018848789 | G40: =LN(Kurse_Woche!G41/Kurse_Woche!G40) -> -0.05936778507 | H40: =LN(Kurse_Woche!H41/Kurse_Woche!H40) -> 0.04049598096 | I40: =LN(Kurse_Woche!I41/Kurse_Woche!I40) -> 0.02419039297
A41: 2009-06-25 | B41: =LN(Kurse_Woche!B42/Kurse_Woche!B41) -> -0.002701432589 | C41: =LN(Kurse_Woche!C42/Kurse_Woche!C41) -> 0.01899421619 | D41: =LN(Kurse_Woche!D42/Kurse_Woche!D41) -> -0.009264472415 | E41: =LN(Kurse_Woche!E42/Kurse_Woche!E41) -> 0.0119837448 | F41: =LN(Kurse_Woche!F42/Kurse_Woche!F41) -> 0.04143342835 | G41: =LN(Kurse_Woche!G42/Kurse_Woche!G41) -> 0.002476611062 | H41: =LN(Kurse_Woche!H42/Kurse_Woche!H41) -> 0.04122118019 | I41: =LN(Kurse_Woche!I42/Kurse_Woche!I41) -> -0.001328668427
A42: 2009-07-02 | B42: =LN(Kurse_Woche!B43/Kurse_Woche!B42) -> -0.05816789628 | C42: =LN(Kurse_Woche!C43/Kurse_Woche!C42) -> -0.01976964057 | D42: =LN(Kurse_Woche!D43/Kurse_Woche!D42) -> 0.0003722315323 | E42: =LN(Kurse_Woche!E43/Kurse_Woche!E42) -> -0.02539819061 | F42: =LN(Kurse_Woche!F43/Kurse_Woche!F42) -> 0.002442003656 | G42: =LN(Kurse_Woche!G43/Kurse_Woche!G42) -> 0.01106946732 | H42: =LN(Kurse_Woche!H43/Kurse_Woche!H42) -> -0.01256908246 | I42: =LN(Kurse_Woche!I43/Kurse_Woche!I42) -> -0.007651963665
A43: 2009-07-09 | B43: =LN(Kurse_Woche!B44/Kurse_Woche!B43) -> -0.04531115128 | C43: =LN(Kurse_Woche!C44/Kurse_Woche!C43) -> -0.02361060992 | D43: =LN(Kurse_Woche!D44/Kurse_Woche!D43) -> -0.01361414895 | E43: =LN(Kurse_Woche!E44/Kurse_Woche!E43) -> 0.00417135211 | F43: =LN(Kurse_Woche!F44/Kurse_Woche!F43) -> 0.003408817521 | G43: =LN(Kurse_Woche!G44/Kurse_Woche!G43) -> -0.04987800763 | H43: =LN(Kurse_Woche!H44/Kurse_Woche!H43) -> 0.01829975717 | I43: =LN(Kurse_Woche!I44/Kurse_Woche!I43) -> 0.03579329461
A44: 2009-07-16 | B44: =LN(Kurse_Woche!B45/Kurse_Woche!B44) -> 0.03181918455 | C44: =LN(Kurse_Woche!C45/Kurse_Woche!C44) -> 0.01864487571 | D44: =LN(Kurse_Woche!D45/Kurse_Woche!D44) -> 0.0411438743 | E44: =LN(Kurse_Woche!E45/Kurse_Woche!E44) -> -0.008683122573 | F44: =LN(Kurse_Woche!F45/Kurse_Woche!F44) -> 0.03581189563 | G44: =LN(Kurse_Woche!G45/Kurse_Woche!G44) -> 0.07364868302 | H44: =LN(Kurse_Woche!H45/Kurse_Woche!H44) -> -0.07513413951 | I44: =LN(Kurse_Woche!I45/Kurse_Woche!I44) -> -0.005443953821
A45: 2009-07-23 | B45: =LN(Kurse_Woche!B46/Kurse_Woche!B45) -> 0.02942444069 | C45: =LN(Kurse_Woche!C46/Kurse_Woche!C45) -> 0.01613401561 | D45: =LN(Kurse_Woche!D46/Kurse_Woche!D45) -> 0.03951774102 | E45: =LN(Kurse_Woche!E46/Kurse_Woche!E45) -> 0.05069557057 | F45: =LN(Kurse_Woche!F46/Kurse_Woche!F45) -> 0.008872343982 | G45: =LN(Kurse_Woche!G46/Kurse_Woche!G45) -> 0.05537255412 | H45: =LN(Kurse_Woche!H46/Kurse_Woche!H45) -> -0.04924201162 | I45: =LN(Kurse_Woche!I46/Kurse_Woche!I45) -> -0.01124047909
A46: 2009-07-30 | B46: =LN(Kurse_Woche!B47/Kurse_Woche!B46) -> 0.002817808425 | C46: =LN(Kurse_Woche!C47/Kurse_Woche!C46) -> 0.001246930942 | D46: =LN(Kurse_Woche!D47/Kurse_Woche!D46) -> 0.03790358698 | E46: =LN(Kurse_Woche!E47/Kurse_Woche!E46) -> 0.03440290996 | F46: =LN(Kurse_Woche!F47/Kurse_Woche!F46) -> 0.03067303864 | G46: =LN(Kurse_Woche!G47/Kurse_Woche!G46) -> 0.03346197743 | H46: =LN(Kurse_Woche!H47/Kurse_Woche!H46) -> -0.01828522865 | I46: =LN(Kurse_Woche!I47/Kurse_Woche!I46) -> -0.0005259006169
A47: 2009-08-06 | B47: =LN(Kurse_Woche!B48/Kurse_Woche!B47) -> 0.06286927493 | C47: =LN(Kurse_Woche!C48/Kurse_Woche!C47) -> 0.0107908001 | D47: =LN(Kurse_Woche!D48/Kurse_Woche!D47) -> 0.01011288276 | E47: =LN(Kurse_Woche!E48/Kurse_Woche!E47) -> -0.03994479606 | F47: =LN(Kurse_Woche!F48/Kurse_Woche!F47) -> -0.01361800437 | G47: =LN(Kurse_Woche!G48/Kurse_Woche!G47) -> -0.005479465765 | H47: =LN(Kurse_Woche!H48/Kurse_Woche!H47) -> 0.001668203556 | I47: =LN(Kurse_Woche!I48/Kurse_Woche!I47) -> -0.02189318553
A48: 2009-08-13 | B48: =LN(Kurse_Woche!B49/Kurse_Woche!B48) -> 0.01315808458 | C48: =LN(Kurse_Woche!C49/Kurse_Woche!C48) -> -0.007479365882 | D48: =LN(Kurse_Woche!D49/Kurse_Woche!D48) -> 0.01992403072 | E48: =LN(Kurse_Woche!E49/Kurse_Woche!E48) -> 0.0259042368 | F48: =LN(Kurse_Woche!F49/Kurse_Woche!F48) -> -0.05543927728 | G48: =LN(Kurse_Woche!G49/Kurse_Woche!G48) -> 0.008510689668 | H48: =LN(Kurse_Woche!H49/Kurse_Woche!H48) -> -0.01582773216 | I48: =LN(Kurse_Woche!I49/Kurse_Woche!I48) -> 0.009720502811
A49: 2009-08-20 | B49: =LN(Kurse_Woche!B50/Kurse_Woche!B49) -> -0.07601325513 | C49: =LN(Kurse_Woche!C50/Kurse_Woche!C49) -> -0.02288639513 | D49: =LN(Kurse_Woche!D50/Kurse_Woche!D49) -> 0.01067338039 | E49: =LN(Kurse_Woche!E50/Kurse_Woche!E49) -> 0.003303802374 | F49: =LN(Kurse_Woche!F50/Kurse_Woche!F49) -> 0.03652291162 | G49: =LN(Kurse_Woche!G50/Kurse_Woche!G49) -> -0.03198304585 | H49: =LN(Kurse_Woche!H50/Kurse_Woche!H49) -> 0.02768799153 | I49: =LN(Kurse_Woche!I50/Kurse_Woche!I49) -> 0.009539023047
A50: 2009-08-27 | B50: =LN(Kurse_Woche!B51/Kurse_Woche!B50) -> 0.02506389884 | C50: =LN(Kurse_Woche!C51/Kurse_Woche!C50) -> 0.007502379672 | D50: =LN(Kurse_Woche!D51/Kurse_Woche!D50) -> 0.02478415355 | E50: =LN(Kurse_Woche!E51/Kurse_Woche!E50) -> 0.01930275225 | F50: =LN(Kurse_Woche!F51/Kurse_Woche!F50) -> -0.0004658746881 | G50: =LN(Kurse_Woche!G51/Kurse_Woche!G50) -> 0.05057428596 | H50: =LN(Kurse_Woche!H51/Kurse_Woche!H50) -> -0.03844078331 | I50: =LN(Kurse_Woche!I51/Kurse_Woche!I50) -> -0.006349227679

Sheet Kurse_Woche
A1: Date | B1: ZKB SILVER ETF (ZSIL/ CH0029792717) | C1: ZKB GOLD ETF (ZGLD/ CH0024391002) | D1: Xmtch (CH) SLI (XMSLI/ CH0031768937) | E1: UBS-ETF MSCI JAPAN (FDJPHU/ LU0136240974) | F1: NESTLE N (NESN/ CH0038863350) | G1: DB X-TR DAX (XDAX/ LU0274211480) | H1: DB X-TR SHORT DAX (XSDX/ LU0292106241) | I1: JPY/CHF
A2: 2008-08-29 | B2: 1451 | C2: 2938 | D2: 108.65 | E2: 39.99 | F2: 48.6 | G2: 104.4 | H2: 115.71 | I2: 0.010016
A3: 2008-09-04 | B3: 1360 | C3: 2830 | D3: 106.99 | E3: 38.3 | F3: 47.86 | G3: 100.81 | H3: 117.16 | I3: 0.010217
A4: 2008-09-11 | B4: 1133 | C4: 2698 | D4: 104.26 | E4: 39.19 | F4: 49.48 | G4: 97.76 | H4: 119.66 | I4: 0.010527
A5: 2008-09-18 | B5: 1298 | C5: 3061 | D5: 98.87 | E5: 36.4 | F5: 48.1 | G5: 92.53 | H5: 124.5 | I5: 0.010602
A6: 2008-09-25 | B6: 1388 | C6: 3021 | D6: 104.01 | E6: 37.3 | F6: 47.7 | G6: 97.88 | H6: 120.88 | I6: 0.010269
A7: 2008-10-02 | B7: 1222 | C7: 3025 | D7: 98.31 | E7: 36.45 | F7: 47.96 | G7: 88.73 | H7: 125.6 | I7: 0.010568
A8: 2008-10-09 | B8: 1288 | C8: 3232 | D8: 85.31 | E8: 31.98 | F8: 42.28 | G8: 74.95 | H8: 145.8 | I8: 0.011293
A9: 2008-10-16 | B9: 1022 | C9: 2892 | D9: 81.5 | E9: 29.09 | F9: 40.92 | G9: 69.41 | H9: 143.15 | I9: 0.011204
A10: 2008-10-23 | B10: 1104 | C10: 2679 | D10: 82.18 | E10: 31.8 | F10: 44.4 | G10: 68.25 | H10: 151.8 | I10: 0.011683
A11: 2008-10-30 | B11: 1058 | C11: 2707.55 | D11: 82.4 | E11: 32.46 | F11: 43.88 | G11: 73.1 | H11: 129.82 | I11: 0.011791
A12: 2008-11-06 | B12: 1180 | C12: 2775 | D12: 83.94 | E12: 32.79 | F12: 45.84 | G12: 72.1 | H12: 131.49 | I12: 0.011743
A13: 2008-11-13 | B13: 1053 | C13: 2731.07 | D13: 79.52 | E13: 32.27 | F13: 45.02 | G13: 69.99 | H13: 139.23 | I13: 0.012208
A14: 2008-11-20 | B14: 1047 | C14: 2913.62 | D14: 72.34 | E14: 30 | F14: 43.12 | G14: 64.17 | H14: 156.49 | I14: 0.012468
A15: 2008-11-27 | B15: 1196 | C15: 3105 | D15: 79.14 | E15: 31.11 | F15: 42.52 | G15: 72.09 | H15: 141.87 | I15: 0.012527
A16: 2008-12-04 | B16: 1107 | C16: 2984 | D16: 78.95 | E16: 31.16 | F16: 42.58 | G16: 70.31 | H16: 145 | I16: 0.012997
A17: 2008-12-11 | B17: 1195 | C17: 3129.83 | D17: 81.17 | E17: 33.1 | F17: 41.7 | G17: 75.25 | H17: 138.89 | I17: 0.012997
A18: 2008-12-18 | B18: 1137 | C18: 2910 | D18: 79.25 | E18: 30.36 | F18: 40.52 | G18: 73.37 | H18: 136.6 | I18: 0.012535
A19: 2009-01-08 | B19: 1169 | C19: 2989.03 | D19: 82.52 | E19: 31.9 | F19: 42.06 | G19: 72.54 | H19: 129.74 | I19: 0.01187
A20: 2009-01-15 | B20: 1125 | C20: 2922 | D20: 76.39 | E20: 30.58 | F20: 39.82 | G20: 64.9 | H20: 143.15 | I20: 0.012505
A21: 2009-01-22 | B21: 1274 | C21: 3166 | D21: 74.93 | E21: 30.9 | F21: 40.44 | G21: 62.8 | H21: 146.38 | I21: 0.012816
A22: 2009-01-29 | B22: 1329.31 | C22: 3290 | D22: 75.72 | E22: 30.7 | F22: 40.2 | G22: 65.83 | H22: 141 | I22: 0.012776
A23: 2009-02-05 | B23: 1432 | C23: 3409 | D23: 73.85 | E23: 31.29 | F23: 38.34 | G23: 67.22 | H23: 139.58 | I23: 0.012885
A24: 2009-02-12 | B24: 1516 | C24: 3524.99 | D24: 73.38 | E24: 30.07 | F24: 37.66 | G24: 65.39 | H24: 142 | I24: 0.012831
A25: 2009-02-19 | B25: 1584 | C25: 3673.48 | D25: 71.09 | E25: 28.3 | F25: 38.94 | G25: 62.92 | H25: 147.8 | I25: 0.012639
A26: 2009-02-26 | B26: 1460 | C26: 3489.88 | D26: 68.3 | E26: 26.6 | F26: 37.88 | G26: 58.73 | H26: 157.63 | I26: 0.011988
A27: 2009-03-05 | B27: 1460 | C27: 3430 | D27: 62.5 | E27: 26.01 | F27: 35.66 | G27: 55.77 | H27: 161.5 | I27: 0.011919
A28: 2009-03-12 | B28: 1470.17 | C28: 3523 | D28: 66.03 | E28: 25.92 | F28: 36.7 | G28: 58.86 | H28: 157.98 | I28: 0.01181
A29: 2009-03-19 | B29: 1447.77 | C29: 3422.43 | D29: 68.76 | E29: 27.2 | F29: 36.22 | G29: 62.57 | H29: 154.8 | I29: 0.011945
A30: 2009-03-26 | B30: 1487 | C30: 3389.05 | D30: 70.49 | E30: 28.69 | F30: 38.54 | G30: 64.62 | H30: 147.75 | I30: 0.011549
A31: 2009-04-02 | B31: 1375.92 | C31: 3251 | D31: 74 | E31: 29.25 | F31: 39.46 | G31: 65.8 | H31: 143.9 | I31: 0.01157
A32: 2009-04-09 | B32: 1346.85 | C32: 3240 | D32: 73.35 | E32: 29.8 | F32: 39.54 | G32: 66.94 | H32: 138.4 | I32: 0.011461
A33: 2009-04-16 | B33: 1344 | C33: 3219.22 | D33: 75.77 | E33: 30 | F33: 38.86 | G33: 69.47 | H33: 134.48 | I33: 0.01154
A34: 2009-04-23 | B34: 1425 | C34: 3341.52 | D34: 76 | E34: 30.21 | F34: 36.96 | G34: 67.55 | H34: 134.31 | I34: 0.011884
A35: 2009-04-30 | B35: 1339.25 | C35: 3211.51 | D35: 79.8 | E35: 29.77 | F35: 37.36 | G35: 72.55 | H35: 127.38 | I35: 0.011765
A36: 2009-05-07 | B36: 1485 | C36: 3288.9 | D36: 80.93 | E36: 30.6 | F36: 39.26 | G36: 73.6 | H36: 127.62 | I36: 0.011517
A37: 2009-05-14 | B37: 1479.44 | C37: 3267 | D37: 79.9 | E37: 30.35 | F37: 40.76 | G37: 70.22 | H37: 129.6 | I37: 0.011493
A38: 2009-05-28 | B38: 1570.93 | C38: 3318.98 | D38: 81.75 | E38: 31.1 | F38: 39.3 | G38: 75.19 | H38: 124.42 | I38: 0.011406
A39: 2009-06-04 | B39: 1605.98 | C39: 3325.99 | D39: 83.77 | E39: 31.29 | F39: 39.9 | G39: 76.94 | H39: 120.04 | I39: 0.011121
A40: 2009-06-11 | B40: 1567.25 | C40: 3247 | D40: 84.96 | E40: 32.01 | F40: 39.28 | G40: 77.03 | H40: 120.26 | I40: 0.011027
A41: 2009-06-18 | B41: 1478.99 | C41: 3212.39 | D41: 81.33 | E41: 31.52 | F41: 39.24 | G41: 72.59 | H41: 125.23 | I41: 0.011297
A42: 2009-06-25 | B42: 1475 | C42: 3273.99 | D42: 80.58 | E42: 31.9 | F42: 40.9 | G42: 72.77 | H42: 130.5 | I42: 0.011282
A43: 2009-07-02 | B43: 1391.65 | C43: 3209.9 | D43: 80.61 | E43: 31.1 | F43: 41 | G43: 73.58 | H43: 128.87 | I43: 0.011196
A44: 2009-07-09 | B44: 1330 | C44: 3135 | D44: 79.52 | E44: 31.23 | F44: 41.14 | G44: 70 | H44: 131.25 | I44: 0.011604
A45: 2009-07-16 | B45: 1373 | C45: 3194 | D45: 82.86 | E45: 30.96 | F45: 42.64 | G45: 75.35 | H45: 121.75 | I45: 0.011541
A46: 2009-07-23 | B46: 1414 | C46: 3245.95 | D46: 86.2 | E46: 32.57 | F46: 43.02 | G46: 79.64 | H46: 115.9 | I46: 0.011412
A47: 2009-07-30 | B47: 1417.99 | C47: 3250 | D47: 89.53 | E47: 33.71 | F47: 44.36 | G47: 82.35 | H47: 113.8 | I47: 0.011406
A48: 2009-08-06 | B48: 1510 | C48: 3285.26 | D48: 90.44 | E48: 32.39 | F48: 43.76 | G48: 81.9 | H48: 113.99 | I48: 0.011159
A49: 2009-08-13 | B49: 1530 | C49: 3260.78 | D49: 92.26 | E49: 33.24 | F49: 41.4 | G49: 82.6 | H49: 112.2 | I49: 0.011268
A50: 2009-08-20 | B50: 1418.01 | C50: 3187 | D50: 93.25 | E50: 33.35 | F50: 42.94 | G50: 80 | H50: 115.35 | I50: 0.011376
A51: 2009-08-27 | B51: 1454 | C51: 3211 | D51: 95.59 | E51: 34 | F51: 42.92 | G51: 84.15 | H51: 111 | I51: 0.011304

Sheet Tabelle1
